Workbook

Sheet 1. INSTRUCTIONS
E3: INSTRUCTIONS FOR COMPLETION OF THE ADHESIVE MONTHLY REPORTING FORM
A5: 1) Provide Identifying Information About the Company Applying Adhesives:
A6: Company Name
A7: Address
A8: City, zip code | G8: Phone
A9: Reported by: Name/Title | G9: E-Mail
G10: Report Date
A13: A. Overview of Reporting Requirement
A14: 1) | B14: Any company that uses/applies adhesives or performs associated surface preparation, equipment cleanup, or stripping at naval or contractor facilities is required to submit monthly reports of materials used.
A15: 2) | B15: Users of adhesive products are responsible for verifying that all adhesive products comply with the San Diego Air Pollution Control District's Rule 67.21. User must indicate the product category applicable to each product in their monthly report.
A16: 3) | B16: Before any adhesive or solvent product is first used at facilities, an MSDS must be submitted to the SWRMC EHS Department for Review. Please contact the SWRMC Dept at 556-1056 or 556-9153 for more information.
A18: B. Master Product List
A19: 1) | B19: Enter each adhesive and solvent product on the "MASTER PRODUCT LIST" once. Indicate specific product name by manufacturer. List all adhesive products used at naval facilities except those specifically exempt by Rule 67.21 (for example - do not include adhesives packaged in aerosol spray cans, those used exclusively in containers holding 16 ounces or less of material, or those products containing less than 20 g/l VOC)
A20: 2) | B20: Enter the product VOC content and units. This information can be found on the product data sheet, MSDS, or packaging.
A21: 3) | B21: Describe the surface that the adhesive will be used on (e.g., wood, metal, etc.)
A22: 4) | B22: Select the applicable category San Diego Air Pollution Control District Rule 67.21
A23: 5) | B23: The "MASTER PRODUCT LIST" allows the user to enter each product to be used only once, serving to reduce data entry time on subsequent monthly reports. Once the "MASTER PRODUCT LIST" has been populated, it will become the source of "pull down lists" for the Monthly Reporting form.
A25: B. Completing the Monthly Reporting Form
A26: 1) | B26: Each month that adhesives are used any facility, an "ADHESIVE REPORTING FORM" must be submitted. This report shall contain a summary of the TOTAL amount of each adhesive used during the month.
A27: 2) | B27: If the "MASTER PRODUCT LIST" has been populated, simply select the product from the pull down menu. Otherwise, enter the required product information on the form.
A28: 3) | B28: Enter the total amount of each product used.
A30: C. Submitting the Monthly Reporting Form
A31: 1) | B31: Material Usage Reports are due on the 10th of each month, following the reporting month (e.g., for material used during the month of February, the report is due by March 10th).
A32: 2) | B32: Send a copy of the monthly report to the SWRMC EHS Department at SWRMCC106B@navy.mil or Fax to 619-556-7887.
A35: D. For More Information
B36: For more information about monthly reporting requirements, contact the SWRMC EHS Department at 556-1056 or 556-9153.
A39: Facility | G39: Reports Due by | K39: Submit Reports to
A40: Amphibious Base Coronado (AMPHIB) | E40: Jess Goodrich (619) 556-9153 or Paul Clifford (619) 556-2864 | G40: 10th of the month following the month when coating occurred | K40: swrmcc106b@navy.mil
A41: Marine Core Base Camp Pendleton (MCBCP) | E41: Jess Goodrich (619) 556-9153 or Paul Clifford (619) 556-2865 | G41: 10th of the month following the month when coating occurred | K41: swrmcc106b@navy.mil
A42: Naval Base Point Loma (NBPL) | E42: Jess Goodrich (619) 556-9153 or Paul Clifford (619) 556-2866 | G42: 10th of the month following the month when coating occurred | K42: swrmcc106b@navy.mil
A43: Naval Base Coronado (NBC) | E43: Jess Goodrich (619) 556-9153 or Paul Clifford (619) 556-2867 | G43: 10th of the month following the month when coating occurred | K43: swrmcc106b@navy.mil
A44: Naval Base San Diego (NBSD) | E44: Jess Goodrich (619) 556-9153 or Paul Clifford (619) 556-2868 | G44: 10th of the month following the month when coating occurred | K44: swrmcc106b@navy.mil
A46: Pull Down Lists for Worksheets - Do Not Modify or Delete
A48: Reporting Years | E48: Facility
A49: 2009 | E49: GD NASSCO 28th and Harbor Drive
A50: 2010 | E50: Naval Station San Diego (32nd Street)
A51: 2011 | E51: BAE Systems
A52: 2012 | E52: Naval Station North Island
A53: 2013 | E53: Northrup Grumman (CMSD)
A54: 2014
A57: Reporting Months | E57: Unit
A58: January | E58: lb/gallon
A59: February | E59: gram/liter
A60: March
A61: April
A62: May
A63: June
A64: July
A65: August
A66: September
A67: October
A68: November
A69: December

Sheet 2. Master Adhesive List
A9: MASTER PRODUCT LIST - ADHESIVES
A11: Adhesive Product Name | B11: Product Manufacturer | C11: VOC Content of Product (as applied) | D11: Unit | E11: Surface Applied To (Substrate) | F11: Product Classification from APCD Rule 67.21 | G11: Product VOC in g/l | H11: APCD VOC Limit
A12: 2033 | B12: Taylor | C12: 0 | D12: grams/liter | E12: X | F12: < 20 g/l VOC, FOR USGAE RECORDS ONLY | G12: 0 | H12: =VLOOKUP(F12,'[2]6. APCD Limits'!$D$11:$E$62,2,FALSE) -> 20
A13: 4099 | B13: Parabond | C13: 1 | D13: grams/liter | E13: X | F13: < 20 g/l VOC, FOR USGAE RECORDS ONLY | G13: 1 | H13: =VLOOKUP(F13,'[2]6. APCD Limits'!$D$11:$E$62,2,FALSE) -> 20
A14: 847 | B14: 3M | C14: 0 | D14: grams/liter | E14: X | F14: < 20 g/l VOC, FOR USGAE RECORDS ONLY | G14: 0 | H14: =VLOOKUP(F14,'[2]6. APCD Limits'!$D$11:$E$62,2,FALSE) -> 20
A15: 1290 Ultra Lt Underlayment | B15: EPMAR | C15: 0 | D15: grams/liter | E15: X | F15: < 20 g/l VOC, FOR USGAE RECORDS ONLY | G15: 0 | H15: =VLOOKUP(F15,'[2]6. APCD Limits'!$D$11:$E$62,2,FALSE) -> 20
A16: 250ML DEPEND 330 FILLED WIP | B16: HENKEL CORP. | C16: 18.4 | D16: grams/liter | E16: X | F16: < 20 g/l VOC, FOR USGAE RECORDS ONLY | G16: =IF(C16>1,(IF(D16="pounds/gallon",C16*120,C16))," ") -> 18.4 | H16: =VLOOKUP(F16,'[2]6. APCD Limits'!$D$11:$E$62,2,FALSE) -> 20
A17: AC-665 B | B17: AC Tech | C17: 15 | D17: grams/liter | E17: X | F17: < 20 g/l VOC, FOR USGAE RECORDS ONLY | G17: =IF(C17>1,(IF(D17="pounds/gallon",C17*120,C17))," ") -> 15 | H17: =VLOOKUP(F17,'[2]6. APCD Limits'!$D$11:$E$62,2,FALSE) -> 20
A18: Aerospace Sealant AC-665 C-12 Part A and B (mixed 100 : 10 volume) | B18: 3M | C18: 48 | D18: grams/liter | E18: X | F18: Sealant | G18: =IF(C18>1,(IF(D18="pounds/gallon",C18*120,C18))," ") -> 48 | H18: =VLOOKUP(F18,'[2]6. APCD Limits'!$D$11:$E$62,2,FALSE) -> 420
A19: Aerospace Sealant AC-665 C-48 Part A and B (mixed 100:10 by volume) | B19: 3M | C19: 48 | D19: grams/liter | E19: X | F19: Sealant | G19: =IF(C19>1,(IF(D19="pounds/gallon",C19*120,C19))," ") -> 48 | H19: =VLOOKUP(F19,'[2]6. APCD Limits'!$D$11:$E$62,2,FALSE) -> 420
A20: Alex Plus Clear (Latex Caulk) | B20: DAP Inc. | C20: 44.4 | D20: grams/liter | E20: X | F20: Sealant | G20: 44.4 | H20: =VLOOKUP(F20,'[2]6. APCD Limits'!$D$11:$E$62,2,FALSE) -> 420
A21: Armaflex 520 | B21: Armacell LLC | C21: 596 | D21: grams/liter | E21: X | F21: Container < 16 oz/1 lb, FOR USAGE RECORDS ONLY | G21: =IF(C21>1,(IF(D21="pounds/gallon",C21*120,C21))," ") -> 596 | H21: =VLOOKUP(F21,'[2]6. APCD Limits'!$D$11:$E$62,2,FALSE) -> X
A22: Armaflex 520 BLV | B22: Armacell LLC | C22: 0 | D22: grams/liter | E22: X | F22: < 20 g/l VOC, FOR USGAE RECORDS ONLY | G22: 0 | H22: =VLOOKUP(F22,'[2]6. APCD Limits'!$D$11:$E$62,2,FALSE) -> 20
A23: CP-25WB Fire Barrier | B23: 3M | C23: 1 | D23: grams/liter | E23: X | F23: < 20 g/l VOC, FOR USGAE RECORDS ONLY | G23: 1 | H23: =VLOOKUP(F23,'[2]6. APCD Limits'!$D$11:$E$62,2,FALSE) -> 20
A24: CS 3204 (class A) Part A and B (mixed 100:8.3 by volume) | B24: Chem Seal | C24: 129.3 | D24: grams/liter | E24: X | F24: Sealant | G24: =IF(C24>1,(IF(D24="pounds/gallon",C24*120,C24))," ") -> 129.3 | H24: =VLOOKUP(F24,'[2]6. APCD Limits'!$D$11:$E$62,2,FALSE) -> 420
A25: CS 3204 (class B) Part A and B (mixed 100:8.3 by volume) | B25: Chem Seal | C25: 12 | D25: grams/liter | E25: X | F25: < 20 g/l VOC, FOR USGAE RECORDS ONLY | G25: =IF(C25>1,(IF(D25="pounds/gallon",C25*120,C25))," ") -> 12 | H25: =VLOOKUP(F25,'[2]6. APCD Limits'!$D$11:$E$62,2,FALSE) -> 20
A26: CS 3213 (class A) Type I Part A and B (mixed 100:14 by volume) | B26: Chem Seal | C26: 157 | D26: grams/liter | E26: X | F26: Sealant | G26: =IF(C26>1,(IF(D26="pounds/gallon",C26*120,C26))," ") -> 157 | H26: =VLOOKUP(F26,'[2]6. APCD Limits'!$D$11:$E$62,2,FALSE) -> 420
A27: CS 3213 (class B) Type II Part A and B (mixed 100:14 by volume) | B27: Chem Seal | C27: 11.4 | D27: grams/liter | E27: X | F27: Sealant | G27: =IF(C27>1,(IF(D27="pounds/gallon",C27*120,C27))," ") -> 11.4 | H27: =VLOOKUP(F27,'[2]6. APCD Limits'!$D$11:$E$62,2,FALSE) -> 420
A28: Degaseal 22 | B28: BASF | C28: 35 | D28: grams/liter | E28: X | F28: EXEMPT FROM RULE 67.21, < 20 g/l VOC, FOR USGAE RECORDS ONLY | G28: =IF(C28>1,(IF(D28="pounds/gallon",C28*120,C28))," ") -> 35 | H28: 420
A29: Dow Corning R732 | B29: Dow Corning | C29: 0.3 | D29: grams/liter | E29: X | F29: < 20 g/l VOC, FOR USGAE RECORDS ONLY | G29: 0.3 | H29: =VLOOKUP(F29,'[2]6. APCD Limits'!$D$11:$E$62,2,FALSE) -> 20
A30: DP-77 (industrial spray adhesive) | B30: DESIGN POLYMERICS | C30: 0 | D30: grams/liter | E30: X | F30: Aerosol | G30: 0 | H30: =VLOOKUP(F30,'[2]6. APCD Limits'!$D$11:$E$62,2,FALSE) -> X
A31: E-6100 | B31: Eclectic Products Inc. | C31: 0.02 | D31: lbs/gal | E31: X | F31: < 20 g/l VOC, FOR USGAE RECORDS ONLY | G31: 0.02 | H31: =VLOOKUP(F31,'[2]6. APCD Limits'!$D$11:$E$62,2,FALSE) -> 20
A32: Fastbond Cantact Adhesive 30-NF | B32: 3M | C32: 37 | D32: grams/liter | E32: X | F32: Contact Adhesive - General | G32: =IF(C32>1,(IF(D32="pounds/gallon",C32*120,C32))," ") -> 37 | H32: =VLOOKUP(F32,'[2]6. APCD Limits'!$D$11:$E$62,2,FALSE) -> 80
A33: Fosters 30-36 | B33: H.B. Fuller | C33: 15 | D33: grams/liter | E33: X | F33: EXEMPT FROM RULE 67.21, < 20 g/l VOC, FOR USGAE RECORDS ONLY | G33: =IF(C33>1,(IF(D33="pounds/gallon",C33*120,C33))," ") -> 15 | H33: 420
A34: Fosters SEALFAS 30-36 AF | B34: Specialty Construction Brands Inc. | C34: 48 | D34: grams/liter | E34: X | F34: Porous material (except wood) | G34: =IF(C34>1,(IF(D34="pounds/gallon",C34*120,C34))," ") -> 48 | H34: =VLOOKUP(F34,'[2]6. APCD Limits'!$D$11:$E$62,2,FALSE) -> 50
A35: Fosters SEALFAS 81-27 | B35: Specialty Construction Brands Inc. | C35: 0 | D35: grams/liter | E35: X | F35: < 20 g/l VOC, FOR USGAE RECORDS ONLY | G35: 0 | H35: =VLOOKUP(F35,'[2]6. APCD Limits'!$D$11:$E$62,2,FALSE) -> 20
A36: KR421 (mixed 100:6 by weight) | B36: Uzin | C36: 49.9 | D36: grams/liter | E36: X | F36: Flooring adhesives:Indoor carpet or carpet pad adhesive | G36: =IF(C36>1,(IF(D36="pounds/gallon",C36*120,C36))," ") -> 49.9 | H36: =VLOOKUP(F36,'[2]6. APCD Limits'!$D$11:$E$62,2,FALSE) -> 50
A37: NEGATIVE REPORT (No Adhesives Applied) | B37: X | C37: 0 | D37: X | E37: X | G37: 0 | H37: =VLOOKUP(F37,'[2]6. APCD Limits'!$D$11:$E$62,2,FALSE) -> 0
A38: Philly Clad 5066A H | B38: ITW Philadelphia Resins | C38: 0 | D38: grams/liter | E38: X | F38: < 20 g/l VOC, FOR USGAE RECORDS ONLY | G38: 0 | H38: =VLOOKUP(F38,'[2]6. APCD Limits'!$D$11:$E$62,2,FALSE) -> 20
A39: Philly Clad 5066A R | B39: ITW Philadelphia Resins | C39: 0 | D39: grams/liter | E39: X | F39: < 20 g/l VOC, FOR USGAE RECORDS ONLY | G39: 0 | H39: =VLOOKUP(F39,'[2]6. APCD Limits'!$D$11:$E$62,2,FALSE) -> 20
A40: Pro Seal 870 A-1/2 Part A and B (mixed 17:100 by volume) | B40: PPG Industries Inc. | C40: 194 | D40: grams/liter | E40: X | F40: Sealant | G40: =IF(C40>1,(IF(D40="pounds/gallon",C40*120,C40))," ") -> 194 | H40: =VLOOKUP(F40,'[2]6. APCD Limits'!$D$11:$E$62,2,FALSE) -> 420
A41: Pro Seal 870 A-2 Part A and B (mixed 17:100 by volume) | B41: PPG Industries Inc. | C41: 194 | D41: grams/liter | E41: X | F41: Sealant | G41: =IF(C41>1,(IF(D41="pounds/gallon",C41*120,C41))," ") -> 194 | H41: =VLOOKUP(F41,'[2]6. APCD Limits'!$D$11:$E$62,2,FALSE) -> 420
A42: Pro Seal 870 B-1/2 Part A and B (mixed ratio by 17:100 volume) | B42: PPG Industries Inc. | C42: 82 | D42: grams/liter | E42: X | F42: Sealant | G42: 82 | H42: =VLOOKUP(F42,'[2]6. APCD Limits'!$D$11:$E$62,2,FALSE) -> 420
A43: Pro Seal 870 B-2 Part A and B (mixed ratio 17:100 by volume) | B43: PPG Industries Inc. | C43: 55 | D43: grams/liter | E43: X | F43: Sealant | G43: 55 | H43: =VLOOKUP(F43,'[2]6. APCD Limits'!$D$11:$E$62,2,FALSE) -> 420
A44: Pro Seal 870 C-12 Part A and B (mixed ratio by 17:100 volume) | B44: PPG Industries Inc. | C44: 118 | D44: grams/liter | E44: X | F44: Sealant | G44: =IF(C44>1,(IF(D44="pounds/gallon",C44*120,C44))," ") -> 118 | H44: =VLOOKUP(F44,'[2]6. APCD Limits'!$D$11:$E$62,2,FALSE) -> 420
A45: Pro Seal 870 C-24 Part A and B (mixed ratio by 17:100 volume) | B45: PPG Industries Inc. | C45: 118 | D45: grams/liter | E45: X | F45: Sealant | G45: =IF(C45>1,(IF(D45="pounds/gallon",C45*120,C45))," ") -> 118 | H45: =VLOOKUP(F45,'[2]6. APCD Limits'!$D$11:$E$62,2,FALSE) -> 420
A46: Pro Seal 870 C-48 Part A and B (mixed ratio by 17:100 volume) | B46: PPG Industries Inc. | C46: 118 | D46: grams/liter | E46: X | F46: Sealant | G46: =IF(C46>1,(IF(D46="pounds/gallon",C46*120,C46))," ") -> 118 | H46: =VLOOKUP(F46,'[2]6. APCD Limits'!$D$11:$E$62,2,FALSE) -> 420
A47: Pro Seal 890 A-1/2 Part A and B (mixed ratio 10:100 by volume) | B47: PPG Industries Inc. | C47: 203 | D47: grams/liter | E47: X | F47: Sealant | G47: 203 | H47: =VLOOKUP(F47,'[2]6. APCD Limits'!$D$11:$E$62,2,FALSE) -> 420
A48: Pro Seal 890 A-2 Part A and B (mixed ratio 10:100 by volume) | B48: PPG Industries Inc. | C48: 203 | D48: grams/liter | E48: X | F48: Sealant | G48: =IF(C48>1,(IF(D48="pounds/gallon",C48*120,C48))," ") -> 203 | H48: =VLOOKUP(F48,'[2]6. APCD Limits'!$D$11:$E$62,2,FALSE) -> 420
A49: Pro Seal 890 B-2 Part A and B (mixed ratio 10:100 by volume) | B49: PPG Industries Inc. | C49: 53 | D49: grams/liter | E49: X | F49: Sealant | G49: 53 | H49: =VLOOKUP(F49,'[2]6. APCD Limits'!$D$11:$E$62,2,FALSE) -> 420
A50: Pro Seal 890 C-20 Part A and B (mixed ratio 10:100 by volume) | B50: PPG Industries Inc. | C50: 82 | D50: grams/liter | E50: X | F50: Sealant | G50: =IF(C50>1,(IF(D50="pounds/gallon",C50*120,C50))," ") -> 82 | H50: =VLOOKUP(F50,'[2]6. APCD Limits'!$D$11:$E$62,2,FALSE) -> 420
A51: RTV 1473 Acetoxy Curing Sealant | B51: Momentive Performance Materials | C51: 26 | D51: grams/liter | E51: X | F51: Sealant | G51: 26 | H51: =VLOOKUP(F51,'[2]6. APCD Limits'!$D$11:$E$62,2,FALSE) -> 420
A52: Safety-Walk(Brand Edge Sealing Compound) | B52: 3M | C52: 481 | D52: grams/liter | E52: X | F52: Container < 16 oz/1 lb, FOR USAGE RECORDS ONLY | G52: 481 | H52: =VLOOKUP(F52,'[2]6. APCD Limits'!$D$11:$E$62,2,FALSE) -> X
A53: Scotch-Seal Industrial Sealant 800 | B53: 3M | C53: 485 | D53: grams/liter | E53: X | F53: Container < 16 oz/1 lb, FOR USAGE RECORDS ONLY | G53: 485 | H53: =VLOOKUP(F53,'[2]6. APCD Limits'!$D$11:$E$62,2,FALSE) -> X
A54: Scotch-Weld 1838 Green part A and B (mixed ratio 4:5 by volume) | B54: 3M | C54: 3.4 | D54: grams/liter | E54: X | F54: < 20 g/l VOC, FOR USGAE RECORDS ONLY | G54: 3.4 | H54: =VLOOKUP(F54,'[2]6. APCD Limits'!$D$11:$E$62,2,FALSE) -> 20
A55: Scotch-Weld 2216 Gray part A and B (mixed ratio 2:3 by volume) | B55: 3M | C55: 12 | D55: grams/liter | E55: X | F55: < 20 g/l VOC, FOR USGAE RECORDS ONLY | G55: 12 | H55: =VLOOKUP(F55,'[2]6. APCD Limits'!$D$11:$E$62,2,FALSE) -> 20
A56: SF-400 | B56: Henkel Consumer | C56: 3.09 | D56: grams/liter | E56: X | F56: < 20 g/l VOC, FOR USGAE RECORDS ONLY | G56: 3.09 | H56: =VLOOKUP(F56,'[2]6. APCD Limits'!$D$11:$E$62,2,FALSE) -> 20
A57: Splash Zone Compound 4545 part A and B (mixed ratio 1:1 by volume) | B57: Proline Paint Co. | C57: 0 | D57: grams/liter | E57: X | F57: < 20 g/l VOC, FOR USGAE RECORDS ONLY | G57: 0 | H57: =VLOOKUP(F57,'[2]6. APCD Limits'!$D$11:$E$62,2,FALSE) -> 20
A58: SS 5501 | B58: EPMAR | C58: 0 | D58: grams/liter | E58: X | F58: < 20 g/l VOC, FOR USGAE RECORDS ONLY | G58: 0 | H58: =VLOOKUP(F58,'[2]6. APCD Limits'!$D$11:$E$62,2,FALSE) -> 20
A59: Super 77 | B59: 3M | C59: 468 | D59: grams/liter | E59: X | F59: EXEMPT FROM RULE 67.21, Aerosol | G59: =IF(C59>1,(IF(D59="pounds/gallon",C59*120,C59))," ") -> 468 | H59: X
A60: Vimasco 713 and 713R (WHITE and RED) | B60: Vimasco Corporation | C60: 0 | D60: grams/liter | E60: X | F60: < 20 g/l VOC, FOR USGAE RECORDS ONLY | G60: 0 | H60: =VLOOKUP(F60,'[2]6. APCD Limits'!$D$11:$E$62,2,FALSE) -> 20
A61: Vimasco 713 IMO/CA (WHITE and RED) | B61: Vimasco Corporation | C61: 0.13 | D61: grams/liter | E61: X | F61: < 20 g/l VOC, FOR USGAE RECORDS ONLY | G61: 0.13 | H61: =VLOOKUP(F61,'[2]6. APCD Limits'!$D$11:$E$62,2,FALSE) -> 20
A62: Vimasco 760 High Temperature Adhesive | B62: Vimasco Corporation | C62: 0 | D62: grams/liter | E62: X | F62: < 20 g/l VOC, FOR USGAE RECORDS ONLY | G62: 0 | H62: =VLOOKUP(F62,'[2]6. APCD Limits'!$D$11:$E$62,2,FALSE) -> 20

Sheet 3. Master Solvent List
A9: MASTER PRODUCT LIST - SOLVENTS
A11: Solvent Used for: | B11: Solvent Manufacturer Name | C11: Solvent Name | D11: Product ID | E11: Composite Solvent Name | F11: VOC Content | G11: Unit | H11: g/liter | I11: VOC Limit (g/L) | J11: Meets VOC Limit? | K11: Vapor Pressure (mm/hg) | L11: Vapor Pressure Limit | M11: Meets Vapor Pressure Limit? | N11: Initial Boiling Point | O11: Boiling Point Unit | P11: C | Q11: IBP Limit (Degrees C) | R11: Meets IBP Limit? | S11: Complies with Numeric Limits? | T11: Alt Compliance Needed? | U11: Alternate Method of Compliance (VOC reduction measures must be used for any equipment cleaning solvent NOT meeting numeric limits; see SDAPCD Rule 67.18 (D)(3). If highlighted Orange, indicate method to | V11: Solvent Density (lbs/gal) | W11: n-butanol (%) | X11: n-butanol content (lbs/gal) | Y11: Mixed Xylenes (%) | Z11: Mixed Xylenes content (lbs/gal)
A12: Equipment Cleaning | B12: Brenntag Pacific | C12: 40/60 MEK/MIBK Wipe Solvent | D12: 628893 | E12: =IF(ISBLANK(B12)," ",CONCATENATE($A12,": ",$B12," ",$C12," ",$D12)) -> Equipment Cleaning: Brenntag Pacific 40/60 MEK/MIBK Wipe Solvent 628893 | F12: 802 | G12: g/l | H12: =IF($G12 = "lb/gal",($F12*120),$F12) -> 802 | I12: =IF(H12>1,VLOOKUP($A12,'[1]Marine Coating Limits'!$I$3:$L$4,2,FALSE),0) -> 200 | J12: =IF(H12>0.001,IF($H12>$I12,0,1),0) -> 0 | K12: 41.9 | L12: =IF(K12>0.01,VLOOKUP(A12,'[1]Marine Coating Limits'!$I$3:$L$4,4,FALSE),0) -> 20 | M12: =IF(K12>0.0001,IF(K12>L12,0,1),0) -> 0 | N12: 174 | O12: F | P12: =IF($O12 = "F",CONVERT($N12,"F","C"),$N12) -> 78.88888889 | Q12: =IF(P12>0.01,VLOOKUP(A12,'[1]Marine Coating Limits'!$I$3:$L$4,3,FALSE),0) -> 190 | R12: =IF(P12>0.001,IF(P12>Q12,1,0),0) -> 0 | S12: =IF(ISBLANK(C12)," ",IF((H12+K12+N12) >0.001,IF((J12+M12+R12)>=1,"YES","NO"),"INCOMPLETE INFORMATION")) -> NO | T12: =IF(ISBLANK(N12),0,IF(S12="YES",0,IF(A12 = "Equipment Cleaning",1,0))) -> 1 | U12: Contained Flushing: cleaning solvent is flushed or rinsed through equipment in a contained manner as described in 67.18(d)(3)(ii) | X12: =IF(ISBLANK(W12),0,V12*W12/100) -> 0 | Z12: =IF(ISBLANK(Y12),0,V12*Y12/100) -> 0
A13: Equipment Cleaning | B13: Brenntag Pacific | C13: INTERN'L THINNER | D13: GT 4637 | E13: =IF(ISBLANK(B13)," ",CONCATENATE($A13,": ",$B13," ",$C13," ",$D13)) -> Equipment Cleaning: Brenntag Pacific INTERN'L THINNER GT 4637 | F13: 7.23 | G13: lb/gal | H13: =IF($G13 = "lb/gal",($F13*120),$F13) -> 867.6 | I13: =IF(H13>1,VLOOKUP($A13,'[1]Marine Coating Limits'!$I$3:$L$4,2,FALSE),0) -> 200 | J13: =IF(H13>0.001,IF($H13>$I13,0,1),0) -> 0 | K13: 5.6 | L13: =IF(K13>0.01,VLOOKUP(A13,'[1]Marine Coating Limits'!$I$3:$L$4,4,FALSE),0) -> 20 | M13: =IF(K13>0.0001,IF(K13>L13,0,1),0) -> 1 | N13: 330 | O13: F | P13: =IF($O13 = "F",CONVERT($N13,"F","C"),$N13) -> 165.5555556 | Q13: =IF(P13>0.01,VLOOKUP(A13,'[1]Marine Coating Limits'!$I$3:$L$4,3,FALSE),0) -> 190 | R13: =IF(P13>0.001,IF(P13>Q13,1,0),0) -> 0 | S13: =IF(ISBLANK(C13)," ",IF((H13+K13+N13) >0.001,IF((J13+M13+R13)>=1,"YES","NO"),"INCOMPLETE INFORMATION")) -> YES | T13: =IF(ISBLANK(N13),0,IF(S13="YES",0,IF(A13 = "Equipment Cleaning",1,0))) -> 0 | X13: =IF(ISBLANK(W13),0,V13*W13/100) -> 0 | Z13: =IF(ISBLANK(Y13),0,V13*Y13/100) -> 0
A14: Equipment Cleaning | B14: Brenntag Pacific | C14: Lacquer Wash | D14: 201-X | E14: =IF(ISBLANK(B14)," ",CONCATENATE($A14,": ",$B14," ",$C14," ",$D14)) -> Equipment Cleaning: Brenntag Pacific Lacquer Wash 201-X | F14: 622 | G14: g/l | H14: =IF($G14 = "lb/gal",($F14*120),$F14) -> 622 | I14: =IF(H14>1,VLOOKUP($A14,'[1]Marine Coating Limits'!$I$3:$L$4,2,FALSE),0) -> 200 | J14: =IF(H14>0.001,IF($H14>$I14,0,1),0) -> 0 | K14: 37.2 | L14: =IF(K14>0.01,VLOOKUP(A14,'[1]Marine Coating Limits'!$I$3:$L$4,4,FALSE),0) -> 20 | M14: =IF(K14>0.0001,IF(K14>L14,0,1),0) -> 0 | N14: 133 | O14: F | P14: =IF($O14 = "F",CONVERT($N14,"F","C"),$N14) -> 56.11111111 | Q14: =IF(P14>0.01,VLOOKUP(A14,'[1]Marine Coating Limits'!$I$3:$L$4,3,FALSE),0) -> 190 | R14: =IF(P14>0.001,IF(P14>Q14,1,0),0) -> 0 | S14: =IF(ISBLANK(C14)," ",IF((H14+K14+N14) >0.001,IF((J14+M14+R14)>=1,"YES","NO"),"INCOMPLETE INFORMATION")) -> NO | T14: =IF(ISBLANK(N14),0,IF(S14="YES",0,IF(A14 = "Equipment Cleaning",1,0))) -> 1 | U14: Contained Flushing: cleaning solvent is flushed or rinsed through equipment in a contained manner as described in 67.18(d)(3)(ii) | X14: =IF(ISBLANK(W14),0,V14*W14/100) -> 0 | Z14: =IF(ISBLANK(Y14),0,V14*Y14/100) -> 0
A15: Equipment Cleaning | B15: Cumberland Products | C15: Advantage 100 Fast Dry Acrylic Lacquer Thinner | D15: 100 | E15: =IF(ISBLANK(B15)," ",CONCATENATE($A15,": ",$B15," ",$C15," ",$D15)) -> Equipment Cleaning: Cumberland Products Advantage 100 Fast Dry Acrylic Lacquer Thinner 100 | F15: 4 | G15: lb/gal | H15: =IF($G15 = "lb/gal",($F15*120),$F15) -> 480 | I15: =IF(H15>1,VLOOKUP($A15,'[1]Marine Coating Limits'!$I$3:$L$4,2,FALSE),0) -> 200 | J15: =IF(H15>0.001,IF($H15>$I15,0,1),0) -> 0 | K15: 116 | L15: =IF(K15>0.01,VLOOKUP(A15,'[1]Marine Coating Limits'!$I$3:$L$4,4,FALSE),0) -> 20 | M15: =IF(K15>0.0001,IF(K15>L15,0,1),0) -> 0 | N15: 133 | O15: F | P15: =IF($O15 = "F",CONVERT($N15,"F","C"),$N15) -> 56.11111111 | Q15: =IF(P15>0.01,VLOOKUP(A15,'[1]Marine Coating Limits'!$I$3:$L$4,3,FALSE),0) -> 190 | R15: =IF(P15>0.001,IF(P15>Q15,1,0),0) -> 0 | S15: =IF(ISBLANK(C15)," ",IF((H15+K15+N15) >0.001,IF((J15+M15+R15)>=1,"YES","NO"),"INCOMPLETE INFORMATION")) -> NO | T15: =IF(ISBLANK(N15),0,IF(S15="YES",0,IF(A15 = "Equipment Cleaning",1,0))) -> 1 | U15: Closed Container: equipment or parts are cleaned in a container which is only opened when being accessesed for adding, cleaning, or removing application equipment and parts are allowed to drain or drip prior to removal, as described in 67.18(d)(3)(iii) | X15: =IF(ISBLANK(W15),0,V15*W15/100) -> 0 | Z15: =IF(ISBLANK(Y15),0,V15*Y15/100) -> 0
A16: Equipment Cleaning | B16: Dampney Co. Inc. | C16: THINNER | D16: Lab Solvent | E16: =IF(ISBLANK(B16)," ",CONCATENATE($A16,": ",$B16," ",$C16," ",$D16)) -> Equipment Cleaning: Dampney Co. Inc. THINNER Lab Solvent | F16: 7.23 | G16: lb/gal | H16: =IF($G16 = "lb/gal",($F16*120),$F16) -> 867.6 | I16: =IF(H16>1,VLOOKUP($A16,'[1]Marine Coating Limits'!$I$3:$L$4,2,FALSE),0) -> 200 | J16: =IF(H16>0.001,IF($H16>$I16,0,1),0) -> 0 | K16: 86.087 | L16: =IF(K16>0.01,VLOOKUP(A16,'[1]Marine Coating Limits'!$I$3:$L$4,4,FALSE),0) -> 20 | M16: =IF(K16>0.0001,IF(K16>L16,0,1),0) -> 0 | N16: 133 | O16: F | P16: =IF($O16 = "F",CONVERT($N16,"F","C"),$N16) -> 56.11111111 | Q16: =IF(P16>0.01,VLOOKUP(A16,'[1]Marine Coating Limits'!$I$3:$L$4,3,FALSE),0) -> 190 | R16: =IF(P16>0.001,IF(P16>Q16,1,0),0) -> 0 | S16: =IF(ISBLANK(C16)," ",IF((H16+K16+N16) >0.001,IF((J16+M16+R16)>=1,"YES","NO"),"INCOMPLETE INFORMATION")) -> NO | T16: =IF(ISBLANK(N16),0,IF(S16="YES",0,IF(A16 = "Equipment Cleaning",1,0))) -> 1 | U16: Enclosed Parts Cleaning: a system is used that totally encloses the component parts being cleaned during the washing, rinsing, and draining process, as described in 67.18(d)(3)(i) | V16: 6.9 | X16: =IF(ISBLANK(W16),0,V16*W16/100) -> 0 | Z16: =IF(ISBLANK(Y16),0,V16*Y16/100) -> 0
A17: Equipment Cleaning | B17: International Paint (USA) Inc. | C17: International Thinner | D17: GTA220 | E17: =IF(ISBLANK(B17)," ",CONCATENATE($A17,": ",$B17," ",$C17," ",$D17)) -> Equipment Cleaning: International Paint (USA) Inc. International Thinner GTA220 | F17: 849 | G17: g/l | H17: =IF($G17 = "lb/gal",($F17*120),$F17) -> 849 | I17: =IF(H17>1,VLOOKUP($A17,'[1]Marine Coating Limits'!$I$3:$L$4,2,FALSE),0) -> 200 | J17: =IF(H17>0.001,IF($H17>$I17,0,1),0) -> 0 | K17: 6 | L17: =IF(K17>0.01,VLOOKUP(A17,'[1]Marine Coating Limits'!$I$3:$L$4,4,FALSE),0) -> 20 | M17: =IF(K17>0.0001,IF(K17>L17,0,1),0) -> 1 | N17: 243 | O17: F | P17: =IF($O17 = "F",CONVERT($N17,"F","C"),$N17) -> 117.2222222 | Q17: =IF(P17>0.01,VLOOKUP(A17,'[1]Marine Coating Limits'!$I$3:$L$4,3,FALSE),0) -> 190 | R17: =IF(P17>0.001,IF(P17>Q17,1,0),0) -> 0 | S17: =IF(ISBLANK(C17)," ",IF((H17+K17+N17) >0.001,IF((J17+M17+R17)>=1,"YES","NO"),"INCOMPLETE INFORMATION")) -> YES | T17: =IF(ISBLANK(N17),0,IF(S17="YES",0,IF(A17 = "Equipment Cleaning",1,0))) -> 0 | V17: 7.27 | W17: 50 | X17: =IF(ISBLANK(W17),0,V17*W17/100) -> 3.635 | Y17: 10 | Z17: =IF(ISBLANK(Y17),0,V17*Y17/100) -> 0.727
A18: Equipment Cleaning | B18: ITW American Safety Technologies | C18: S-31 Thinner | D18: S-31 | E18: =IF(ISBLANK(B18)," ",CONCATENATE($A18,": ",$B18," ",$C18," ",$D18)) -> Equipment Cleaning: ITW American Safety Technologies S-31 Thinner S-31 | F18: 7.25 | G18: lb/gal | H18: =IF($G18 = "lb/gal",($F18*120),$F18) -> 870 | I18: =IF(H18>1,VLOOKUP($A18,'[1]Marine Coating Limits'!$I$3:$L$4,2,FALSE),0) -> 200 | J18: =IF(H18>0.001,IF($H18>$I18,0,1),0) -> 0 | K18: 8 | L18: =IF(K18>0.01,VLOOKUP(A18,'[1]Marine Coating Limits'!$I$3:$L$4,4,FALSE),0) -> 20 | M18: =IF(K18>0.0001,IF(K18>L18,0,1),0) -> 1 | N18: 280 | O18: F | P18: =IF($O18 = "F",CONVERT($N18,"F","C"),$N18) -> 137.7777778 | Q18: =IF(P18>0.01,VLOOKUP(A18,'[1]Marine Coating Limits'!$I$3:$L$4,3,FALSE),0) -> 190 | R18: =IF(P18>0.001,IF(P18>Q18,1,0),0) -> 0 | S18: =IF(ISBLANK(C18)," ",IF((H18+K18+N18) >0.001,IF((J18+M18+R18)>=1,"YES","NO"),"INCOMPLETE INFORMATION")) -> YES | T18: =IF(ISBLANK(N18),0,IF(S18="YES",0,IF(A18 = "Equipment Cleaning",1,0))) -> 0 | X18: =IF(ISBLANK(W18),0,V18*W18/100) -> 0 | Z18: =IF(ISBLANK(Y18),0,V18*Y18/100) -> 0
A19: Equipment Cleaning | B19: ITW American Safety Technologies | C19: S-426 | D19: MS901E | E19: =IF(ISBLANK(B19)," ",CONCATENATE($A19,": ",$B19," ",$C19," ",$D19)) -> Equipment Cleaning: ITW American Safety Technologies S-426 MS901E | F19: 856 | G19: g/l | H19: =IF($G19 = "lb/gal",($F19*120),$F19) -> 856 | I19: =IF(H19>1,VLOOKUP($A19,'[1]Marine Coating Limits'!$I$3:$L$4,2,FALSE),0) -> 200 | J19: =IF(H19>0.001,IF($H19>$I19,0,1),0) -> 0 | K19: 8 | L19: =IF(K19>0.01,VLOOKUP(A19,'[1]Marine Coating Limits'!$I$3:$L$4,4,FALSE),0) -> 20 | M19: =IF(K19>0.0001,IF(K19>L19,0,1),0) -> 1 | N19: 246 | O19: F | Q19: =IF(P19>0.01,VLOOKUP(A19,'[1]Marine Coating Limits'!$I$3:$L$4,3,FALSE),0) -> 0 | R19: =IF(P19>0.001,IF(P19>Q19,1,0),0) -> 0 | S19: =IF(ISBLANK(C19)," ",IF((H19+K19+N19) >0.001,IF((J19+M19+R19)>=1,"YES","NO"),"INCOMPLETE INFORMATION")) -> YES | T19: =IF(ISBLANK(N19),0,IF(S19="YES",0,IF(A19 = "Equipment Cleaning",1,0))) -> 0 | X19: =IF(ISBLANK(W19),0,V19*W19/100) -> 0 | Z19: =IF(ISBLANK(Y19),0,V19*Y19/100) -> 0
A20: Equipment Cleaning | B20: Master's Touch | C20: SOLVENT DEGREASER-ZERO V.O.C. | D20: MT-34019CS | E20: =IF(ISBLANK(B20)," ",CONCATENATE($A20,": ",$B20," ",$C20," ",$D20)) -> Equipment Cleaning: Master's Touch SOLVENT DEGREASER-ZERO V.O.C. MT-34019CS | F20: 0 | G20: lb/gal | H20: =IF($G20 = "lb/gal",($F20*120),$F20) -> 0 | I20: =IF(H20>1,VLOOKUP($A20,'[1]Marine Coating Limits'!$I$3:$L$4,2,FALSE),0) -> 0 | J20: =IF(H20>0.001,IF($H20>$I20,0,1),0) -> 0 | K20: 2.6 | L20: =IF(K20>0.01,VLOOKUP(A20,'[1]Marine Coating Limits'!$I$3:$L$4,4,FALSE),0) -> 20 | M20: =IF(K20>0.0001,IF(K20>L20,0,1),0) -> 1 | N20: 250 | O20: F | P20: =IF($O20 = "F",CONVERT($N20,"F","C"),$N20) -> 121.1111111 | Q20: =IF(P20>0.01,VLOOKUP(A20,'[1]Marine Coating Limits'!$I$3:$L$4,3,FALSE),0) -> 190 | R20: =IF(P20>0.001,IF(P20>Q20,1,0),0) -> 0 | S20: =IF(ISBLANK(C20)," ",IF((H20+K20+N20) >0.001,IF((J20+M20+R20)>=1,"YES","NO"),"INCOMPLETE INFORMATION")) -> YES | T20: =IF(ISBLANK(N20),0,IF(S20="YES",0,IF(A20 = "Equipment Cleaning",1,0))) -> 0 | X20: =IF(ISBLANK(W20),0,V20*W20/100) -> 0 | Z20: =IF(ISBLANK(Y20),0,V20*Y20/100) -> 0
A21: Equipment Cleaning | B21: PPG | C21: T-10 THINNER 010T0000 | D21: ATT10/04 | E21: =IF(ISBLANK(B21)," ",CONCATENATE($A21,": ",$B21," ",$C21," ",$D21)) -> Equipment Cleaning: PPG T-10 THINNER 010T0000 ATT10/04 | F21: 836 | G21: g/l | H21: =IF($G21 = "lb/gal",($F21*120),$F21) -> 836 | I21: =IF(H21>1,VLOOKUP($A21,'[1]Marine Coating Limits'!$I$3:$L$4,2,FALSE),0) -> 200 | J21: =IF(H21>0.001,IF($H21>$I21,0,1),0) -> 0 | K21: 4.2 | L21: =IF(K21>0.01,VLOOKUP(A21,'[1]Marine Coating Limits'!$I$3:$L$4,4,FALSE),0) -> 20 | M21: =IF(K21>0.0001,IF(K21>L21,0,1),0) -> 1 | N21: 100 | O21: F | P21: =IF($O21 = "F",CONVERT($N21,"F","C"),$N21) -> 37.77777778 | Q21: =IF(P21>0.01,VLOOKUP(A21,'[1]Marine Coating Limits'!$I$3:$L$4,3,FALSE),0) -> 190 | R21: =IF(P21>0.001,IF(P21>Q21,1,0),0) -> 0 | S21: =IF(ISBLANK(C21)," ",IF((H21+K21+N21) >0.001,IF((J21+M21+R21)>=1,"YES","NO"),"INCOMPLETE INFORMATION")) -> YES | T21: =IF(ISBLANK(N21),0,IF(S21="YES",0,IF(A21 = "Equipment Cleaning",1,0))) -> 0 | V21: 6.93 | W21: 40 | X21: =IF(ISBLANK(W21),0,V21*W21/100) -> 2.772 | Y21: 40 | Z21: =IF(ISBLANK(Y21),0,V21*Y21/100) -> 2.772
A22: Equipment Cleaning | B22: Sherwin Williams (Proline Paints) | C22: Lacquer Thinner | D22: R7K115 | E22: =IF(ISBLANK(B22)," ",CONCATENATE($A22,": ",$B22," ",$C22," ",$D22)) -> Equipment Cleaning: Sherwin Williams (Proline Paints) Lacquer Thinner R7K115 | F22: 827 | G22: g/l | H22: =IF($G22 = "lb/gal",($F22*120),$F22) -> 827 | I22: =IF(H22>1,VLOOKUP($A22,'[1]Marine Coating Limits'!$I$3:$L$4,2,FALSE),0) -> 200 | J22: =IF(H22>0.001,IF($H22>$I22,0,1),0) -> 0 | K22: 294 | L22: =IF(K22>0.01,VLOOKUP(A22,'[1]Marine Coating Limits'!$I$3:$L$4,4,FALSE),0) -> 20 | M22: =IF(K22>0.0001,IF(K22>L22,0,1),0) -> 0 | N22: 132 | O22: F | P22: =IF($O22 = "F",CONVERT($N22,"F","C"),$N22) -> 55.55555556 | Q22: =IF(P22>0.01,VLOOKUP(A22,'[1]Marine Coating Limits'!$I$3:$L$4,3,FALSE),0) -> 190 | R22: =IF(P22>0.001,IF(P22>Q22,1,0),0) -> 0 | S22: =IF(ISBLANK(C22)," ",IF((H22+K22+N22) >0.001,IF((J22+M22+R22)>=1,"YES","NO"),"INCOMPLETE INFORMATION")) -> NO | T22: =IF(ISBLANK(N22),0,IF(S22="YES",0,IF(A22 = "Equipment Cleaning",1,0))) -> 1 | U22: Contained Flushing: cleaning solvent is flushed or rinsed through equipment in a contained manner as described in 67.18(d)(3)(ii) | X22: =IF(ISBLANK(W22),0,V22*W22/100) -> 0 | Z22: =IF(ISBLANK(Y22),0,V22*Y22/100) -> 0
A23: Equipment Cleaning | B23: Sherwin Williams (Proline Paints) | C23: Methyl Amyl Ketone | D23: R6K30 | E23: =IF(ISBLANK(B23)," ",CONCATENATE($A23,": ",$B23," ",$C23," ",$D23)) -> Equipment Cleaning: Sherwin Williams (Proline Paints) Methyl Amyl Ketone R6K30 | F23: 810 | G23: g/l | H23: =IF($G23 = "lb/gal",($F23*120),$F23) -> 810 | I23: =IF(H23>1,VLOOKUP($A23,'[1]Marine Coating Limits'!$I$3:$L$4,2,FALSE),0) -> 200 | J23: =IF(H23>0.001,IF($H23>$I23,0,1),0) -> 0 | K23: 3.855 | L23: =IF(K23>0.01,VLOOKUP(A23,'[1]Marine Coating Limits'!$I$3:$L$4,4,FALSE),0) -> 20 | M23: =IF(K23>0.0001,IF(K23>L23,0,1),0) -> 1 | N23: 297 | O23: F | P23: =IF($O23 = "F",CONVERT($N23,"F","C"),$N23) -> 147.2222222 | Q23: =IF(P23>0.01,VLOOKUP(A23,'[1]Marine Coating Limits'!$I$3:$L$4,3,FALSE),0) -> 190 | R23: =IF(P23>0.001,IF(P23>Q23,1,0),0) -> 0 | S23: =IF(ISBLANK(C23)," ",IF((H23+K23+N23) >0.001,IF((J23+M23+R23)>=1,"YES","NO"),"INCOMPLETE INFORMATION")) -> YES | T23: =IF(ISBLANK(N23),0,IF(S23="YES",0,IF(A23 = "Equipment Cleaning",1,0))) -> 0 | X23: =IF(ISBLANK(W23),0,V23*W23/100) -> 0 | Z23: =IF(ISBLANK(Y23),0,V23*Y23/100) -> 0
A24: Equipment Cleaning | B24: Sherwin Williams (Proline Paints) | C24: No. 27 E Thinner Paint Thinner | D24: 27 | E24: =IF(ISBLANK(B24)," ",CONCATENATE($A24,": ",$B24," ",$C24," ",$D24)) -> Equipment Cleaning: Sherwin Williams (Proline Paints) No. 27 E Thinner Paint Thinner 27 | F24: 769 | G24: g/l | H24: =IF($G24 = "lb/gal",($F24*120),$F24) -> 769 | I24: =IF(H24>1,VLOOKUP($A24,'[1]Marine Coating Limits'!$I$3:$L$4,2,FALSE),0) -> 200 | J24: =IF(H24>0.001,IF($H24>$I24,0,1),0) -> 0 | K24: 2 | L24: =IF(K24>0.01,VLOOKUP(A24,'[1]Marine Coating Limits'!$I$3:$L$4,4,FALSE),0) -> 20 | M24: =IF(K24>0.0001,IF(K24>L24,0,1),0) -> 1 | N24: 300 | O24: F | P24: =IF($O24 = "F",CONVERT($N24,"F","C"),$N24) -> 148.8888889 | Q24: =IF(P24>0.01,VLOOKUP(A24,'[1]Marine Coating Limits'!$I$3:$L$4,3,FALSE),0) -> 190 | R24: =IF(P24>0.001,IF(P24>Q24,1,0),0) -> 0 | S24: =IF(ISBLANK(C24)," ",IF((H24+K24+N24) >0.001,IF((J24+M24+R24)>=1,"YES","NO"),"INCOMPLETE INFORMATION")) -> YES | T24: =IF(ISBLANK(N24),0,IF(S24="YES",0,IF(A24 = "Equipment Cleaning",1,0))) -> 0 | X24: =IF(ISBLANK(W24),0,V24*W24/100) -> 0 | Z24: =IF(ISBLANK(Y24),0,V24*Y24/100) -> 0
A25: Equipment Cleaning | B25: Sherwin Williams (Proline Paints) | C25: NO. 8 Thinner Expoxy Reducer | D25: 8 | E25: =IF(ISBLANK(B25)," ",CONCATENATE($A25,": ",$B25," ",$C25," ",$D25)) -> Equipment Cleaning: Sherwin Williams (Proline Paints) NO. 8 Thinner Expoxy Reducer 8 | F25: 838 | G25: g/l | H25: =IF($G25 = "lb/gal",($F25*120),$F25) -> 838 | I25: =IF(H25>1,VLOOKUP($A25,'[1]Marine Coating Limits'!$I$3:$L$4,2,FALSE),0) -> 200 | J25: =IF(H25>0.001,IF($H25>$I25,0,1),0) -> 0 | K25: 4.5 | L25: =IF(K25>0.01,VLOOKUP(A25,'[1]Marine Coating Limits'!$I$3:$L$4,4,FALSE),0) -> 20 | M25: =IF(K25>0.0001,IF(K25>L25,0,1),0) -> 1 | N25: 243 | O25: F | P25: =IF($O25 = "F",CONVERT($N25,"F","C"),$N25) -> 117.2222222 | Q25: =IF(P25>0.01,VLOOKUP(A25,'[1]Marine Coating Limits'!$I$3:$L$4,3,FALSE),0) -> 190 | R25: =IF(P25>0.001,IF(P25>Q25,1,0),0) -> 0 | S25: =IF(ISBLANK(C25)," ",IF((H25+K25+N25) >0.001,IF((J25+M25+R25)>=1,"YES","NO"),"INCOMPLETE INFORMATION")) -> YES | T25: =IF(ISBLANK(N25),0,IF(S25="YES",0,IF(A25 = "Equipment Cleaning",1,0))) -> 0 | V25: 7 | W25: 46 | X25: =IF(ISBLANK(W25),0,V25*W25/100) -> 3.22 | Y25: 2 | Z25: =IF(ISBLANK(Y25),0,V25*Y25/100) -> 0.14
A26: Equipment Cleaning | B26: Sunshine Makers, Inc. | C26: Simple Green | D26: 13012 | E26: =IF(ISBLANK(B26)," ",CONCATENATE($A26,": ",$B26," ",$C26," ",$D26)) -> Equipment Cleaning: Sunshine Makers, Inc. Simple Green 13012 | F26: 28 | G26: g/l | H26: =IF($G26 = "lb/gal",($F26*120),$F26) -> 28 | I26: =IF(H26>1,VLOOKUP($A26,'[1]Marine Coating Limits'!$I$3:$L$4,2,FALSE),0) -> 200 | J26: =IF(H26>0.001,IF($H26>$I26,0,1),0) -> 1 | K26: 18 | L26: =IF(K26>0.01,VLOOKUP(A26,'[1]Marine Coating Limits'!$I$3:$L$4,4,FALSE),0) -> 20 | M26: =IF(K26>0.0001,IF(K26>L26,0,1),0) -> 1 | N26: 210 | O26: F | P26: =IF($O26 = "F",CONVERT($N26,"F","C"),$N26) -> 98.88888889 | Q26: =IF(P26>0.01,VLOOKUP(A26,'[1]Marine Coating Limits'!$I$3:$L$4,3,FALSE),0) -> 190 | R26: =IF(P26>0.001,IF(P26>Q26,1,0),0) -> 0 | S26: =IF(ISBLANK(C26)," ",IF((H26+K26+N26) >0.001,IF((J26+M26+R26)>=1,"YES","NO"),"INCOMPLETE INFORMATION")) -> YES | T26: =IF(ISBLANK(N26),0,IF(S26="YES",0,IF(A26 = "Equipment Cleaning",1,0))) -> 0 | X26: =IF(ISBLANK(W26),0,V26*W26/100) -> 0 | Z26: =IF(ISBLANK(Y26),0,V26*Y26/100) -> 0
A27: Surface Preparation | B27: BIO-TEK SOLVENTS, INC. | C27: #134 HI-SOLV | E27: =IF(ISBLANK(B27)," ",CONCATENATE($A27,": ",$B27," ",$C27," ",$D27)) -> Surface Preparation: BIO-TEK SOLVENTS, INC. #134 HI-SOLV | F27: 787 | G27: g/l | H27: =IF($G27 = "lb/gal",($F27*120),$F27) -> 787 | I27: =IF(H27>1,VLOOKUP($A27,'[1]Marine Coating Limits'!$I$3:$L$4,2,FALSE),0) -> 200 | J27: =IF(H27>0.001,IF($H27>$I27,0,1),0) -> 0 | K27: 0.1 | L27: =IF(K27>0.01,VLOOKUP(A27,'[1]Marine Coating Limits'!$I$3:$L$4,4,FALSE),0) -> 45 | M27: =IF(K27>0.0001,IF(K27>L27,0,1),0) -> 1 | N27: 430 | O27: F | P27: =IF($O27 = "F",CONVERT($N27,"F","C"),$N27) -> 221.1111111 | Q27: =IF(P27>0.01,VLOOKUP(A27,'[1]Marine Coating Limits'!$I$3:$L$4,3,FALSE),0) -> 190 | R27: =IF(P27>0.001,IF(P27>Q27,1,0),0) -> 1 | S27: =IF(ISBLANK(C27)," ",IF((H27+K27+N27) >0.001,IF((J27+M27+R27)>=1,"YES","NO"),"INCOMPLETE INFORMATION")) -> YES | T27: =IF(ISBLANK(N27),0,IF(S27="YES",0,IF(A27 = "Equipment Cleaning",1,0))) -> 0 | X27: =IF(ISBLANK(W27),0,V27*W27/100) -> 0 | Z27: =IF(ISBLANK(Y27),0,V27*Y27/100) -> 0
A28: Surface Preparation | B28: Brenntag Pacific | C28: 40/60 MEK/MIBK Wipe Solvent | D28: 628893 | E28: =IF(ISBLANK(B28)," ",CONCATENATE($A28,": ",$B28," ",$C28," ",$D28)) -> Surface Preparation: Brenntag Pacific 40/60 MEK/MIBK Wipe Solvent 628893 | F28: 802 | G28: g/l | H28: =IF($G28 = "lb/gal",($F28*120),$F28) -> 802 | I28: =IF(H28>1,VLOOKUP($A28,'[1]Marine Coating Limits'!$I$3:$L$4,2,FALSE),0) -> 200 | J28: =IF(H28>0.001,IF($H28>$I28,0,1),0) -> 0 | K28: 41.9 | L28: =IF(K28>0.01,VLOOKUP(A28,'[1]Marine Coating Limits'!$I$3:$L$4,4,FALSE),0) -> 45 | M28: =IF(K28>0.0001,IF(K28>L28,0,1),0) -> 1 | N28: 174 | O28: F | P28: =IF($O28 = "F",CONVERT($N28,"F","C"),$N28) -> 78.88888889 | Q28: =IF(P28>0.01,VLOOKUP(A28,'[1]Marine Coating Limits'!$I$3:$L$4,3,FALSE),0) -> 190 | R28: =IF(P28>0.001,IF(P28>Q28,1,0),0) -> 0 | S28: =IF(ISBLANK(C28)," ",IF((H28+K28+N28) >0.001,IF((J28+M28+R28)>=1,"YES","NO"),"INCOMPLETE INFORMATION")) -> YES | T28: =IF(ISBLANK(N28),0,IF(S28="YES",0,IF(A28 = "Equipment Cleaning",1,0))) -> 0 | X28: =IF(ISBLANK(W28),0,V28*W28/100) -> 0 | Z28: =IF(ISBLANK(Y28),0,V28*Y28/100) -> 0
A29: Surface Preparation | B29: Brenntag Pacific | C29: INTERN'L THINNER | D29: GT 4637 | E29: =IF(ISBLANK(B29)," ",CONCATENATE($A29,": ",$B29," ",$C29," ",$D29)) -> Surface Preparation: Brenntag Pacific INTERN'L THINNER GT 4637 | F29: 7.23 | G29: lb/gal | H29: =IF($G29 = "lb/gal",($F29*120),$F29) -> 867.6 | I29: =IF(H29>1,VLOOKUP($A29,'[1]Marine Coating Limits'!$I$3:$L$4,2,FALSE),0) -> 200 | J29: =IF(H29>0.001,IF($H29>$I29,0,1),0) -> 0 | K29: 5.6 | L29: =IF(K29>0.01,VLOOKUP(A29,'[1]Marine Coating Limits'!$I$3:$L$4,4,FALSE),0) -> 45 | M29: =IF(K29>0.0001,IF(K29>L29,0,1),0) -> 1 | N29: 330 | O29: F | P29: =IF($O29 = "F",CONVERT($N29,"F","C"),$N29) -> 165.5555556 | Q29: =IF(P29>0.01,VLOOKUP(A29,'[1]Marine Coating Limits'!$I$3:$L$4,3,FALSE),0) -> 190 | R29: =IF(P29>0.001,IF(P29>Q29,1,0),0) -> 0 | S29: =IF(ISBLANK(C29)," ",IF((H29+K29+N29) >0.001,IF((J29+M29+R29)>=1,"YES","NO"),"INCOMPLETE INFORMATION")) -> YES | T29: =IF(ISBLANK(N29),0,IF(S29="YES",0,IF(A29 = "Equipment Cleaning",1,0))) -> 0 | X29: =IF(ISBLANK(W29),0,V29*W29/100) -> 0 | Z29: =IF(ISBLANK(Y29),0,V29*Y29/100) -> 0
A30: Surface Preparation | B30: Brenntag Pacific | C30: Lacquer Wash | D30: 201-X | E30: =IF(ISBLANK(B30)," ",CONCATENATE($A30,": ",$B30," ",$C30," ",$D30)) -> Surface Preparation: Brenntag Pacific Lacquer Wash 201-X | F30: 622 | G30: g/l | H30: =IF($G30 = "lb/gal",($F30*120),$F30) -> 622 | I30: =IF(H30>1,VLOOKUP($A30,'[1]Marine Coating Limits'!$I$3:$L$4,2,FALSE),0) -> 200 | J30: =IF(H30>0.001,IF($H30>$I30,0,1),0) -> 0 | K30: 37.2 | L30: =IF(K30>0.01,VLOOKUP(A30,'[1]Marine Coating Limits'!$I$3:$L$4,4,FALSE),0) -> 45 | M30: =IF(K30>0.0001,IF(K30>L30,0,1),0) -> 1 | N30: 133 | O30: F | P30: =IF($O30 = "F",CONVERT($N30,"F","C"),$N30) -> 56.11111111 | Q30: =IF(P30>0.01,VLOOKUP(A30,'[1]Marine Coating Limits'!$I$3:$L$4,3,FALSE),0) -> 190 | R30: =IF(P30>0.001,IF(P30>Q30,1,0),0) -> 0 | S30: =IF(ISBLANK(C30)," ",IF((H30+K30+N30) >0.001,IF((J30+M30+R30)>=1,"YES","NO"),"INCOMPLETE INFORMATION")) -> YES | T30: =IF(ISBLANK(N30),0,IF(S30="YES",0,IF(A30 = "Equipment Cleaning",1,0))) -> 0 | X30: =IF(ISBLANK(W30),0,V30*W30/100) -> 0 | Z30: =IF(ISBLANK(Y30),0,V30*Y30/100) -> 0
A31: Surface Preparation | B31: Ellis Paint Co. | C31: ZERO VOC EXEMPT SOLVENT | D31: 80/20 | E31: =IF(ISBLANK(B31)," ",CONCATENATE($A31,": ",$B31," ",$C31," ",$D31)) -> Surface Preparation: Ellis Paint Co. ZERO VOC EXEMPT SOLVENT 80/20 | F31: 0 | G31: g/l | H31: =IF($G31 = "lb/gal",($F31*120),$F31) -> 0 | I31: =IF(H31>1,VLOOKUP($A31,'[1]Marine Coating Limits'!$I$3:$L$4,2,FALSE),0) -> 0 | J31: =IF(H31>0.001,IF($H31>$I31,0,1),0) -> 0 | L31: =IF(K31>0.01,VLOOKUP(A31,'[1]Marine Coating Limits'!$I$3:$L$4,4,FALSE),0) -> 0 | M31: =IF(K31>0.0001,IF(K31>L31,0,1),0) -> 0 | N31: 132.8 | O31: F | P31: =IF($O31 = "F",CONVERT($N31,"F","C"),$N31) -> 56 | Q31: =IF(P31>0.01,VLOOKUP(A31,'[1]Marine Coating Limits'!$I$3:$L$4,3,FALSE),0) -> 190 | R31: =IF(P31>0.001,IF(P31>Q31,1,0),0) -> 0 | S31: Exempt | T31: =IF(ISBLANK(N31),0,IF(S31="YES",0,IF(A31 = "Equipment Cleaning",1,0))) -> 0 | X31: =IF(ISBLANK(W31),0,V31*W31/100) -> 0 | Z31: =IF(ISBLANK(Y31),0,V31*Y31/100) -> 0
A32: Surface Preparation | B32: GENERIC | C32: Isopropyl Alcohol | E32: =IF(ISBLANK(B32)," ",CONCATENATE($A32,": ",$B32," ",$C32," ",$D32)) -> Surface Preparation: GENERIC Isopropyl Alcohol | F32: 787 | G32: g/l | H32: =IF($G32 = "lb/gal",($F32*120),$F32) -> 787 | I32: =IF(H32>1,VLOOKUP($A32,'[1]Marine Coating Limits'!$I$3:$L$4,2,FALSE),0) -> 200 | J32: =IF(H32>0.001,IF($H32>$I32,0,1),0) -> 0 | K32: 31.2 | L32: =IF(K32>0.01,VLOOKUP(A32,'[1]Marine Coating Limits'!$I$3:$L$4,4,FALSE),0) -> 45 | M32: =IF(K32>0.0001,IF(K32>L32,0,1),0) -> 1 | N32: 108 | O32: F | P32: =IF($O32 = "F",CONVERT($N32,"F","C"),$N32) -> 42.22222222 | Q32: =IF(P32>0.01,VLOOKUP(A32,'[1]Marine Coating Limits'!$I$3:$L$4,3,FALSE),0) -> 190 | R32: =IF(P32>0.001,IF(P32>Q32,1,0),0) -> 0 | S32: =IF(ISBLANK(C32)," ",IF((H32+K32+N32) >0.001,IF((J32+M32+R32)>=1,"YES","NO"),"INCOMPLETE INFORMATION")) -> YES | T32: =IF(ISBLANK(N32),0,IF(S32="YES",0,IF(A32 = "Equipment Cleaning",1,0))) -> 0 | X32: =IF(ISBLANK(W32),0,V32*W32/100) -> 0 | Z32: =IF(ISBLANK(Y32),0,V32*Y32/100) -> 0
A33: Surface Preparation | B33: International Paint (USA) Inc. | C33: International Thinner | D33: GTA220 | E33: =IF(ISBLANK(B33)," ",CONCATENATE($A33,": ",$B33," ",$C33," ",$D33)) -> Surface Preparation: International Paint (USA) Inc. International Thinner GTA220 | F33: 849 | G33: g/l | H33: =IF($G33 = "lb/gal",($F33*120),$F33) -> 849 | I33: =IF(H33>1,VLOOKUP($A33,'[1]Marine Coating Limits'!$I$3:$L$4,2,FALSE),0) -> 200 | J33: =IF(H33>0.001,IF($H33>$I33,0,1),0) -> 0 | K33: 6 | L33: =IF(K33>0.01,VLOOKUP(A33,'[1]Marine Coating Limits'!$I$3:$L$4,4,FALSE),0) -> 45 | M33: =IF(K33>0.0001,IF(K33>L33,0,1),0) -> 1 | N33: 243 | O33: F | P33: =IF($O33 = "F",CONVERT($N33,"F","C"),$N33) -> 117.2222222 | Q33: =IF(P33>0.01,VLOOKUP(A33,'[1]Marine Coating Limits'!$I$3:$L$4,3,FALSE),0) -> 190 | R33: =IF(P33>0.001,IF(P33>Q33,1,0),0) -> 0 | S33: =IF(ISBLANK(C33)," ",IF((H33+K33+N33) >0.001,IF((J33+M33+R33)>=1,"YES","NO"),"INCOMPLETE INFORMATION")) -> YES | T33: =IF(ISBLANK(N33),0,IF(S33="YES",0,IF(A33 = "Equipment Cleaning",1,0))) -> 0 | V33: 7.27 | W33: 50 | X33: =IF(ISBLANK(W33),0,V33*W33/100) -> 3.635 | Y33: 10 | Z33: =IF(ISBLANK(Y33),0,V33*Y33/100) -> 0.727
A34: Surface Preparation | B34: ITW American Safety Technologies | C34: S-31 Thinner | D34: S-31 | E34: =IF(ISBLANK(B34)," ",CONCATENATE($A34,": ",$B34," ",$C34," ",$D34)) -> Surface Preparation: ITW American Safety Technologies S-31 Thinner S-31 | F34: 7.25 | G34: lb/gal | H34: =IF($G34 = "lb/gal",($F34*120),$F34) -> 870 | I34: =IF(H34>1,VLOOKUP($A34,'[1]Marine Coating Limits'!$I$3:$L$4,2,FALSE),0) -> 200 | J34: =IF(H34>0.001,IF($H34>$I34,0,1),0) -> 0 | K34: 8 | L34: =IF(K34>0.01,VLOOKUP(A34,'[1]Marine Coating Limits'!$I$3:$L$4,4,FALSE),0) -> 45 | M34: =IF(K34>0.0001,IF(K34>L34,0,1),0) -> 1 | N34: 280 | O34: F | P34: =IF($O34 = "F",CONVERT($N34,"F","C"),$N34) -> 137.7777778 | Q34: =IF(P34>0.01,VLOOKUP(A34,'[1]Marine Coating Limits'!$I$3:$L$4,3,FALSE),0) -> 190 | R34: =IF(P34>0.001,IF(P34>Q34,1,0),0) -> 0 | S34: =IF(ISBLANK(C34)," ",IF((H34+K34+N34) >0.001,IF((J34+M34+R34)>=1,"YES","NO"),"INCOMPLETE INFORMATION")) -> YES | T34: =IF(ISBLANK(N34),0,IF(S34="YES",0,IF(A34 = "Equipment Cleaning",1,0))) -> 0 | X34: =IF(ISBLANK(W34),0,V34*W34/100) -> 0 | Z34: =IF(ISBLANK(Y34),0,V34*Y34/100) -> 0
A35: Surface Preparation | B35: ITW American Safety Technologies | C35: S-426 | D35: MS901E | E35: =IF(ISBLANK(B35)," ",CONCATENATE($A35,": ",$B35," ",$C35," ",$D35)) -> Surface Preparation: ITW American Safety Technologies S-426 MS901E | F35: 856 | G35: g/l | H35: =IF($G35 = "lb/gal",($F35*120),$F35) -> 856 | I35: =IF(H35>1,VLOOKUP($A35,'[1]Marine Coating Limits'!$I$3:$L$4,2,FALSE),0) -> 200 | J35: =IF(H35>0.001,IF($H35>$I35,0,1),0) -> 0 | K35: 8 | L35: =IF(K35>0.01,VLOOKUP(A35,'[1]Marine Coating Limits'!$I$3:$L$4,4,FALSE),0) -> 45 | M35: =IF(K35>0.0001,IF(K35>L35,0,1),0) -> 1 | N35: 246 | O35: F | P35: =IF($O35 = "F",CONVERT($N35,"F","C"),$N35) -> 118.8888889 | Q35: =IF(P35>0.01,VLOOKUP(A35,'[1]Marine Coating Limits'!$I$3:$L$4,3,FALSE),0) -> 190 | R35: =IF(P35>0.001,IF(P35>Q35,1,0),0) -> 0 | S35: =IF(ISBLANK(C35)," ",IF((H35+K35+N35) >0.001,IF((J35+M35+R35)>=1,"YES","NO"),"INCOMPLETE INFORMATION")) -> YES | T35: =IF(ISBLANK(N35),0,IF(S35="YES",0,IF(A35 = "Equipment Cleaning",1,0))) -> 0 | X35: =IF(ISBLANK(W35),0,V35*W35/100) -> 0 | Z35: =IF(ISBLANK(Y35),0,V35*Y35/100) -> 0
A36: Surface Preparation | B36: Master's Touch | C36: SOLVENT DEGREASER-ZERO V.O.C. | D36: MT-34019CS | E36: =IF(ISBLANK(B36)," ",CONCATENATE($A36,": ",$B36," ",$C36," ",$D36)) -> Surface Preparation: Master's Touch SOLVENT DEGREASER-ZERO V.O.C. MT-34019CS | F36: 0 | G36: lb/gal | H36: =IF($G36 = "lb/gal",($F36*120),$F36) -> 0 | I36: =IF(H36>1,VLOOKUP($A36,'[1]Marine Coating Limits'!$I$3:$L$4,2,FALSE),0) -> 0 | J36: =IF(H36>0.001,IF($H36>$I36,0,1),0) -> 0 | K36: 2.6 | L36: =IF(K36>0.01,VLOOKUP(A36,'[1]Marine Coating Limits'!$I$3:$L$4,4,FALSE),0) -> 45 | M36: =IF(K36>0.0001,IF(K36>L36,0,1),0) -> 1 | N36: 250 | O36: F | P36: =IF($O36 = "F",CONVERT($N36,"F","C"),$N36) -> 121.1111111 | Q36: =IF(P36>0.01,VLOOKUP(A36,'[1]Marine Coating Limits'!$I$3:$L$4,3,FALSE),0) -> 190 | R36: =IF(P36>0.001,IF(P36>Q36,1,0),0) -> 0 | S36: =IF(ISBLANK(C36)," ",IF((H36+K36+N36) >0.001,IF((J36+M36+R36)>=1,"YES","NO"),"INCOMPLETE INFORMATION")) -> YES | T36: =IF(ISBLANK(N36),0,IF(S36="YES",0,IF(A36 = "Equipment Cleaning",1,0))) -> 0 | X36: =IF(ISBLANK(W36),0,V36*W36/100) -> 0 | Z36: =IF(ISBLANK(Y36),0,V36*Y36/100) -> 0
A37: Surface Preparation | B37: PPG | C37: T-10 THINNER 010T0000 | D37: ATT10/04 | E37: =IF(ISBLANK(B37)," ",CONCATENATE($A37,": ",$B37," ",$C37," ",$D37)) -> Surface Preparation: PPG T-10 THINNER 010T0000 ATT10/04 | F37: 836 | G37: g/l | H37: =IF($G37 = "lb/gal",($F37*120),$F37) -> 836 | I37: =IF(H37>1,VLOOKUP($A37,'[1]Marine Coating Limits'!$I$3:$L$4,2,FALSE),0) -> 200 | J37: =IF(H37>0.001,IF($H37>$I37,0,1),0) -> 0 | K37: 4.2 | L37: =IF(K37>0.01,VLOOKUP(A37,'[1]Marine Coating Limits'!$I$3:$L$4,4,FALSE),0) -> 45 | M37: =IF(K37>0.0001,IF(K37>L37,0,1),0) -> 1 | N37: 100 | O37: F | P37: =IF($O37 = "F",CONVERT($N37,"F","C"),$N37) -> 37.77777778 | Q37: =IF(P37>0.01,VLOOKUP(A37,'[1]Marine Coating Limits'!$I$3:$L$4,3,FALSE),0) -> 190 | R37: =IF(P37>0.001,IF(P37>Q37,1,0),0) -> 0 | S37: =IF(ISBLANK(C37)," ",IF((H37+K37+N37) >0.001,IF((J37+M37+R37)>=1,"YES","NO"),"INCOMPLETE INFORMATION")) -> YES | T37: =IF(ISBLANK(N37),0,IF(S37="YES",0,IF(A37 = "Equipment Cleaning",1,0))) -> 0 | V37: 6.93 | W37: 40 | X37: =IF(ISBLANK(W37),0,V37*W37/100) -> 2.772 | Y37: 40 | Z37: =IF(ISBLANK(Y37),0,V37*Y37/100) -> 2.772
A38: Surface Preparation | B38: Sherwin Williams (Proline Paints) | C38: Acetone | D38: ACETONE/SW | E38: =IF(ISBLANK(B38)," ",CONCATENATE($A38,": ",$B38," ",$C38," ",$D38)) -> Surface Preparation: Sherwin Williams (Proline Paints) Acetone ACETONE/SW | F38: 0 | G38: g/l | H38: =IF($G38 = "lb/gal",($F38*120),$F38) -> 0 | I38: =IF(H38>1,VLOOKUP($A38,'[1]Marine Coating Limits'!$I$3:$L$4,2,FALSE),0) -> 0 | J38: =IF(H38>0.001,IF($H38>$I38,0,1),0) -> 0 | L38: =IF(K38>0.01,VLOOKUP(A38,'[1]Marine Coating Limits'!$I$3:$L$4,4,FALSE),0) -> 0 | M38: =IF(K38>0.0001,IF(K38>L38,0,1),0) -> 0 | N38: 132 | O38: F | P38: =IF($O38 = "F",CONVERT($N38,"F","C"),$N38) -> 55.55555556 | Q38: =IF(P38>0.01,VLOOKUP(A38,'[1]Marine Coating Limits'!$I$3:$L$4,3,FALSE),0) -> 190 | R38: =IF(P38>0.001,IF(P38>Q38,1,0),0) -> 0 | S38: Exempt | T38: =IF(ISBLANK(N38),0,IF(S38="YES",0,IF(A38 = "Equipment Cleaning",1,0))) -> 0 | X38: =IF(ISBLANK(W38),0,V38*W38/100) -> 0 | Z38: =IF(ISBLANK(Y38),0,V38*Y38/100) -> 0
A39: Surface Preparation | B39: Sherwin Williams (Proline Paints) | C39: Acetone | D39: R6K9 | E39: =IF(ISBLANK(B39)," ",CONCATENATE($A39,": ",$B39," ",$C39," ",$D39)) -> Surface Preparation: Sherwin Williams (Proline Paints) Acetone R6K9 | H39: =IF($G39 = "lb/gal",($F39*120),$F39) -> 0 | I39: =IF(H39>1,VLOOKUP($A39,'[1]Marine Coating Limits'!$I$3:$L$4,2,FALSE),0) -> 0 | J39: =IF(H39>0.001,IF($H39>$I39,0,1),0) -> 0 | L39: =IF(K39>0.01,VLOOKUP(A39,'[1]Marine Coating Limits'!$I$3:$L$4,4,FALSE),0) -> 0 | M39: =IF(K39>0.0001,IF(K39>L39,0,1),0) -> 0 | N39: 132 | O39: F | P39: =IF($O39 = "F",CONVERT($N39,"F","C"),$N39) -> 55.55555556 | Q39: =IF(P39>0.01,VLOOKUP(A39,'[1]Marine Coating Limits'!$I$3:$L$4,3,FALSE),0) -> 190 | R39: =IF(P39>0.001,IF(P39>Q39,1,0),0) -> 0 | S39: Exempt | T39: =IF(ISBLANK(N39),0,IF(S39="YES",0,IF(A39 = "Equipment Cleaning",1,0))) -> 0 | X39: =IF(ISBLANK(W39),0,V39*W39/100) -> 0 | Z39: =IF(ISBLANK(Y39),0,V39*Y39/100) -> 0
A40: Surface Preparation | B40: Sherwin Williams (Proline Paints) | C40: All Purpose Cleaner Degreaser | D40: 747 | E40: =IF(ISBLANK(B40)," ",CONCATENATE($A40,": ",$B40," ",$C40," ",$D40)) -> Surface Preparation: Sherwin Williams (Proline Paints) All Purpose Cleaner Degreaser 747 | F40: 0 | G40: lb/gal | H40: =IF($G40 = "lb/gal",($F40*120),$F40) -> 0 | I40: =IF(H40>1,VLOOKUP($A40,'[1]Marine Coating Limits'!$I$3:$L$4,2,FALSE),0) -> 0 | J40: =IF(H40>0.001,IF($H40>$I40,0,1),0) -> 0 | K40: 30.99 | L40: =IF(K40>0.01,VLOOKUP(A40,'[1]Marine Coating Limits'!$I$3:$L$4,4,FALSE),0) -> 45 | M40: =IF(K40>0.0001,IF(K40>L40,0,1),0) -> 1 | N40: 212 | O40: F | P40: =IF($O40 = "F",CONVERT($N40,"F","C"),$N40) -> 100 | Q40: =IF(P40>0.01,VLOOKUP(A40,'[1]Marine Coating Limits'!$I$3:$L$4,3,FALSE),0) -> 190 | R40: =IF(P40>0.001,IF(P40>Q40,1,0),0) -> 0 | S40: =IF(ISBLANK(C40)," ",IF((H40+K40+N40) >0.001,IF((J40+M40+R40)>=1,"YES","NO"),"INCOMPLETE INFORMATION")) -> YES | T40: =IF(ISBLANK(N40),0,IF(S40="YES",0,IF(A40 = "Equipment Cleaning",1,0))) -> 0 | X40: =IF(ISBLANK(W40),0,V40*W40/100) -> 0 | Z40: =IF(ISBLANK(Y40),0,V40*Y40/100) -> 0
A41: Surface Preparation | B41: Sherwin Williams (Proline Paints) | C41: Isopropyl Alcohol | D41: R6K20 | E41: =IF(ISBLANK(B41)," ",CONCATENATE($A41,": ",$B41," ",$C41," ",$D41)) -> Surface Preparation: Sherwin Williams (Proline Paints) Isopropyl Alcohol R6K20 | F41: 6.51 | G41: lb/gal | H41: =IF($G41 = "lb/gal",($F41*120),$F41) -> 781.2 | I41: =IF(H41>1,VLOOKUP($A41,'[1]Marine Coating Limits'!$I$3:$L$4,2,FALSE),0) -> 200 | J41: =IF(H41>0.001,IF($H41>$I41,0,1),0) -> 0 | K41: 33 | L41: =IF(K41>0.01,VLOOKUP(A41,'[1]Marine Coating Limits'!$I$3:$L$4,4,FALSE),0) -> 45 | M41: =IF(K41>0.0001,IF(K41>L41,0,1),0) -> 1 | N41: 178 | O41: F | P41: =IF($O41 = "F",CONVERT($N41,"F","C"),$N41) -> 81.11111111 | Q41: =IF(P41>0.01,VLOOKUP(A41,'[1]Marine Coating Limits'!$I$3:$L$4,3,FALSE),0) -> 190 | R41: =IF(P41>0.001,IF(P41>Q41,1,0),0) -> 0 | S41: =IF(ISBLANK(C41)," ",IF((H41+K41+N41) >0.001,IF((J41+M41+R41)>=1,"YES","NO"),"INCOMPLETE INFORMATION")) -> YES | T41: =IF(ISBLANK(N41),0,IF(S41="YES",0,IF(A41 = "Equipment Cleaning",1,0))) -> 0 | X41: =IF(ISBLANK(W41),0,V41*W41/100) -> 0 | Z41: =IF(ISBLANK(Y41),0,V41*Y41/100) -> 0
A42: Surface Preparation | B42: Sherwin Williams (Proline Paints) | C42: Methyl Amyl Ketone | D42: R6K30 | E42: =IF(ISBLANK(B42)," ",CONCATENATE($A42,": ",$B42," ",$C42," ",$D42)) -> Surface Preparation: Sherwin Williams (Proline Paints) Methyl Amyl Ketone R6K30 | F42: 810 | G42: g/l | H42: =IF($G42 = "lb/gal",($F42*120),$F42) -> 810 | I42: =IF(H42>1,VLOOKUP($A42,'[1]Marine Coating Limits'!$I$3:$L$4,2,FALSE),0) -> 200 | J42: =IF(H42>0.001,IF($H42>$I42,0,1),0) -> 0 | K42: 3.855 | L42: =IF(K42>0.01,VLOOKUP(A42,'[1]Marine Coating Limits'!$I$3:$L$4,4,FALSE),0) -> 45 | M42: =IF(K42>0.0001,IF(K42>L42,0,1),0) -> 1 | N42: 297 | O42: F | P42: =IF($O42 = "F",CONVERT($N42,"F","C"),$N42) -> 147.2222222 | Q42: =IF(P42>0.01,VLOOKUP(A42,'[1]Marine Coating Limits'!$I$3:$L$4,3,FALSE),0) -> 190 | R42: =IF(P42>0.001,IF(P42>Q42,1,0),0) -> 0 | S42: =IF(ISBLANK(C42)," ",IF((H42+K42+N42) >0.001,IF((J42+M42+R42)>=1,"YES","NO"),"INCOMPLETE INFORMATION")) -> YES | T42: =IF(ISBLANK(N42),0,IF(S42="YES",0,IF(A42 = "Equipment Cleaning",1,0))) -> 0 | X42: =IF(ISBLANK(W42),0,V42*W42/100) -> 0 | Z42: =IF(ISBLANK(Y42),0,V42*Y42/100) -> 0
A43: Surface Preparation | B43: Sherwin Williams (Proline Paints) | C43: NO. 8 Thinner Expoxy Reducer | D43: 8 | E43: =IF(ISBLANK(B43)," ",CONCATENATE($A43,": ",$B43," ",$C43," ",$D43)) -> Surface Preparation: Sherwin Williams (Proline Paints) NO. 8 Thinner Expoxy Reducer 8 | F43: 838 | G43: g/l | H43: =IF($G43 = "lb/gal",($F43*120),$F43) -> 838 | I43: =IF(H43>1,VLOOKUP($A43,'[1]Marine Coating Limits'!$I$3:$L$4,2,FALSE),0) -> 200 | J43: =IF(H43>0.001,IF($H43>$I43,0,1),0) -> 0 | K43: 4.5 | L43: =IF(K43>0.01,VLOOKUP(A43,'[1]Marine Coating Limits'!$I$3:$L$4,4,FALSE),0) -> 45 | M43: =IF(K43>0.0001,IF(K43>L43,0,1),0) -> 1 | N43: 243 | O43: F | P43: =IF($O43 = "F",CONVERT($N43,"F","C"),$N43) -> 117.2222222 | Q43: =IF(P43>0.01,VLOOKUP(A43,'[1]Marine Coating Limits'!$I$3:$L$4,3,FALSE),0) -> 190 | R43: =IF(P43>0.001,IF(P43>Q43,1,0),0) -> 0 | S43: =IF(ISBLANK(C43)," ",IF((H43+K43+N43) >0.001,IF((J43+M43+R43)>=1,"YES","NO"),"INCOMPLETE INFORMATION")) -> YES | T43: =IF(ISBLANK(N43),0,IF(S43="YES",0,IF(A43 = "Equipment Cleaning",1,0))) -> 0 | X43: =IF(ISBLANK(W43),0,V43*W43/100) -> 0 | Z43: =IF(ISBLANK(Y43),0,V43*Y43/100) -> 0
A44: Surface Preparation | B44: Sunshine Makers, Inc. | C44: Simple Green | D44: 13012 | E44: =IF(ISBLANK(B44)," ",CONCATENATE($A44,": ",$B44," ",$C44," ",$D44)) -> Surface Preparation: Sunshine Makers, Inc. Simple Green 13012 | F44: 28 | G44: g/l | H44: 28 | I44: 200 | J44: 1 | K44: 18 | L44: 45 | M44: 1 | N44: 210 | O44: F | P44: =IF($O44 = "F",CONVERT($N44,"F","C"),$N44) -> 98.88888889 | Q44: =IF(P44>0.01,VLOOKUP(A44,'[1]Marine Coating Limits'!$I$3:$L$4,3,FALSE),0) -> 190 | R44: =IF(P44>0.001,IF(P44>Q44,1,0),0) -> 0 | S44: =IF(ISBLANK(C44)," ",IF((H44+K44+N44) >0.001,IF((J44+M44+R44)>=1,"YES","NO"),"INCOMPLETE INFORMATION")) -> YES | T44: =IF(ISBLANK(N44),0,IF(S44="YES",0,IF(A44 = "Equipment Cleaning",1,0))) -> 0 | X44: =IF(ISBLANK(W44),0,V44*W44/100) -> 0 | Z44: =IF(ISBLANK(Y44),0,V44*Y44/100) -> 0
E45: =IF(ISBLANK(B45)," ",CONCATENATE($A45,": ",$B45," ",$C45," ",$D45)) ->  | H45: =IF($G45 = "lb/gal",($F45*120),$F45) -> 0 | I45: =IF(H45>1,VLOOKUP($A45,'[1]Marine Coating Limits'!$I$3:$L$4,2,FALSE),0) -> 0 | J45: =IF(H45>0.001,IF($H45>$I45,0,1),0) -> 0 | L45: =IF(K45>0.01,VLOOKUP(A45,'[1]Marine Coating Limits'!$I$3:$L$4,4,FALSE),0) -> 0 | M45: =IF(K45>0.0001,IF(K45>L45,0,1),0) -> 0 | P45: =IF($O45 = "F",CONVERT($N45,"F","C"),$N45) -> 0 | Q45: =IF(P45>0.01,VLOOKUP(A45,'[1]Marine Coating Limits'!$I$3:$L$4,3,FALSE),0) -> 0 | R45: =IF(P45>0.001,IF(P45>Q45,1,0),0) -> 0 | S45: =IF(ISBLANK(C45)," ",IF((H45+K45+N45) >0.001,IF((J45+M45+R45)>=1,"YES","NO"),"INCOMPLETE INFORMATION")) ->  | T45: =IF(ISBLANK(N45),0,IF(S45="YES",0,IF(A45 = "Equipment Cleaning",1,0))) -> 0 | X45: =IF(ISBLANK(W45),0,V45*W45/100) -> 0 | Z45: =IF(ISBLANK(Y45),0,V45*Y45/100) -> 0
E46: =IF(ISBLANK(B46)," ",CONCATENATE($A46,": ",$B46," ",$C46," ",$D46)) ->  | H46: =IF($G46 = "lb/gal",($F46*120),$F46) -> 0 | I46: =IF(H46>1,VLOOKUP($A46,'[1]Marine Coating Limits'!$I$3:$L$4,2,FALSE),0) -> 0 | J46: =IF(H46>0.001,IF($H46>$I46,0,1),0) -> 0 | L46: =IF(K46>0.01,VLOOKUP(A46,'[1]Marine Coating Limits'!$I$3:$L$4,4,FALSE),0) -> 0 | M46: =IF(K46>0.0001,IF(K46>L46,0,1),0) -> 0 | P46: =IF($O46 = "F",CONVERT($N46,"F","C"),$N46) -> 0 | Q46: =IF(P46>0.01,VLOOKUP(A46,'[1]Marine Coating Limits'!$I$3:$L$4,3,FALSE),0) -> 0 | R46: =IF(P46>0.001,IF(P46>Q46,1,0),0) -> 0 | S46: =IF(ISBLANK(C46)," ",IF((H46+K46+N46) >0.001,IF((J46+M46+R46)>=1,"YES","NO"),"INCOMPLETE INFORMATION")) ->  | T46: =IF(ISBLANK(N46),0,IF(S46="YES",0,IF(A46 = "Equipment Cleaning",1,0))) -> 0 | X46: =IF(ISBLANK(W46),0,V46*W46/100) -> 0 | Z46: =IF(ISBLANK(Y46),0,V46*Y46/100) -> 0
E47: =IF(ISBLANK(B47)," ",CONCATENATE($A47,": ",$B47," ",$C47," ",$D47)) ->  | H47: =IF($G47 = "lb/gal",($F47*120),$F47) -> 0 | I47: =IF(H47>1,VLOOKUP($A47,'[1]Marine Coating Limits'!$I$3:$L$4,2,FALSE),0) -> 0 | J47: =IF(H47>0.001,IF($H47>$I47,0,1),0) -> 0 | L47: =IF(K47>0.01,VLOOKUP(A47,'[1]Marine Coating Limits'!$I$3:$L$4,4,FALSE),0) -> 0 | M47: =IF(K47>0.0001,IF(K47>L47,0,1),0) -> 0 | P47: =IF($O47 = "F",CONVERT($N47,"F","C"),$N47) -> 0 | Q47: =IF(P47>0.01,VLOOKUP(A47,'[1]Marine Coating Limits'!$I$3:$L$4,3,FALSE),0) -> 0 | R47: =IF(P47>0.001,IF(P47>Q47,1,0),0) -> 0 | S47: =IF(ISBLANK(C47)," ",IF((H47+K47+N47) >0.001,IF((J47+M47+R47)>=1,"YES","NO"),"INCOMPLETE INFORMATION")) ->  | T47: =IF(ISBLANK(N47),0,IF(S47="YES",0,IF(A47 = "Equipment Cleaning",1,0))) -> 0 | X47: =IF(ISBLANK(W47),0,V47*W47/100) -> 0 | Z47: =IF(ISBLANK(Y47),0,V47*Y47/100) -> 0
E48: =IF(ISBLANK(B48)," ",CONCATENATE($A48,": ",$B48," ",$C48," ",$D48)) ->  | H48: =IF($G48 = "lb/gal",($F48*120),$F48) -> 0 | I48: =IF(H48>1,VLOOKUP($A48,'[1]Marine Coating Limits'!$I$3:$L$4,2,FALSE),0) -> 0 | J48: =IF(H48>0.001,IF($H48>$I48,0,1),0) -> 0 | L48: =IF(K48>0.01,VLOOKUP(A48,'[1]Marine Coating Limits'!$I$3:$L$4,4,FALSE),0) -> 0 | M48: =IF(K48>0.0001,IF(K48>L48,0,1),0) -> 0 | P48: =IF($O48 = "F",CONVERT($N48,"F","C"),$N48) -> 0 | Q48: =IF(P48>0.01,VLOOKUP(A48,'[1]Marine Coating Limits'!$I$3:$L$4,3,FALSE),0) -> 0 | R48: =IF(P48>0.001,IF(P48>Q48,1,0),0) -> 0 | S48: =IF(ISBLANK(C48)," ",IF((H48+K48+N48) >0.001,IF((J48+M48+R48)>=1,"YES","NO"),"INCOMPLETE INFORMATION")) ->  | T48: =IF(ISBLANK(N48),0,IF(S48="YES",0,IF(A48 = "Equipment Cleaning",1,0))) -> 0 | X48: =IF(ISBLANK(W48),0,V48*W48/100) -> 0 | Z48: =IF(ISBLANK(Y48),0,V48*Y48/100) -> 0
E49: =IF(ISBLANK(B49)," ",CONCATENATE($A49,": ",$B49," ",$C49," ",$D49)) ->  | H49: =IF($G49 = "lb/gal",($F49*120),$F49) -> 0 | I49: =IF(H49>1,VLOOKUP($A49,'[1]Marine Coating Limits'!$I$3:$L$4,2,FALSE),0) -> 0 | J49: =IF(H49>0.001,IF($H49>$I49,0,1),0) -> 0 | L49: =IF(K49>0.01,VLOOKUP(A49,'[1]Marine Coating Limits'!$I$3:$L$4,4,FALSE),0) -> 0 | M49: =IF(K49>0.0001,IF(K49>L49,0,1),0) -> 0 | P49: =IF($O49 = "F",CONVERT($N49,"F","C"),$N49) -> 0 | Q49: =IF(P49>0.01,VLOOKUP(A49,'[1]Marine Coating Limits'!$I$3:$L$4,3,FALSE),0) -> 0 | R49: =IF(P49>0.001,IF(P49>Q49,1,0),0) -> 0 | S49: =IF(ISBLANK(C49)," ",IF((H49+K49+N49) >0.001,IF((J49+M49+R49)>=1,"YES","NO"),"INCOMPLETE INFORMATION")) ->  | T49: =IF(ISBLANK(N49),0,IF(S49="YES",0,IF(A49 = "Equipment Cleaning",1,0))) -> 0 | X49: =IF(ISBLANK(W49),0,V49*W49/100) -> 0 | Z49: =IF(ISBLANK(Y49),0,V49*Y49/100) -> 0
E50: =IF(ISBLANK(B50)," ",CONCATENATE($A50,": ",$B50," ",$C50," ",$D50)) ->  | H50: =IF($G50 = "lb/gal",($F50*120),$F50) -> 0 | I50: =IF(H50>1,VLOOKUP($A50,'[1]Marine Coating Limits'!$I$3:$L$4,2,FALSE),0) -> 0 | J50: =IF(H50>0.001,IF($H50>$I50,0,1),0) -> 0 | L50: =IF(K50>0.01,VLOOKUP(A50,'[1]Marine Coating Limits'!$I$3:$L$4,4,FALSE),0) -> 0 | M50: =IF(K50>0.0001,IF(K50>L50,0,1),0) -> 0 | P50: =IF($O50 = "F",CONVERT($N50,"F","C"),$N50) -> 0 | Q50: =IF(P50>0.01,VLOOKUP(A50,'[1]Marine Coating Limits'!$I$3:$L$4,3,FALSE),0) -> 0 | R50: =IF(P50>0.001,IF(P50>Q50,1,0),0) -> 0 | S50: =IF(ISBLANK(C50)," ",IF((H50+K50+N50) >0.001,IF((J50+M50+R50)>=1,"YES","NO"),"INCOMPLETE INFORMATION")) ->  | T50: =IF(ISBLANK(N50),0,IF(S50="YES",0,IF(A50 = "Equipment Cleaning",1,0))) -> 0 | X50: =IF(ISBLANK(W50),0,V50*W50/100) -> 0 | Z50: =IF(ISBLANK(Y50),0,V50*Y50/100) -> 0
E51: =IF(ISBLANK(B51)," ",CONCATENATE($A51,": ",$B51," ",$C51," ",$D51)) ->  | H51: =IF($G51 = "lb/gal",($F51*120),$F51) -> 0 | I51: =IF(H51>1,VLOOKUP($A51,'[1]Marine Coating Limits'!$I$3:$L$4,2,FALSE),0) -> 0 | J51: =IF(H51>0.001,IF($H51>$I51,0,1),0) -> 0 | L51: =IF(K51>0.01,VLOOKUP(A51,'[1]Marine Coating Limits'!$I$3:$L$4,4,FALSE),0) -> 0 | M51: =IF(K51>0.0001,IF(K51>L51,0,1),0) -> 0 | P51: =IF($O51 = "F",CONVERT($N51,"F","C"),$N51) -> 0 | Q51: =IF(P51>0.01,VLOOKUP(A51,'[1]Marine Coating Limits'!$I$3:$L$4,3,FALSE),0) -> 0 | R51: =IF(P51>0.001,IF(P51>Q51,1,0),0) -> 0 | S51: =IF(ISBLANK(C51)," ",IF((H51+K51+N51) >0.001,IF((J51+M51+R51)>=1,"YES","NO"),"INCOMPLETE INFORMATION")) ->  | T51: =IF(ISBLANK(N51),0,IF(S51="YES",0,IF(A51 = "Equipment Cleaning",1,0))) -> 0 | X51: =IF(ISBLANK(W51),0,V51*W51/100) -> 0 | Z51: =IF(ISBLANK(Y51),0,V51*Y51/100) -> 0
E52: =IF(ISBLANK(B52)," ",CONCATENATE($A52,": ",$B52," ",$C52," ",$D52)) ->  | H52: =IF($G52 = "lb/gal",($F52*120),$F52) -> 0 | I52: =IF(H52>1,VLOOKUP($A52,'[1]Marine Coating Limits'!$I$3:$L$4,2,FALSE),0) -> 0 | J52: =IF(H52>0.001,IF($H52>$I52,0,1),0) -> 0 | L52: =IF(K52>0.01,VLOOKUP(A52,'[1]Marine Coating Limits'!$I$3:$L$4,4,FALSE),0) -> 0 | M52: =IF(K52>0.0001,IF(K52>L52,0,1),0) -> 0 | P52: =IF($O52 = "F",CONVERT($N52,"F","C"),$N52) -> 0 | Q52: =IF(P52>0.01,VLOOKUP(A52,'[1]Marine Coating Limits'!$I$3:$L$4,3,FALSE),0) -> 0 | R52: =IF(P52>0.001,IF(P52>Q52,1,0),0) -> 0 | S52: =IF(ISBLANK(C52)," ",IF((H52+K52+N52) >0.001,IF((J52+M52+R52)>=1,"YES","NO"),"INCOMPLETE INFORMATION")) ->  | T52: =IF(ISBLANK(N52),0,IF(S52="YES",0,IF(A52 = "Equipment Cleaning",1,0))) -> 0 | X52: =IF(ISBLANK(W52),0,V52*W52/100) -> 0 | Z52: =IF(ISBLANK(Y52),0,V52*Y52/100) -> 0
E53: =IF(ISBLANK(B53)," ",CONCATENATE($A53,": ",$B53," ",$C53," ",$D53)) ->  | H53: =IF($G53 = "lb/gal",($F53*120),$F53) -> 0 | I53: =IF(H53>1,VLOOKUP($A53,'[1]Marine Coating Limits'!$I$3:$L$4,2,FALSE),0) -> 0 | J53: =IF(H53>0.001,IF($H53>$I53,0,1),0) -> 0 | L53: =IF(K53>0.01,VLOOKUP(A53,'[1]Marine Coating Limits'!$I$3:$L$4,4,FALSE),0) -> 0 | M53: =IF(K53>0.0001,IF(K53>L53,0,1),0) -> 0 | P53: =IF($O53 = "F",CONVERT($N53,"F","C"),$N53) -> 0 | Q53: =IF(P53>0.01,VLOOKUP(A53,'[1]Marine Coating Limits'!$I$3:$L$4,3,FALSE),0) -> 0 | R53: =IF(P53>0.001,IF(P53>Q53,1,0),0) -> 0 | S53: =IF(ISBLANK(C53)," ",IF((H53+K53+N53) >0.001,IF((J53+M53+R53)>=1,"YES","NO"),"INCOMPLETE INFORMATION")) ->  | T53: =IF(ISBLANK(N53),0,IF(S53="YES",0,IF(A53 = "Equipment Cleaning",1,0))) -> 0 | X53: =IF(ISBLANK(W53),0,V53*W53/100) -> 0 | Z53: =IF(ISBLANK(Y53),0,V53*Y53/100) -> 0
E54: =IF(ISBLANK(B54)," ",CONCATENATE($A54,": ",$B54," ",$C54," ",$D54)) ->  | H54: =IF($G54 = "lb/gal",($F54*120),$F54) -> 0 | I54: =IF(H54>1,VLOOKUP($A54,'[1]Marine Coating Limits'!$I$3:$L$4,2,FALSE),0) -> 0 | J54: =IF(H54>0.001,IF($H54>$I54,0,1),0) -> 0 | L54: =IF(K54>0.01,VLOOKUP(A54,'[1]Marine Coating Limits'!$I$3:$L$4,4,FALSE),0) -> 0 | M54: =IF(K54>0.0001,IF(K54>L54,0,1),0) -> 0 | P54: =IF($O54 = "F",CONVERT($N54,"F","C"),$N54) -> 0 | Q54: =IF(P54>0.01,VLOOKUP(A54,'[1]Marine Coating Limits'!$I$3:$L$4,3,FALSE),0) -> 0 | R54: =IF(P54>0.001,IF(P54>Q54,1,0),0) -> 0 | S54: =IF(ISBLANK(C54)," ",IF((H54+K54+N54) >0.001,IF((J54+M54+R54)>=1,"YES","NO"),"INCOMPLETE INFORMATION")) ->  | T54: =IF(ISBLANK(N54),0,IF(S54="YES",0,IF(A54 = "Equipment Cleaning",1,0))) -> 0 | X54: =IF(ISBLANK(W54),0,V54*W54/100) -> 0 | Z54: =IF(ISBLANK(Y54),0,V54*Y54/100) -> 0
E55: =IF(ISBLANK(B55)," ",CONCATENATE($A55,": ",$B55," ",$C55," ",$D55)) ->  | H55: =IF($G55 = "lb/gal",($F55*120),$F55) -> 0 | I55: =IF(H55>1,VLOOKUP($A55,'[1]Marine Coating Limits'!$I$3:$L$4,2,FALSE),0) -> 0 | J55: =IF(H55>0.001,IF($H55>$I55,0,1),0) -> 0 | L55: =IF(K55>0.01,VLOOKUP(A55,'[1]Marine Coating Limits'!$I$3:$L$4,4,FALSE),0) -> 0 | M55: =IF(K55>0.0001,IF(K55>L55,0,1),0) -> 0 | P55: =IF($O55 = "F",CONVERT($N55,"F","C"),$N55) -> 0 | Q55: =IF(P55>0.01,VLOOKUP(A55,'[1]Marine Coating Limits'!$I$3:$L$4,3,FALSE),0) -> 0 | R55: =IF(P55>0.001,IF(P55>Q55,1,0),0) -> 0 | S55: =IF(ISBLANK(C55)," ",IF((H55+K55+N55) >0.001,IF((J55+M55+R55)>=1,"YES","NO"),"INCOMPLETE INFORMATION")) ->  | T55: =IF(ISBLANK(N55),0,IF(S55="YES",0,IF(A55 = "Equipment Cleaning",1,0))) -> 0 | X55: =IF(ISBLANK(W55),0,V55*W55/100) -> 0 | Z55: =IF(ISBLANK(Y55),0,V55*Y55/100) -> 0
E56: =IF(ISBLANK(B56)," ",CONCATENATE($A56,": ",$B56," ",$C56," ",$D56)) ->  | H56: =IF($G56 = "lb/gal",($F56*120),$F56) -> 0 | I56: =IF(H56>1,VLOOKUP($A56,'[1]Marine Coating Limits'!$I$3:$L$4,2,FALSE),0) -> 0 | J56: =IF(H56>0.001,IF($H56>$I56,0,1),0) -> 0 | L56: =IF(K56>0.01,VLOOKUP(A56,'[1]Marine Coating Limits'!$I$3:$L$4,4,FALSE),0) -> 0 | M56: =IF(K56>0.0001,IF(K56>L56,0,1),0) -> 0 | P56: =IF($O56 = "F",CONVERT($N56,"F","C"),$N56) -> 0 | Q56: =IF(P56>0.01,VLOOKUP(A56,'[1]Marine Coating Limits'!$I$3:$L$4,3,FALSE),0) -> 0 | R56: =IF(P56>0.001,IF(P56>Q56,1,0),0) -> 0 | S56: =IF(ISBLANK(C56)," ",IF((H56+K56+N56) >0.001,IF((J56+M56+R56)>=1,"YES","NO"),"INCOMPLETE INFORMATION")) ->  | T56: =IF(ISBLANK(N56),0,IF(S56="YES",0,IF(A56 = "Equipment Cleaning",1,0))) -> 0 | X56: =IF(ISBLANK(W56),0,V56*W56/100) -> 0 | Z56: =IF(ISBLANK(Y56),0,V56*Y56/100) -> 0
E57: =IF(ISBLANK(B57)," ",CONCATENATE($A57,": ",$B57," ",$C57," ",$D57)) ->  | H57: =IF($G57 = "lb/gal",($F57*120),$F57) -> 0 | I57: =IF(H57>1,VLOOKUP($A57,'[1]Marine Coating Limits'!$I$3:$L$4,2,FALSE),0) -> 0 | J57: =IF(H57>0.001,IF($H57>$I57,0,1),0) -> 0 | L57: =IF(K57>0.01,VLOOKUP(A57,'[1]Marine Coating Limits'!$I$3:$L$4,4,FALSE),0) -> 0 | M57: =IF(K57>0.0001,IF(K57>L57,0,1),0) -> 0 | P57: =IF($O57 = "F",CONVERT($N57,"F","C"),$N57) -> 0 | Q57: =IF(P57>0.01,VLOOKUP(A57,'[1]Marine Coating Limits'!$I$3:$L$4,3,FALSE),0) -> 0 | R57: =IF(P57>0.001,IF(P57>Q57,1,0),0) -> 0 | S57: =IF(ISBLANK(C57)," ",IF((H57+K57+N57) >0.001,IF((J57+M57+R57)>=1,"YES","NO"),"INCOMPLETE INFORMATION")) ->  | T57: =IF(ISBLANK(N57),0,IF(S57="YES",0,IF(A57 = "Equipment Cleaning",1,0))) -> 0 | X57: =IF(ISBLANK(W57),0,V57*W57/100) -> 0 | Z57: =IF(ISBLANK(Y57),0,V57*Y57/100) -> 0
E58: =IF(ISBLANK(B58)," ",CONCATENATE($A58,": ",$B58," ",$C58," ",$D58)) ->  | H58: =IF($G58 = "lb/gal",($F58*120),$F58) -> 0 | I58: =IF(H58>1,VLOOKUP($A58,'[1]Marine Coating Limits'!$I$3:$L$4,2,FALSE),0) -> 0 | J58: =IF(H58>0.001,IF($H58>$I58,0,1),0) -> 0 | L58: =IF(K58>0.01,VLOOKUP(A58,'[1]Marine Coating Limits'!$I$3:$L$4,4,FALSE),0) -> 0 | M58: =IF(K58>0.0001,IF(K58>L58,0,1),0) -> 0 | P58: =IF($O58 = "F",CONVERT($N58,"F","C"),$N58) -> 0 | Q58: =IF(P58>0.01,VLOOKUP(A58,'[1]Marine Coating Limits'!$I$3:$L$4,3,FALSE),0) -> 0 | R58: =IF(P58>0.001,IF(P58>Q58,1,0),0) -> 0 | S58: =IF(ISBLANK(C58)," ",IF((H58+K58+N58) >0.001,IF((J58+M58+R58)>=1,"YES","NO"),"INCOMPLETE INFORMATION")) ->  | T58: =IF(ISBLANK(N58),0,IF(S58="YES",0,IF(A58 = "Equipment Cleaning",1,0))) -> 0 | X58: =IF(ISBLANK(W58),0,V58*W58/100) -> 0 | Z58: =IF(ISBLANK(Y58),0,V58*Y58/100) -> 0
E59: =IF(ISBLANK(B59)," ",CONCATENATE($A59,": ",$B59," ",$C59," ",$D59)) ->  | H59: =IF($G59 = "lb/gal",($F59*120),$F59) -> 0 | I59: =IF(H59>1,VLOOKUP($A59,'[1]Marine Coating Limits'!$I$3:$L$4,2,FALSE),0) -> 0 | J59: =IF(H59>0.001,IF($H59>$I59,0,1),0) -> 0 | L59: =IF(K59>0.01,VLOOKUP(A59,'[1]Marine Coating Limits'!$I$3:$L$4,4,FALSE),0) -> 0 | M59: =IF(K59>0.0001,IF(K59>L59,0,1),0) -> 0 | P59: =IF($O59 = "F",CONVERT($N59,"F","C"),$N59) -> 0 | Q59: =IF(P59>0.01,VLOOKUP(A59,'[1]Marine Coating Limits'!$I$3:$L$4,3,FALSE),0) -> 0 | R59: =IF(P59>0.001,IF(P59>Q59,1,0),0) -> 0 | S59: =IF(ISBLANK(C59)," ",IF((H59+K59+N59) >0.001,IF((J59+M59+R59)>=1,"YES","NO"),"INCOMPLETE INFORMATION")) ->  | T59: =IF(ISBLANK(N59),0,IF(S59="YES",0,IF(A59 = "Equipment Cleaning",1,0))) -> 0 | X59: =IF(ISBLANK(W59),0,V59*W59/100) -> 0 | Z59: =IF(ISBLANK(Y59),0,V59*Y59/100) -> 0
E60: =IF(ISBLANK(B60)," ",CONCATENATE($A60,": ",$B60," ",$C60," ",$D60)) ->  | H60: =IF($G60 = "lb/gal",($F60*120),$F60) -> 0 | I60: =IF(H60>1,VLOOKUP($A60,'[1]Marine Coating Limits'!$I$3:$L$4,2,FALSE),0) -> 0 | J60: =IF(H60>0.001,IF($H60>$I60,0,1),0) -> 0 | L60: =IF(K60>0.01,VLOOKUP(A60,'[1]Marine Coating Limits'!$I$3:$L$4,4,FALSE),0) -> 0 | M60: =IF(K60>0.0001,IF(K60>L60,0,1),0) -> 0 | P60: =IF($O60 = "F",CONVERT($N60,"F","C"),$N60) -> 0 | Q60: =IF(P60>0.01,VLOOKUP(A60,'[1]Marine Coating Limits'!$I$3:$L$4,3,FALSE),0) -> 0 | R60: =IF(P60>0.001,IF(P60>Q60,1,0),0) -> 0 | S60: =IF(ISBLANK(C60)," ",IF((H60+K60+N60) >0.001,IF((J60+M60+R60)>=1,"YES","NO"),"INCOMPLETE INFORMATION")) ->  | T60: =IF(ISBLANK(N60),0,IF(S60="YES",0,IF(A60 = "Equipment Cleaning",1,0))) -> 0 | X60: =IF(ISBLANK(W60),0,V60*W60/100) -> 0 | Z60: =IF(ISBLANK(Y60),0,V60*Y60/100) -> 0
E61: =IF(ISBLANK(B61)," ",CONCATENATE($A61,": ",$B61," ",$C61," ",$D61)) ->  | H61: =IF($G61 = "lb/gal",($F61*120),$F61) -> 0 | I61: =IF(H61>1,VLOOKUP($A61,'[1]Marine Coating Limits'!$I$3:$L$4,2,FALSE),0) -> 0 | J61: =IF(H61>0.001,IF($H61>$I61,0,1),0) -> 0 | L61: =IF(K61>0.01,VLOOKUP(A61,'[1]Marine Coating Limits'!$I$3:$L$4,4,FALSE),0) -> 0 | M61: =IF(K61>0.0001,IF(K61>L61,0,1),0) -> 0 | P61: =IF($O61 = "F",CONVERT($N61,"F","C"),$N61) -> 0 | Q61: =IF(P61>0.01,VLOOKUP(A61,'[1]Marine Coating Limits'!$I$3:$L$4,3,FALSE),0) -> 0 | R61: =IF(P61>0.001,IF(P61>Q61,1,0),0) -> 0 | S61: =IF(ISBLANK(C61)," ",IF((H61+K61+N61) >0.001,IF((J61+M61+R61)>=1,"YES","NO"),"INCOMPLETE INFORMATION")) ->  | T61: =IF(ISBLANK(N61),0,IF(S61="YES",0,IF(A61 = "Equipment Cleaning",1,0))) -> 0 | X61: =IF(ISBLANK(W61),0,V61*W61/100) -> 0 | Z61: =IF(ISBLANK(Y61),0,V61*Y61/100) -> 0
E62: =IF(ISBLANK(B62)," ",CONCATENATE($A62,": ",$B62," ",$C62," ",$D62)) ->  | H62: =IF($G62 = "lb/gal",($F62*120),$F62) -> 0 | I62: =IF(H62>1,VLOOKUP($A62,'[1]Marine Coating Limits'!$I$3:$L$4,2,FALSE),0) -> 0 | J62: =IF(H62>0.001,IF($H62>$I62,0,1),0) -> 0 | L62: =IF(K62>0.01,VLOOKUP(A62,'[1]Marine Coating Limits'!$I$3:$L$4,4,FALSE),0) -> 0 | M62: =IF(K62>0.0001,IF(K62>L62,0,1),0) -> 0 | P62: =IF($O62 = "F",CONVERT($N62,"F","C"),$N62) -> 0 | Q62: =IF(P62>0.01,VLOOKUP(A62,'[1]Marine Coating Limits'!$I$3:$L$4,3,FALSE),0) -> 0 | R62: =IF(P62>0.001,IF(P62>Q62,1,0),0) -> 0 | S62: =IF(ISBLANK(C62)," ",IF((H62+K62+N62) >0.001,IF((J62+M62+R62)>=1,"YES","NO"),"INCOMPLETE INFORMATION")) ->  | T62: =IF(ISBLANK(N62),0,IF(S62="YES",0,IF(A62 = "Equipment Cleaning",1,0))) -> 0 | X62: =IF(ISBLANK(W62),0,V62*W62/100) -> 0 | Z62: =IF(ISBLANK(Y62),0,V62*Y62/100) -> 0
E63: =IF(ISBLANK(B63)," ",CONCATENATE($A63,": ",$B63," ",$C63," ",$D63)) ->  | H63: =IF($G63 = "lb/gal",($F63*120),$F63) -> 0 | I63: =IF(H63>1,VLOOKUP($A63,'[1]Marine Coating Limits'!$I$3:$L$4,2,FALSE),0) -> 0 | J63: =IF(H63>0.001,IF($H63>$I63,0,1),0) -> 0 | L63: =IF(K63>0.01,VLOOKUP(A63,'[1]Marine Coating Limits'!$I$3:$L$4,4,FALSE),0) -> 0 | M63: =IF(K63>0.0001,IF(K63>L63,0,1),0) -> 0 | P63: =IF($O63 = "F",CONVERT($N63,"F","C"),$N63) -> 0 | Q63: =IF(P63>0.01,VLOOKUP(A63,'[1]Marine Coating Limits'!$I$3:$L$4,3,FALSE),0) -> 0 | R63: =IF(P63>0.001,IF(P63>Q63,1,0),0) -> 0 | S63: =IF(ISBLANK(C63)," ",IF((H63+K63+N63) >0.001,IF((J63+M63+R63)>=1,"YES","NO"),"INCOMPLETE INFORMATION")) ->  | T63: =IF(ISBLANK(N63),0,IF(S63="YES",0,IF(A63 = "Equipment Cleaning",1,0))) -> 0 | X63: =IF(ISBLANK(W63),0,V63*W63/100) -> 0 | Z63: =IF(ISBLANK(Y63),0,V63*Y63/100) -> 0
E64: =IF(ISBLANK(B64)," ",CONCATENATE($A64,": ",$B64," ",$C64," ",$D64)) ->  | H64: =IF($G64 = "lb/gal",($F64*120),$F64) -> 0 | I64: =IF(H64>1,VLOOKUP($A64,'[1]Marine Coating Limits'!$I$3:$L$4,2,FALSE),0) -> 0 | J64: =IF(H64>0.001,IF($H64>$I64,0,1),0) -> 0 | L64: =IF(K64>0.01,VLOOKUP(A64,'[1]Marine Coating Limits'!$I$3:$L$4,4,FALSE),0) -> 0 | M64: =IF(K64>0.0001,IF(K64>L64,0,1),0) -> 0 | P64: =IF($O64 = "F",CONVERT($N64,"F","C"),$N64) -> 0 | Q64: =IF(P64>0.01,VLOOKUP(A64,'[1]Marine Coating Limits'!$I$3:$L$4,3,FALSE),0) -> 0 | R64: =IF(P64>0.001,IF(P64>Q64,1,0),0) -> 0 | S64: =IF(ISBLANK(C64)," ",IF((H64+K64+N64) >0.001,IF((J64+M64+R64)>=1,"YES","NO"),"INCOMPLETE INFORMATION")) ->  | T64: =IF(ISBLANK(N64),0,IF(S64="YES",0,IF(A64 = "Equipment Cleaning",1,0))) -> 0 | X64: =IF(ISBLANK(W64),0,V64*W64/100) -> 0 | Z64: =IF(ISBLANK(Y64),0,V64*Y64/100) -> 0
E65: =IF(ISBLANK(B65)," ",CONCATENATE($A65,": ",$B65," ",$C65," ",$D65)) ->  | H65: =IF($G65 = "lb/gal",($F65*120),$F65) -> 0 | I65: =IF(H65>1,VLOOKUP($A65,'[1]Marine Coating Limits'!$I$3:$L$4,2,FALSE),0) -> 0 | J65: =IF(H65>0.001,IF($H65>$I65,0,1),0) -> 0 | L65: =IF(K65>0.01,VLOOKUP(A65,'[1]Marine Coating Limits'!$I$3:$L$4,4,FALSE),0) -> 0 | M65: =IF(K65>0.0001,IF(K65>L65,0,1),0) -> 0 | P65: =IF($O65 = "F",CONVERT($N65,"F","C"),$N65) -> 0 | Q65: =IF(P65>0.01,VLOOKUP(A65,'[1]Marine Coating Limits'!$I$3:$L$4,3,FALSE),0) -> 0 | R65: =IF(P65>0.001,IF(P65>Q65,1,0),0) -> 0 | S65: =IF(ISBLANK(C65)," ",IF((H65+K65+N65) >0.001,IF((J65+M65+R65)>=1,"YES","NO"),"INCOMPLETE INFORMATION")) ->  | T65: =IF(ISBLANK(N65),0,IF(S65="YES",0,IF(A65 = "Equipment Cleaning",1,0))) -> 0 | X65: =IF(ISBLANK(W65),0,V65*W65/100) -> 0 | Z65: =IF(ISBLANK(Y65),0,V65*Y65/100) -> 0
E66: =IF(ISBLANK(B66)," ",CONCATENATE($A66,": ",$B66," ",$C66," ",$D66)) ->  | H66: =IF($G66 = "lb/gal",($F66*120),$F66) -> 0 | I66: =IF(H66>1,VLOOKUP($A66,'[1]Marine Coating Limits'!$I$3:$L$4,2,FALSE),0) -> 0 | J66: =IF(H66>0.001,IF($H66>$I66,0,1),0) -> 0 | L66: =IF(K66>0.01,VLOOKUP(A66,'[1]Marine Coating Limits'!$I$3:$L$4,4,FALSE),0) -> 0 | M66: =IF(K66>0.0001,IF(K66>L66,0,1),0) -> 0 | P66: =IF($O66 = "F",CONVERT($N66,"F","C"),$N66) -> 0 | Q66: =IF(P66>0.01,VLOOKUP(A66,'[1]Marine Coating Limits'!$I$3:$L$4,3,FALSE),0) -> 0 | R66: =IF(P66>0.001,IF(P66>Q66,1,0),0) -> 0 | S66: =IF(ISBLANK(C66)," ",IF((H66+K66+N66) >0.001,IF((J66+M66+R66)>=1,"YES","NO"),"INCOMPLETE INFORMATION")) ->  | T66: =IF(ISBLANK(N66),0,IF(S66="YES",0,IF(A66 = "Equipment Cleaning",1,0))) -> 0 | X66: =IF(ISBLANK(W66),0,V66*W66/100) -> 0 | Z66: =IF(ISBLANK(Y66),0,V66*Y66/100) -> 0
E67: =IF(ISBLANK(B67)," ",CONCATENATE($A67,": ",$B67," ",$C67," ",$D67)) ->  | H67: =IF($G67 = "lb/gal",($F67*120),$F67) -> 0 | I67: =IF(H67>1,VLOOKUP($A67,'[1]Marine Coating Limits'!$I$3:$L$4,2,FALSE),0) -> 0 | J67: =IF(H67>0.001,IF($H67>$I67,0,1),0) -> 0 | L67: =IF(K67>0.01,VLOOKUP(A67,'[1]Marine Coating Limits'!$I$3:$L$4,4,FALSE),0) -> 0 | M67: =IF(K67>0.0001,IF(K67>L67,0,1),0) -> 0 | P67: =IF($O67 = "F",CONVERT($N67,"F","C"),$N67) -> 0 | Q67: =IF(P67>0.01,VLOOKUP(A67,'[1]Marine Coating Limits'!$I$3:$L$4,3,FALSE),0) -> 0 | R67: =IF(P67>0.001,IF(P67>Q67,1,0),0) -> 0 | S67: =IF(ISBLANK(C67)," ",IF((H67+K67+N67) >0.001,IF((J67+M67+R67)>=1,"YES","NO"),"INCOMPLETE INFORMATION")) ->  | T67: =IF(ISBLANK(N67),0,IF(S67="YES",0,IF(A67 = "Equipment Cleaning",1,0))) -> 0 | X67: =IF(ISBLANK(W67),0,V67*W67/100) -> 0 | Z67: =IF(ISBLANK(Y67),0,V67*Y67/100) -> 0
E68: =IF(ISBLANK(B68)," ",CONCATENATE($A68,": ",$B68," ",$C68," ",$D68)) ->  | H68: =IF($G68 = "lb/gal",($F68*120),$F68) -> 0 | I68: =IF(H68>1,VLOOKUP($A68,'[1]Marine Coating Limits'!$I$3:$L$4,2,FALSE),0) -> 0 | J68: =IF(H68>0.001,IF($H68>$I68,0,1),0) -> 0 | L68: =IF(K68>0.01,VLOOKUP(A68,'[1]Marine Coating Limits'!$I$3:$L$4,4,FALSE),0) -> 0 | M68: =IF(K68>0.0001,IF(K68>L68,0,1),0) -> 0 | P68: =IF($O68 = "F",CONVERT($N68,"F","C"),$N68) -> 0 | Q68: =IF(P68>0.01,VLOOKUP(A68,'[1]Marine Coating Limits'!$I$3:$L$4,3,FALSE),0) -> 0 | R68: =IF(P68>0.001,IF(P68>Q68,1,0),0) -> 0 | S68: =IF(ISBLANK(C68)," ",IF((H68+K68+N68) >0.001,IF((J68+M68+R68)>=1,"YES","NO"),"INCOMPLETE INFORMATION")) ->  | T68: =IF(ISBLANK(N68),0,IF(S68="YES",0,IF(A68 = "Equipment Cleaning",1,0))) -> 0 | X68: =IF(ISBLANK(W68),0,V68*W68/100) -> 0 | Z68: =IF(ISBLANK(Y68),0,V68*Y68/100) -> 0
E69: =IF(ISBLANK(B69)," ",CONCATENATE($A69,": ",$B69," ",$C69," ",$D69)) ->  | H69: =IF($G69 = "lb/gal",($F69*120),$F69) -> 0 | I69: =IF(H69>1,VLOOKUP($A69,'[1]Marine Coating Limits'!$I$3:$L$4,2,FALSE),0) -> 0 | J69: =IF(H69>0.001,IF($H69>$I69,0,1),0) -> 0 | L69: =IF(K69>0.01,VLOOKUP(A69,'[1]Marine Coating Limits'!$I$3:$L$4,4,FALSE),0) -> 0 | M69: =IF(K69>0.0001,IF(K69>L69,0,1),0) -> 0 | P69: =IF($O69 = "F",CONVERT($N69,"F","C"),$N69) -> 0 | Q69: =IF(P69>0.01,VLOOKUP(A69,'[1]Marine Coating Limits'!$I$3:$L$4,3,FALSE),0) -> 0 | R69: =IF(P69>0.001,IF(P69>Q69,1,0),0) -> 0 | S69: =IF(ISBLANK(C69)," ",IF((H69+K69+N69) >0.001,IF((J69+M69+R69)>=1,"YES","NO"),"INCOMPLETE INFORMATION")) ->  | T69: =IF(ISBLANK(N69),0,IF(S69="YES",0,IF(A69 = "Equipment Cleaning",1,0))) -> 0 | X69: =IF(ISBLANK(W69),0,V69*W69/100) -> 0 | Z69: =IF(ISBLANK(Y69),0,V69*Y69/100) -> 0
E70: =IF(ISBLANK(B70)," ",CONCATENATE($A70,": ",$B70," ",$C70," ",$D70)) ->  | H70: =IF($G70 = "lb/gal",($F70*120),$F70) -> 0 | I70: =IF(H70>1,VLOOKUP($A70,'[1]Marine Coating Limits'!$I$3:$L$4,2,FALSE),0) -> 0 | J70: =IF(H70>0.001,IF($H70>$I70,0,1),0) -> 0 | L70: =IF(K70>0.01,VLOOKUP(A70,'[1]Marine Coating Limits'!$I$3:$L$4,4,FALSE),0) -> 0 | M70: =IF(K70>0.0001,IF(K70>L70,0,1),0) -> 0 | P70: =IF($O70 = "F",CONVERT($N70,"F","C"),$N70) -> 0 | Q70: =IF(P70>0.01,VLOOKUP(A70,'[1]Marine Coating Limits'!$I$3:$L$4,3,FALSE),0) -> 0 | R70: =IF(P70>0.001,IF(P70>Q70,1,0),0) -> 0 | S70: =IF(ISBLANK(C70)," ",IF((H70+K70+N70) >0.001,IF((J70+M70+R70)>=1,"YES","NO"),"INCOMPLETE INFORMATION")) ->  | T70: =IF(ISBLANK(N70),0,IF(S70="YES",0,IF(A70 = "Equipment Cleaning",1,0))) -> 0 | X70: =IF(ISBLANK(W70),0,V70*W70/100) -> 0 | Z70: =IF(ISBLANK(Y70),0,V70*Y70/100) -> 0
E71: =IF(ISBLANK(B71)," ",CONCATENATE($A71,": ",$B71," ",$C71," ",$D71)) ->  | H71: =IF($G71 = "lb/gal",($F71*120),$F71) -> 0 | I71: =IF(H71>1,VLOOKUP($A71,'[1]Marine Coating Limits'!$I$3:$L$4,2,FALSE),0) -> 0 | J71: =IF(H71>0.001,IF($H71>$I71,0,1),0) -> 0 | L71: =IF(K71>0.01,VLOOKUP(A71,'[1]Marine Coating Limits'!$I$3:$L$4,4,FALSE),0) -> 0 | M71: =IF(K71>0.0001,IF(K71>L71,0,1),0) -> 0 | P71: =IF($O71 = "F",CONVERT($N71,"F","C"),$N71) -> 0 | Q71: =IF(P71>0.01,VLOOKUP(A71,'[1]Marine Coating Limits'!$I$3:$L$4,3,FALSE),0) -> 0 | R71: =IF(P71>0.001,IF(P71>Q71,1,0),0) -> 0 | S71: =IF(ISBLANK(C71)," ",IF((H71+K71+N71) >0.001,IF((J71+M71+R71)>=1,"YES","NO"),"INCOMPLETE INFORMATION")) ->  | T71: =IF(ISBLANK(N71),0,IF(S71="YES",0,IF(A71 = "Equipment Cleaning",1,0))) -> 0 | X71: =IF(ISBLANK(W71),0,V71*W71/100) -> 0 | Z71: =IF(ISBLANK(Y71),0,V71*Y71/100) -> 0
E72: =IF(ISBLANK(B72)," ",CONCATENATE($A72,": ",$B72," ",$C72," ",$D72)) ->  | H72: =IF($G72 = "lb/gal",($F72*120),$F72) -> 0 | I72: =IF(H72>1,VLOOKUP($A72,'[1]Marine Coating Limits'!$I$3:$L$4,2,FALSE),0) -> 0 | J72: =IF(H72>0.001,IF($H72>$I72,0,1),0) -> 0 | L72: =IF(K72>0.01,VLOOKUP(A72,'[1]Marine Coating Limits'!$I$3:$L$4,4,FALSE),0) -> 0 | M72: =IF(K72>0.0001,IF(K72>L72,0,1),0) -> 0 | P72: =IF($O72 = "F",CONVERT($N72,"F","C"),$N72) -> 0 | Q72: =IF(P72>0.01,VLOOKUP(A72,'[1]Marine Coating Limits'!$I$3:$L$4,3,FALSE),0) -> 0 | R72: =IF(P72>0.001,IF(P72>Q72,1,0),0) -> 0 | S72: =IF(ISBLANK(C72)," ",IF((H72+K72+N72) >0.001,IF((J72+M72+R72)>=1,"YES","NO"),"INCOMPLETE INFORMATION")) ->  | T72: =IF(ISBLANK(N72),0,IF(S72="YES",0,IF(A72 = "Equipment Cleaning",1,0))) -> 0 | X72: =IF(ISBLANK(W72),0,V72*W72/100) -> 0 | Z72: =IF(ISBLANK(Y72),0,V72*Y72/100) -> 0
E73: =IF(ISBLANK(B73)," ",CONCATENATE($A73,": ",$B73," ",$C73," ",$D73)) ->  | H73: =IF($G73 = "lb/gal",($F73*120),$F73) -> 0 | I73: =IF(H73>1,VLOOKUP($A73,'[1]Marine Coating Limits'!$I$3:$L$4,2,FALSE),0) -> 0 | J73: =IF(H73>0.001,IF($H73>$I73,0,1),0) -> 0 | L73: =IF(K73>0.01,VLOOKUP(A73,'[1]Marine Coating Limits'!$I$3:$L$4,4,FALSE),0) -> 0 | M73: =IF(K73>0.0001,IF(K73>L73,0,1),0) -> 0 | P73: =IF($O73 = "F",CONVERT($N73,"F","C"),$N73) -> 0 | Q73: =IF(P73>0.01,VLOOKUP(A73,'[1]Marine Coating Limits'!$I$3:$L$4,3,FALSE),0) -> 0 | R73: =IF(P73>0.001,IF(P73>Q73,1,0),0) -> 0 | S73: =IF(ISBLANK(C73)," ",IF((H73+K73+N73) >0.001,IF((J73+M73+R73)>=1,"YES","NO"),"INCOMPLETE INFORMATION")) ->  | T73: =IF(ISBLANK(N73),0,IF(S73="YES",0,IF(A73 = "Equipment Cleaning",1,0))) -> 0 | X73: =IF(ISBLANK(W73),0,V73*W73/100) -> 0 | Z73: =IF(ISBLANK(Y73),0,V73*Y73/100) -> 0
E74: =IF(ISBLANK(B74)," ",CONCATENATE($A74,": ",$B74," ",$C74," ",$D74)) ->  | H74: =IF($G74 = "lb/gal",($F74*120),$F74) -> 0 | I74: =IF(H74>1,VLOOKUP($A74,'[1]Marine Coating Limits'!$I$3:$L$4,2,FALSE),0) -> 0 | J74: =IF(H74>0.001,IF($H74>$I74,0,1),0) -> 0 | L74: =IF(K74>0.01,VLOOKUP(A74,'[1]Marine Coating Limits'!$I$3:$L$4,4,FALSE),0) -> 0 | M74: =IF(K74>0.0001,IF(K74>L74,0,1),0) -> 0 | P74: =IF($O74 = "F",CONVERT($N74,"F","C"),$N74) -> 0 | Q74: =IF(P74>0.01,VLOOKUP(A74,'[1]Marine Coating Limits'!$I$3:$L$4,3,FALSE),0) -> 0 | R74: =IF(P74>0.001,IF(P74>Q74,1,0),0) -> 0 | S74: =IF(ISBLANK(C74)," ",IF((H74+K74+N74) >0.001,IF((J74+M74+R74)>=1,"YES","NO"),"INCOMPLETE INFORMATION")) ->  | T74: =IF(ISBLANK(N74),0,IF(S74="YES",0,IF(A74 = "Equipment Cleaning",1,0))) -> 0 | X74: =IF(ISBLANK(W74),0,V74*W74/100) -> 0 | Z74: =IF(ISBLANK(Y74),0,V74*Y74/100) -> 0
E75: =IF(ISBLANK(B75)," ",CONCATENATE($A75,": ",$B75," ",$C75," ",$D75)) ->  | H75: =IF($G75 = "lb/gal",($F75*120),$F75) -> 0 | I75: =IF(H75>1,VLOOKUP($A75,'[1]Marine Coating Limits'!$I$3:$L$4,2,FALSE),0) -> 0 | J75: =IF(H75>0.001,IF($H75>$I75,0,1),0) -> 0 | L75: =IF(K75>0.01,VLOOKUP(A75,'[1]Marine Coating Limits'!$I$3:$L$4,4,FALSE),0) -> 0 | M75: =IF(K75>0.0001,IF(K75>L75,0,1),0) -> 0 | P75: =IF($O75 = "F",CONVERT($N75,"F","C"),$N75) -> 0 | Q75: =IF(P75>0.01,VLOOKUP(A75,'[1]Marine Coating Limits'!$I$3:$L$4,3,FALSE),0) -> 0 | R75: =IF(P75>0.001,IF(P75>Q75,1,0),0) -> 0 | S75: =IF(ISBLANK(C75)," ",IF((H75+K75+N75) >0.001,IF((J75+M75+R75)>=1,"YES","NO"),"INCOMPLETE INFORMATION")) ->  | T75: =IF(ISBLANK(N75),0,IF(S75="YES",0,IF(A75 = "Equipment Cleaning",1,0))) -> 0 | X75: =IF(ISBLANK(W75),0,V75*W75/100) -> 0 | Z75: =IF(ISBLANK(Y75),0,V75*Y75/100) -> 0
E76: =IF(ISBLANK(B76)," ",CONCATENATE($A76,": ",$B76," ",$C76," ",$D76)) ->  | H76: =IF($G76 = "lb/gal",($F76*120),$F76) -> 0 | I76: =IF(H76>1,VLOOKUP($A76,'[1]Marine Coating Limits'!$I$3:$L$4,2,FALSE),0) -> 0 | J76: =IF(H76>0.001,IF($H76>$I76,0,1),0) -> 0 | L76: =IF(K76>0.01,VLOOKUP(A76,'[1]Marine Coating Limits'!$I$3:$L$4,4,FALSE),0) -> 0 | M76: =IF(K76>0.0001,IF(K76>L76,0,1),0) -> 0 | P76: =IF($O76 = "F",CONVERT($N76,"F","C"),$N76) -> 0 | Q76: =IF(P76>0.01,VLOOKUP(A76,'[1]Marine Coating Limits'!$I$3:$L$4,3,FALSE),0) -> 0 | R76: =IF(P76>0.001,IF(P76>Q76,1,0),0) -> 0 | S76: =IF(ISBLANK(C76)," ",IF((H76+K76+N76) >0.001,IF((J76+M76+R76)>=1,"YES","NO"),"INCOMPLETE INFORMATION")) ->  | T76: =IF(ISBLANK(N76),0,IF(S76="YES",0,IF(A76 = "Equipment Cleaning",1,0))) -> 0 | X76: =IF(ISBLANK(W76),0,V76*W76/100) -> 0 | Z76: =IF(ISBLANK(Y76),0,V76*Y76/100) -> 0
E77: =IF(ISBLANK(B77)," ",CONCATENATE($A77,": ",$B77," ",$C77," ",$D77)) ->  | H77: =IF($G77 = "lb/gal",($F77*120),$F77) -> 0 | I77: =IF(H77>1,VLOOKUP($A77,'[1]Marine Coating Limits'!$I$3:$L$4,2,FALSE),0) -> 0 | J77: =IF(H77>0.001,IF($H77>$I77,0,1),0) -> 0 | L77: =IF(K77>0.01,VLOOKUP(A77,'[1]Marine Coating Limits'!$I$3:$L$4,4,FALSE),0) -> 0 | M77: =IF(K77>0.0001,IF(K77>L77,0,1),0) -> 0 | P77: =IF($O77 = "F",CONVERT($N77,"F","C"),$N77) -> 0 | Q77: =IF(P77>0.01,VLOOKUP(A77,'[1]Marine Coating Limits'!$I$3:$L$4,3,FALSE),0) -> 0 | R77: =IF(P77>0.001,IF(P77>Q77,1,0),0) -> 0 | S77: =IF(ISBLANK(C77)," ",IF((H77+K77+N77) >0.001,IF((J77+M77+R77)>=1,"YES","NO"),"INCOMPLETE INFORMATION")) ->  | T77: =IF(ISBLANK(N77),0,IF(S77="YES",0,IF(A77 = "Equipment Cleaning",1,0))) -> 0 | X77: =IF(ISBLANK(W77),0,V77*W77/100) -> 0 | Z77: =IF(ISBLANK(Y77),0,V77*Y77/100) -> 0
E78: =IF(ISBLANK(B78)," ",CONCATENATE($A78,": ",$B78," ",$C78," ",$D78)) ->  | H78: =IF($G78 = "lb/gal",($F78*120),$F78) -> 0 | I78: =IF(H78>1,VLOOKUP($A78,'[1]Marine Coating Limits'!$I$3:$L$4,2,FALSE),0) -> 0 | J78: =IF(H78>0.001,IF($H78>$I78,0,1),0) -> 0 | L78: =IF(K78>0.01,VLOOKUP(A78,'[1]Marine Coating Limits'!$I$3:$L$4,4,FALSE),0) -> 0 | M78: =IF(K78>0.0001,IF(K78>L78,0,1),0) -> 0 | P78: =IF($O78 = "F",CONVERT($N78,"F","C"),$N78) -> 0 | Q78: =IF(P78>0.01,VLOOKUP(A78,'[1]Marine Coating Limits'!$I$3:$L$4,3,FALSE),0) -> 0 | R78: =IF(P78>0.001,IF(P78>Q78,1,0),0) -> 0 | S78: =IF(ISBLANK(C78)," ",IF((H78+K78+N78) >0.001,IF((J78+M78+R78)>=1,"YES","NO"),"INCOMPLETE INFORMATION")) ->  | T78: =IF(ISBLANK(N78),0,IF(S78="YES",0,IF(A78 = "Equipment Cleaning",1,0))) -> 0 | X78: =IF(ISBLANK(W78),0,V78*W78/100) -> 0 | Z78: =IF(ISBLANK(Y78),0,V78*Y78/100) -> 0
E79: =IF(ISBLANK(B79)," ",CONCATENATE($A79,": ",$B79," ",$C79," ",$D79)) ->  | H79: =IF($G79 = "lb/gal",($F79*120),$F79) -> 0 | I79: =IF(H79>1,VLOOKUP($A79,'[1]Marine Coating Limits'!$I$3:$L$4,2,FALSE),0) -> 0 | J79: =IF(H79>0.001,IF($H79>$I79,0,1),0) -> 0 | L79: =IF(K79>0.01,VLOOKUP(A79,'[1]Marine Coating Limits'!$I$3:$L$4,4,FALSE),0) -> 0 | M79: =IF(K79>0.0001,IF(K79>L79,0,1),0) -> 0 | P79: =IF($O79 = "F",CONVERT($N79,"F","C"),$N79) -> 0 | Q79: =IF(P79>0.01,VLOOKUP(A79,'[1]Marine Coating Limits'!$I$3:$L$4,3,FALSE),0) -> 0 | R79: =IF(P79>0.001,IF(P79>Q79,1,0),0) -> 0 | S79: =IF(ISBLANK(C79)," ",IF((H79+K79+N79) >0.001,IF((J79+M79+R79)>=1,"YES","NO"),"INCOMPLETE INFORMATION")) ->  | T79: =IF(ISBLANK(N79),0,IF(S79="YES",0,IF(A79 = "Equipment Cleaning",1,0))) -> 0 | X79: =IF(ISBLANK(W79),0,V79*W79/100) -> 0 | Z79: =IF(ISBLANK(Y79),0,V79*Y79/100) -> 0
E80: =IF(ISBLANK(B80)," ",CONCATENATE($A80,": ",$B80," ",$C80," ",$D80)) ->  | H80: =IF($G80 = "lb/gal",($F80*120),$F80) -> 0 | I80: =IF(H80>1,VLOOKUP($A80,'[1]Marine Coating Limits'!$I$3:$L$4,2,FALSE),0) -> 0 | J80: =IF(H80>0.001,IF($H80>$I80,0,1),0) -> 0 | L80: =IF(K80>0.01,VLOOKUP(A80,'[1]Marine Coating Limits'!$I$3:$L$4,4,FALSE),0) -> 0 | M80: =IF(K80>0.0001,IF(K80>L80,0,1),0) -> 0 | P80: =IF($O80 = "F",CONVERT($N80,"F","C"),$N80) -> 0 | Q80: =IF(P80>0.01,VLOOKUP(A80,'[1]Marine Coating Limits'!$I$3:$L$4,3,FALSE),0) -> 0 | R80: =IF(P80>0.001,IF(P80>Q80,1,0),0) -> 0 | S80: =IF(ISBLANK(C80)," ",IF((H80+K80+N80) >0.001,IF((J80+M80+R80)>=1,"YES","NO"),"INCOMPLETE INFORMATION")) ->  | T80: =IF(ISBLANK(N80),0,IF(S80="YES",0,IF(A80 = "Equipment Cleaning",1,0))) -> 0 | X80: =IF(ISBLANK(W80),0,V80*W80/100) -> 0 | Z80: =IF(ISBLANK(Y80),0,V80*Y80/100) -> 0
E81: =IF(ISBLANK(B81)," ",CONCATENATE($A81,": ",$B81," ",$C81," ",$D81)) ->  | H81: =IF($G81 = "lb/gal",($F81*120),$F81) -> 0 | I81: =IF(H81>1,VLOOKUP($A81,'[1]Marine Coating Limits'!$I$3:$L$4,2,FALSE),0) -> 0 | J81: =IF(H81>0.001,IF($H81>$I81,0,1),0) -> 0 | L81: =IF(K81>0.01,VLOOKUP(A81,'[1]Marine Coating Limits'!$I$3:$L$4,4,FALSE),0) -> 0 | M81: =IF(K81>0.0001,IF(K81>L81,0,1),0) -> 0 | P81: =IF($O81 = "F",CONVERT($N81,"F","C"),$N81) -> 0 | Q81: =IF(P81>0.01,VLOOKUP(A81,'[1]Marine Coating Limits'!$I$3:$L$4,3,FALSE),0) -> 0 | R81: =IF(P81>0.001,IF(P81>Q81,1,0),0) -> 0 | S81: =IF(ISBLANK(C81)," ",IF((H81+K81+N81) >0.001,IF((J81+M81+R81)>=1,"YES","NO"),"INCOMPLETE INFORMATION")) ->  | T81: =IF(ISBLANK(N81),0,IF(S81="YES",0,IF(A81 = "Equipment Cleaning",1,0))) -> 0 | X81: =IF(ISBLANK(W81),0,V81*W81/100) -> 0 | Z81: =IF(ISBLANK(Y81),0,V81*Y81/100) -> 0
E82: =IF(ISBLANK(B82)," ",CONCATENATE($A82,": ",$B82," ",$C82," ",$D82)) ->  | H82: =IF($G82 = "lb/gal",($F82*120),$F82) -> 0 | I82: =IF(H82>1,VLOOKUP($A82,'[1]Marine Coating Limits'!$I$3:$L$4,2,FALSE),0) -> 0 | J82: =IF(H82>0.001,IF($H82>$I82,0,1),0) -> 0 | L82: =IF(K82>0.01,VLOOKUP(A82,'[1]Marine Coating Limits'!$I$3:$L$4,4,FALSE),0) -> 0 | M82: =IF(K82>0.0001,IF(K82>L82,0,1),0) -> 0 | P82: =IF($O82 = "F",CONVERT($N82,"F","C"),$N82) -> 0 | Q82: =IF(P82>0.01,VLOOKUP(A82,'[1]Marine Coating Limits'!$I$3:$L$4,3,FALSE),0) -> 0 | R82: =IF(P82>0.001,IF(P82>Q82,1,0),0) -> 0 | S82: =IF(ISBLANK(C82)," ",IF((H82+K82+N82) >0.001,IF((J82+M82+R82)>=1,"YES","NO"),"INCOMPLETE INFORMATION")) ->  | T82: =IF(ISBLANK(N82),0,IF(S82="YES",0,IF(A82 = "Equipment Cleaning",1,0))) -> 0 | X82: =IF(ISBLANK(W82),0,V82*W82/100) -> 0 | Z82: =IF(ISBLANK(Y82),0,V82*Y82/100) -> 0
E83: =IF(ISBLANK(B83)," ",CONCATENATE($A83,": ",$B83," ",$C83," ",$D83)) ->  | H83: =IF($G83 = "lb/gal",($F83*120),$F83) -> 0 | I83: =IF(H83>1,VLOOKUP($A83,'[1]Marine Coating Limits'!$I$3:$L$4,2,FALSE),0) -> 0 | J83: =IF(H83>0.001,IF($H83>$I83,0,1),0) -> 0 | L83: =IF(K83>0.01,VLOOKUP(A83,'[1]Marine Coating Limits'!$I$3:$L$4,4,FALSE),0) -> 0 | M83: =IF(K83>0.0001,IF(K83>L83,0,1),0) -> 0 | P83: =IF($O83 = "F",CONVERT($N83,"F","C"),$N83) -> 0 | Q83: =IF(P83>0.01,VLOOKUP(A83,'[1]Marine Coating Limits'!$I$3:$L$4,3,FALSE),0) -> 0 | R83: =IF(P83>0.001,IF(P83>Q83,1,0),0) -> 0 | S83: =IF(ISBLANK(C83)," ",IF((H83+K83+N83) >0.001,IF((J83+M83+R83)>=1,"YES","NO"),"INCOMPLETE INFORMATION")) ->  | T83: =IF(ISBLANK(N83),0,IF(S83="YES",0,IF(A83 = "Equipment Cleaning",1,0))) -> 0 | X83: =IF(ISBLANK(W83),0,V83*W83/100) -> 0 | Z83: =IF(ISBLANK(Y83),0,V83*Y83/100) -> 0
E84: =IF(ISBLANK(B84)," ",CONCATENATE($A84,": ",$B84," ",$C84," ",$D84)) ->  | H84: =IF($G84 = "lb/gal",($F84*120),$F84) -> 0 | I84: =IF(H84>1,VLOOKUP($A84,'[1]Marine Coating Limits'!$I$3:$L$4,2,FALSE),0) -> 0 | J84: =IF(H84>0.001,IF($H84>$I84,0,1),0) -> 0 | L84: =IF(K84>0.01,VLOOKUP(A84,'[1]Marine Coating Limits'!$I$3:$L$4,4,FALSE),0) -> 0 | M84: =IF(K84>0.0001,IF(K84>L84,0,1),0) -> 0 | P84: =IF($O84 = "F",CONVERT($N84,"F","C"),$N84) -> 0 | Q84: =IF(P84>0.01,VLOOKUP(A84,'[1]Marine Coating Limits'!$I$3:$L$4,3,FALSE),0) -> 0 | R84: =IF(P84>0.001,IF(P84>Q84,1,0),0) -> 0 | S84: =IF(ISBLANK(C84)," ",IF((H84+K84+N84) >0.001,IF((J84+M84+R84)>=1,"YES","NO"),"INCOMPLETE INFORMATION")) ->  | T84: =IF(ISBLANK(N84),0,IF(S84="YES",0,IF(A84 = "Equipment Cleaning",1,0))) -> 0 | X84: =IF(ISBLANK(W84),0,V84*W84/100) -> 0 | Z84: =IF(ISBLANK(Y84),0,V84*Y84/100) -> 0
E85: =IF(ISBLANK(B85)," ",CONCATENATE($A85,": ",$B85," ",$C85," ",$D85)) ->  | H85: =IF($G85 = "lb/gal",($F85*120),$F85) -> 0 | I85: =IF(H85>1,VLOOKUP($A85,'[1]Marine Coating Limits'!$I$3:$L$4,2,FALSE),0) -> 0 | J85: =IF(H85>0.001,IF($H85>$I85,0,1),0) -> 0 | L85: =IF(K85>0.01,VLOOKUP(A85,'[1]Marine Coating Limits'!$I$3:$L$4,4,FALSE),0) -> 0 | M85: =IF(K85>0.0001,IF(K85>L85,0,1),0) -> 0 | P85: =IF($O85 = "F",CONVERT($N85,"F","C"),$N85) -> 0 | Q85: =IF(P85>0.01,VLOOKUP(A85,'[1]Marine Coating Limits'!$I$3:$L$4,3,FALSE),0) -> 0 | R85: =IF(P85>0.001,IF(P85>Q85,1,0),0) -> 0 | S85: =IF(ISBLANK(C85)," ",IF((H85+K85+N85) >0.001,IF((J85+M85+R85)>=1,"YES","NO"),"INCOMPLETE INFORMATION")) ->  | T85: =IF(ISBLANK(N85),0,IF(S85="YES",0,IF(A85 = "Equipment Cleaning",1,0))) -> 0 | X85: =IF(ISBLANK(W85),0,V85*W85/100) -> 0 | Z85: =IF(ISBLANK(Y85),0,V85*Y85/100) -> 0
E86: =IF(ISBLANK(B86)," ",CONCATENATE($A86,": ",$B86," ",$C86," ",$D86)) ->  | H86: =IF($G86 = "lb/gal",($F86*120),$F86) -> 0 | I86: =IF(H86>1,VLOOKUP($A86,'[1]Marine Coating Limits'!$I$3:$L$4,2,FALSE),0) -> 0 | J86: =IF(H86>0.001,IF($H86>$I86,0,1),0) -> 0 | L86: =IF(K86>0.01,VLOOKUP(A86,'[1]Marine Coating Limits'!$I$3:$L$4,4,FALSE),0) -> 0 | M86: =IF(K86>0.0001,IF(K86>L86,0,1),0) -> 0 | P86: =IF($O86 = "F",CONVERT($N86,"F","C"),$N86) -> 0 | Q86: =IF(P86>0.01,VLOOKUP(A86,'[1]Marine Coating Limits'!$I$3:$L$4,3,FALSE),0) -> 0 | R86: =IF(P86>0.001,IF(P86>Q86,1,0),0) -> 0 | S86: =IF(ISBLANK(C86)," ",IF((H86+K86+N86) >0.001,IF((J86+M86+R86)>=1,"YES","NO"),"INCOMPLETE INFORMATION")) ->  | T86: =IF(ISBLANK(N86),0,IF(S86="YES",0,IF(A86 = "Equipment Cleaning",1,0))) -> 0 | X86: =IF(ISBLANK(W86),0,V86*W86/100) -> 0 | Z86: =IF(ISBLANK(Y86),0,V86*Y86/100) -> 0
E87: =IF(ISBLANK(B87)," ",CONCATENATE($A87,": ",$B87," ",$C87," ",$D87)) ->  | H87: =IF($G87 = "lb/gal",($F87*120),$F87) -> 0 | I87: =IF(H87>1,VLOOKUP($A87,'[1]Marine Coating Limits'!$I$3:$L$4,2,FALSE),0) -> 0 | J87: =IF(H87>0.001,IF($H87>$I87,0,1),0) -> 0 | L87: =IF(K87>0.01,VLOOKUP(A87,'[1]Marine Coating Limits'!$I$3:$L$4,4,FALSE),0) -> 0 | M87: =IF(K87>0.0001,IF(K87>L87,0,1),0) -> 0 | P87: =IF($O87 = "F",CONVERT($N87,"F","C"),$N87) -> 0 | Q87: =IF(P87>0.01,VLOOKUP(A87,'[1]Marine Coating Limits'!$I$3:$L$4,3,FALSE),0) -> 0 | R87: =IF(P87>0.001,IF(P87>Q87,1,0),0) -> 0 | S87: =IF(ISBLANK(C87)," ",IF((H87+K87+N87) >0.001,IF((J87+M87+R87)>=1,"YES","NO"),"INCOMPLETE INFORMATION")) ->  | T87: =IF(ISBLANK(N87),0,IF(S87="YES",0,IF(A87 = "Equipment Cleaning",1,0))) -> 0 | X87: =IF(ISBLANK(W87),0,V87*W87/100) -> 0 | Z87: =IF(ISBLANK(Y87),0,V87*Y87/100) -> 0
E88: =IF(ISBLANK(B88)," ",CONCATENATE($A88,": ",$B88," ",$C88," ",$D88)) ->  | H88: =IF($G88 = "lb/gal",($F88*120),$F88) -> 0 | I88: =IF(H88>1,VLOOKUP($A88,'[1]Marine Coating Limits'!$I$3:$L$4,2,FALSE),0) -> 0 | J88: =IF(H88>0.001,IF($H88>$I88,0,1),0) -> 0 | L88: =IF(K88>0.01,VLOOKUP(A88,'[1]Marine Coating Limits'!$I$3:$L$4,4,FALSE),0) -> 0 | M88: =IF(K88>0.0001,IF(K88>L88,0,1),0) -> 0 | P88: =IF($O88 = "F",CONVERT($N88,"F","C"),$N88) -> 0 | Q88: =IF(P88>0.01,VLOOKUP(A88,'[1]Marine Coating Limits'!$I$3:$L$4,3,FALSE),0) -> 0 | R88: =IF(P88>0.001,IF(P88>Q88,1,0),0) -> 0 | S88: =IF(ISBLANK(C88)," ",IF((H88+K88+N88) >0.001,IF((J88+M88+R88)>=1,"YES","NO"),"INCOMPLETE INFORMATION")) ->  | T88: =IF(ISBLANK(N88),0,IF(S88="YES",0,IF(A88 = "Equipment Cleaning",1,0))) -> 0 | X88: =IF(ISBLANK(W88),0,V88*W88/100) -> 0 | Z88: =IF(ISBLANK(Y88),0,V88*Y88/100) -> 0
E89: =IF(ISBLANK(B89)," ",CONCATENATE($A89,": ",$B89," ",$C89," ",$D89)) ->  | H89: =IF($G89 = "lb/gal",($F89*120),$F89) -> 0 | I89: =IF(H89>1,VLOOKUP($A89,'[1]Marine Coating Limits'!$I$3:$L$4,2,FALSE),0) -> 0 | J89: =IF(H89>0.001,IF($H89>$I89,0,1),0) -> 0 | L89: =IF(K89>0.01,VLOOKUP(A89,'[1]Marine Coating Limits'!$I$3:$L$4,4,FALSE),0) -> 0 | M89: =IF(K89>0.0001,IF(K89>L89,0,1),0) -> 0 | P89: =IF($O89 = "F",CONVERT($N89,"F","C"),$N89) -> 0 | Q89: =IF(P89>0.01,VLOOKUP(A89,'[1]Marine Coating Limits'!$I$3:$L$4,3,FALSE),0) -> 0 | R89: =IF(P89>0.001,IF(P89>Q89,1,0),0) -> 0 | S89: =IF(ISBLANK(C89)," ",IF((H89+K89+N89) >0.001,IF((J89+M89+R89)>=1,"YES","NO"),"INCOMPLETE INFORMATION")) ->  | T89: =IF(ISBLANK(N89),0,IF(S89="YES",0,IF(A89 = "Equipment Cleaning",1,0))) -> 0 | X89: =IF(ISBLANK(W89),0,V89*W89/100) -> 0 | Z89: =IF(ISBLANK(Y89),0,V89*Y89/100) -> 0
E90: =IF(ISBLANK(B90)," ",CONCATENATE($A90,": ",$B90," ",$C90," ",$D90)) ->  | H90: =IF($G90 = "lb/gal",($F90*120),$F90) -> 0 | I90: =IF(H90>1,VLOOKUP($A90,'[1]Marine Coating Limits'!$I$3:$L$4,2,FALSE),0) -> 0 | J90: =IF(H90>0.001,IF($H90>$I90,0,1),0) -> 0 | L90: =IF(K90>0.01,VLOOKUP(A90,'[1]Marine Coating Limits'!$I$3:$L$4,4,FALSE),0) -> 0 | M90: =IF(K90>0.0001,IF(K90>L90,0,1),0) -> 0 | P90: =IF($O90 = "F",CONVERT($N90,"F","C"),$N90) -> 0 | Q90: =IF(P90>0.01,VLOOKUP(A90,'[1]Marine Coating Limits'!$I$3:$L$4,3,FALSE),0) -> 0 | R90: =IF(P90>0.001,IF(P90>Q90,1,0),0) -> 0 | S90: =IF(ISBLANK(C90)," ",IF((H90+K90+N90) >0.001,IF((J90+M90+R90)>=1,"YES","NO"),"INCOMPLETE INFORMATION")) ->  | T90: =IF(ISBLANK(N90),0,IF(S90="YES",0,IF(A90 = "Equipment Cleaning",1,0))) -> 0 | X90: =IF(ISBLANK(W90),0,V90*W90/100) -> 0 | Z90: =IF(ISBLANK(Y90),0,V90*Y90/100) -> 0
E91: =IF(ISBLANK(B91)," ",CONCATENATE($A91,": ",$B91," ",$C91," ",$D91)) ->  | H91: =IF($G91 = "lb/gal",($F91*120),$F91) -> 0 | I91: =IF(H91>1,VLOOKUP($A91,'[1]Marine Coating Limits'!$I$3:$L$4,2,FALSE),0) -> 0 | J91: =IF(H91>0.001,IF($H91>$I91,0,1),0) -> 0 | L91: =IF(K91>0.01,VLOOKUP(A91,'[1]Marine Coating Limits'!$I$3:$L$4,4,FALSE),0) -> 0 | M91: =IF(K91>0.0001,IF(K91>L91,0,1),0) -> 0 | P91: =IF($O91 = "F",CONVERT($N91,"F","C"),$N91) -> 0 | Q91: =IF(P91>0.01,VLOOKUP(A91,'[1]Marine Coating Limits'!$I$3:$L$4,3,FALSE),0) -> 0 | R91: =IF(P91>0.001,IF(P91>Q91,1,0),0) -> 0 | S91: =IF(ISBLANK(C91)," ",IF((H91+K91+N91) >0.001,IF((J91+M91+R91)>=1,"YES","NO"),"INCOMPLETE INFORMATION")) ->  | T91: =IF(ISBLANK(N91),0,IF(S91="YES",0,IF(A91 = "Equipment Cleaning",1,0))) -> 0 | X91: =IF(ISBLANK(W91),0,V91*W91/100) -> 0 | Z91: =IF(ISBLANK(Y91),0,V91*Y91/100) -> 0
E92: =IF(ISBLANK(B92)," ",CONCATENATE($A92,": ",$B92," ",$C92," ",$D92)) ->  | H92: =IF($G92 = "lb/gal",($F92*120),$F92) -> 0 | I92: =IF(H92>1,VLOOKUP($A92,'[1]Marine Coating Limits'!$I$3:$L$4,2,FALSE),0) -> 0 | J92: =IF(H92>0.001,IF($H92>$I92,0,1),0) -> 0 | L92: =IF(K92>0.01,VLOOKUP(A92,'[1]Marine Coating Limits'!$I$3:$L$4,4,FALSE),0) -> 0 | M92: =IF(K92>0.0001,IF(K92>L92,0,1),0) -> 0 | P92: =IF($O92 = "F",CONVERT($N92,"F","C"),$N92) -> 0 | Q92: =IF(P92>0.01,VLOOKUP(A92,'[1]Marine Coating Limits'!$I$3:$L$4,3,FALSE),0) -> 0 | R92: =IF(P92>0.001,IF(P92>Q92,1,0),0) -> 0 | S92: =IF(ISBLANK(C92)," ",IF((H92+K92+N92) >0.001,IF((J92+M92+R92)>=1,"YES","NO"),"INCOMPLETE INFORMATION")) ->  | T92: =IF(ISBLANK(N92),0,IF(S92="YES",0,IF(A92 = "Equipment Cleaning",1,0))) -> 0 | X92: =IF(ISBLANK(W92),0,V92*W92/100) -> 0 | Z92: =IF(ISBLANK(Y92),0,V92*Y92/100) -> 0
E93: =IF(ISBLANK(B93)," ",CONCATENATE($A93,": ",$B93," ",$C93," ",$D93)) ->  | H93: =IF($G93 = "lb/gal",($F93*120),$F93) -> 0 | I93: =IF(H93>1,VLOOKUP($A93,'[1]Marine Coating Limits'!$I$3:$L$4,2,FALSE),0) -> 0 | J93: =IF(H93>0.001,IF($H93>$I93,0,1),0) -> 0 | L93: =IF(K93>0.01,VLOOKUP(A93,'[1]Marine Coating Limits'!$I$3:$L$4,4,FALSE),0) -> 0 | M93: =IF(K93>0.0001,IF(K93>L93,0,1),0) -> 0 | P93: =IF($O93 = "F",CONVERT($N93,"F","C"),$N93) -> 0 | Q93: =IF(P93>0.01,VLOOKUP(A93,'[1]Marine Coating Limits'!$I$3:$L$4,3,FALSE),0) -> 0 | R93: =IF(P93>0.001,IF(P93>Q93,1,0),0) -> 0 | S93: =IF(ISBLANK(C93)," ",IF((H93+K93+N93) >0.001,IF((J93+M93+R93)>=1,"YES","NO"),"INCOMPLETE INFORMATION")) ->  | T93: =IF(ISBLANK(N93),0,IF(S93="YES",0,IF(A93 = "Equipment Cleaning",1,0))) -> 0 | X93: =IF(ISBLANK(W93),0,V93*W93/100) -> 0 | Z93: =IF(ISBLANK(Y93),0,V93*Y93/100) -> 0
E94: =IF(ISBLANK(B94)," ",CONCATENATE($A94,": ",$B94," ",$C94," ",$D94)) ->  | H94: =IF($G94 = "lb/gal",($F94*120),$F94) -> 0 | I94: =IF(H94>1,VLOOKUP($A94,'[1]Marine Coating Limits'!$I$3:$L$4,2,FALSE),0) -> 0 | J94: =IF(H94>0.001,IF($H94>$I94,0,1),0) -> 0 | L94: =IF(K94>0.01,VLOOKUP(A94,'[1]Marine Coating Limits'!$I$3:$L$4,4,FALSE),0) -> 0 | M94: =IF(K94>0.0001,IF(K94>L94,0,1),0) -> 0 | P94: =IF($O94 = "F",CONVERT($N94,"F","C"),$N94) -> 0 | Q94: =IF(P94>0.01,VLOOKUP(A94,'[1]Marine Coating Limits'!$I$3:$L$4,3,FALSE),0) -> 0 | R94: =IF(P94>0.001,IF(P94>Q94,1,0),0) -> 0 | S94: =IF(ISBLANK(C94)," ",IF((H94+K94+N94) >0.001,IF((J94+M94+R94)>=1,"YES","NO"),"INCOMPLETE INFORMATION")) ->  | T94: =IF(ISBLANK(N94),0,IF(S94="YES",0,IF(A94 = "Equipment Cleaning",1,0))) -> 0 | X94: =IF(ISBLANK(W94),0,V94*W94/100) -> 0 | Z94: =IF(ISBLANK(Y94),0,V94*Y94/100) -> 0
E95: =IF(ISBLANK(B95)," ",CONCATENATE($A95,": ",$B95," ",$C95," ",$D95)) ->  | H95: =IF($G95 = "lb/gal",($F95*120),$F95) -> 0 | I95: =IF(H95>1,VLOOKUP($A95,'[1]Marine Coating Limits'!$I$3:$L$4,2,FALSE),0) -> 0 | J95: =IF(H95>0.001,IF($H95>$I95,0,1),0) -> 0 | L95: =IF(K95>0.01,VLOOKUP(A95,'[1]Marine Coating Limits'!$I$3:$L$4,4,FALSE),0) -> 0 | M95: =IF(K95>0.0001,IF(K95>L95,0,1),0) -> 0 | P95: =IF($O95 = "F",CONVERT($N95,"F","C"),$N95) -> 0 | Q95: =IF(P95>0.01,VLOOKUP(A95,'[1]Marine Coating Limits'!$I$3:$L$4,3,FALSE),0) -> 0 | R95: =IF(P95>0.001,IF(P95>Q95,1,0),0) -> 0 | S95: =IF(ISBLANK(C95)," ",IF((H95+K95+N95) >0.001,IF((J95+M95+R95)>=1,"YES","NO"),"INCOMPLETE INFORMATION")) ->  | T95: =IF(ISBLANK(N95),0,IF(S95="YES",0,IF(A95 = "Equipment Cleaning",1,0))) -> 0 | X95: =IF(ISBLANK(W95),0,V95*W95/100) -> 0 | Z95: =IF(ISBLANK(Y95),0,V95*Y95/100) -> 0
E96: =IF(ISBLANK(B96)," ",CONCATENATE($A96,": ",$B96," ",$C96," ",$D96)) ->  | H96: =IF($G96 = "lb/gal",($F96*120),$F96) -> 0 | I96: =IF(H96>1,VLOOKUP($A96,'[1]Marine Coating Limits'!$I$3:$L$4,2,FALSE),0) -> 0 | J96: =IF(H96>0.001,IF($H96>$I96,0,1),0) -> 0 | L96: =IF(K96>0.01,VLOOKUP(A96,'[1]Marine Coating Limits'!$I$3:$L$4,4,FALSE),0) -> 0 | M96: =IF(K96>0.0001,IF(K96>L96,0,1),0) -> 0 | P96: =IF($O96 = "F",CONVERT($N96,"F","C"),$N96) -> 0 | Q96: =IF(P96>0.01,VLOOKUP(A96,'[1]Marine Coating Limits'!$I$3:$L$4,3,FALSE),0) -> 0 | R96: =IF(P96>0.001,IF(P96>Q96,1,0),0) -> 0 | S96: =IF(ISBLANK(C96)," ",IF((H96+K96+N96) >0.001,IF((J96+M96+R96)>=1,"YES","NO"),"INCOMPLETE INFORMATION")) ->  | T96: =IF(ISBLANK(N96),0,IF(S96="YES",0,IF(A96 = "Equipment Cleaning",1,0))) -> 0 | X96: =IF(ISBLANK(W96),0,V96*W96/100) -> 0 | Z96: =IF(ISBLANK(Y96),0,V96*Y96/100) -> 0
E97: =IF(ISBLANK(B97)," ",CONCATENATE($A97,": ",$B97," ",$C97," ",$D97)) ->  | H97: =IF($G97 = "lb/gal",($F97*120),$F97) -> 0 | I97: =IF(H97>1,VLOOKUP($A97,'[1]Marine Coating Limits'!$I$3:$L$4,2,FALSE),0) -> 0 | J97: =IF(H97>0.001,IF($H97>$I97,0,1),0) -> 0 | L97: =IF(K97>0.01,VLOOKUP(A97,'[1]Marine Coating Limits'!$I$3:$L$4,4,FALSE),0) -> 0 | M97: =IF(K97>0.0001,IF(K97>L97,0,1),0) -> 0 | P97: =IF($O97 = "F",CONVERT($N97,"F","C"),$N97) -> 0 | Q97: =IF(P97>0.01,VLOOKUP(A97,'[1]Marine Coating Limits'!$I$3:$L$4,3,FALSE),0) -> 0 | R97: =IF(P97>0.001,IF(P97>Q97,1,0),0) -> 0 | S97: =IF(ISBLANK(C97)," ",IF((H97+K97+N97) >0.001,IF((J97+M97+R97)>=1,"YES","NO"),"INCOMPLETE INFORMATION")) ->  | T97: =IF(ISBLANK(N97),0,IF(S97="YES",0,IF(A97 = "Equipment Cleaning",1,0))) -> 0 | X97: =IF(ISBLANK(W97),0,V97*W97/100) -> 0 | Z97: =IF(ISBLANK(Y97),0,V97*Y97/100) -> 0
E98: =IF(ISBLANK(B98)," ",CONCATENATE($A98,": ",$B98," ",$C98," ",$D98)) ->  | H98: =IF($G98 = "lb/gal",($F98*120),$F98) -> 0 | I98: =IF(H98>1,VLOOKUP($A98,'[1]Marine Coating Limits'!$I$3:$L$4,2,FALSE),0) -> 0 | J98: =IF(H98>0.001,IF($H98>$I98,0,1),0) -> 0 | L98: =IF(K98>0.01,VLOOKUP(A98,'[1]Marine Coating Limits'!$I$3:$L$4,4,FALSE),0) -> 0 | M98: =IF(K98>0.0001,IF(K98>L98,0,1),0) -> 0 | P98: =IF($O98 = "F",CONVERT($N98,"F","C"),$N98) -> 0 | Q98: =IF(P98>0.01,VLOOKUP(A98,'[1]Marine Coating Limits'!$I$3:$L$4,3,FALSE),0) -> 0 | R98: =IF(P98>0.001,IF(P98>Q98,1,0),0) -> 0 | S98: =IF(ISBLANK(C98)," ",IF((H98+K98+N98) >0.001,IF((J98+M98+R98)>=1,"YES","NO"),"INCOMPLETE INFORMATION")) ->  | T98: =IF(ISBLANK(N98),0,IF(S98="YES",0,IF(A98 = "Equipment Cleaning",1,0))) -> 0 | X98: =IF(ISBLANK(W98),0,V98*W98/100) -> 0 | Z98: =IF(ISBLANK(Y98),0,V98*Y98/100) -> 0
E99: =IF(ISBLANK(B99)," ",CONCATENATE($A99,": ",$B99," ",$C99," ",$D99)) ->  | H99: =IF($G99 = "lb/gal",($F99*120),$F99) -> 0 | I99: =IF(H99>1,VLOOKUP($A99,'[1]Marine Coating Limits'!$I$3:$L$4,2,FALSE),0) -> 0 | J99: =IF(H99>0.001,IF($H99>$I99,0,1),0) -> 0 | L99: =IF(K99>0.01,VLOOKUP(A99,'[1]Marine Coating Limits'!$I$3:$L$4,4,FALSE),0) -> 0 | M99: =IF(K99>0.0001,IF(K99>L99,0,1),0) -> 0 | P99: =IF($O99 = "F",CONVERT($N99,"F","C"),$N99) -> 0 | Q99: =IF(P99>0.01,VLOOKUP(A99,'[1]Marine Coating Limits'!$I$3:$L$4,3,FALSE),0) -> 0 | R99: =IF(P99>0.001,IF(P99>Q99,1,0),0) -> 0 | S99: =IF(ISBLANK(C99)," ",IF((H99+K99+N99) >0.001,IF((J99+M99+R99)>=1,"YES","NO"),"INCOMPLETE INFORMATION")) ->  | T99: =IF(ISBLANK(N99),0,IF(S99="YES",0,IF(A99 = "Equipment Cleaning",1,0))) -> 0 | X99: =IF(ISBLANK(W99),0,V99*W99/100) -> 0 | Z99: =IF(ISBLANK(Y99),0,V99*Y99/100) -> 0
E100: =IF(ISBLANK(B100)," ",CONCATENATE($A100,": ",$B100," ",$C100," ",$D100)) ->  | H100: =IF($G100 = "lb/gal",($F100*120),$F100) -> 0 | I100: =IF(H100>1,VLOOKUP($A100,'[1]Marine Coating Limits'!$I$3:$L$4,2,FALSE),0) -> 0 | J100: =IF(H100>0.001,IF($H100>$I100,0,1),0) -> 0 | L100: =IF(K100>0.01,VLOOKUP(A100,'[1]Marine Coating Limits'!$I$3:$L$4,4,FALSE),0) -> 0 | M100: =IF(K100>0.0001,IF(K100>L100,0,1),0) -> 0 | P100: =IF($O100 = "F",CONVERT($N100,"F","C"),$N100) -> 0 | Q100: =IF(P100>0.01,VLOOKUP(A100,'[1]Marine Coating Limits'!$I$3:$L$4,3,FALSE),0) -> 0 | R100: =IF(P100>0.001,IF(P100>Q100,1,0),0) -> 0 | S100: =IF(ISBLANK(C100)," ",IF((H100+K100+N100) >0.001,IF((J100+M100+R100)>=1,"YES","NO"),"INCOMPLETE INFORMATION")) ->  | T100: =IF(ISBLANK(N100),0,IF(S100="YES",0,IF(A100 = "Equipment Cleaning",1,0))) -> 0 | X100: =IF(ISBLANK(W100),0,V100*W100/100) -> 0 | Z100: =IF(ISBLANK(Y100),0,V100*Y100/100) -> 0
E101: =IF(ISBLANK(B101)," ",CONCATENATE($A101,": ",$B101," ",$C101," ",$D101)) ->  | H101: =IF($G101 = "lb/gal",($F101*120),$F101) -> 0 | I101: =IF(H101>1,VLOOKUP($A101,'[1]Marine Coating Limits'!$I$3:$L$4,2,FALSE),0) -> 0 | J101: =IF(H101>0.001,IF($H101>$I101,0,1),0) -> 0 | L101: =IF(K101>0.01,VLOOKUP(A101,'[1]Marine Coating Limits'!$I$3:$L$4,4,FALSE),0) -> 0 | M101: =IF(K101>0.0001,IF(K101>L101,0,1),0) -> 0 | P101: =IF($O101 = "F",CONVERT($N101,"F","C"),$N101) -> 0 | Q101: =IF(P101>0.01,VLOOKUP(A101,'[1]Marine Coating Limits'!$I$3:$L$4,3,FALSE),0) -> 0 | R101: =IF(P101>0.001,IF(P101>Q101,1,0),0) -> 0 | S101: =IF(ISBLANK(C101)," ",IF((H101+K101+N101) >0.001,IF((J101+M101+R101)>=1,"YES","NO"),"INCOMPLETE INFORMATION")) ->  | T101: =IF(ISBLANK(N101),0,IF(S101="YES",0,IF(A101 = "Equipment Cleaning",1,0))) -> 0 | X101: =IF(ISBLANK(W101),0,V101*W101/100) -> 0 | Z101: =IF(ISBLANK(Y101),0,V101*Y101/100) -> 0
E102: =IF(ISBLANK(B102)," ",CONCATENATE($A102,": ",$B102," ",$C102," ",$D102)) ->  | H102: =IF($G102 = "lb/gal",($F102*120),$F102) -> 0 | I102: =IF(H102>1,VLOOKUP($A102,'[1]Marine Coating Limits'!$I$3:$L$4,2,FALSE),0) -> 0 | J102: =IF(H102>0.001,IF($H102>$I102,0,1),0) -> 0 | L102: =IF(K102>0.01,VLOOKUP(A102,'[1]Marine Coating Limits'!$I$3:$L$4,4,FALSE),0) -> 0 | M102: =IF(K102>0.0001,IF(K102>L102,0,1),0) -> 0 | P102: =IF($O102 = "F",CONVERT($N102,"F","C"),$N102) -> 0 | Q102: =IF(P102>0.01,VLOOKUP(A102,'[1]Marine Coating Limits'!$I$3:$L$4,3,FALSE),0) -> 0 | R102: =IF(P102>0.001,IF(P102>Q102,1,0),0) -> 0 | S102: =IF(ISBLANK(C102)," ",IF((H102+K102+N102) >0.001,IF((J102+M102+R102)>=1,"YES","NO"),"INCOMPLETE INFORMATION")) ->  | T102: =IF(ISBLANK(N102),0,IF(S102="YES",0,IF(A102 = "Equipment Cleaning",1,0))) -> 0 | X102: =IF(ISBLANK(W102),0,V102*W102/100) -> 0 | Z102: =IF(ISBLANK(Y102),0,V102*Y102/100) -> 0
E103: =IF(ISBLANK(B103)," ",CONCATENATE($A103,": ",$B103," ",$C103," ",$D103)) ->  | H103: =IF($G103 = "lb/gal",($F103*120),$F103) -> 0 | I103: =IF(H103>1,VLOOKUP($A103,'[1]Marine Coating Limits'!$I$3:$L$4,2,FALSE),0) -> 0 | J103: =IF(H103>0.001,IF($H103>$I103,0,1),0) -> 0 | L103: =IF(K103>0.01,VLOOKUP(A103,'[1]Marine Coating Limits'!$I$3:$L$4,4,FALSE),0) -> 0 | M103: =IF(K103>0.0001,IF(K103>L103,0,1),0) -> 0 | P103: =IF($O103 = "F",CONVERT($N103,"F","C"),$N103) -> 0 | Q103: =IF(P103>0.01,VLOOKUP(A103,'[1]Marine Coating Limits'!$I$3:$L$4,3,FALSE),0) -> 0 | R103: =IF(P103>0.001,IF(P103>Q103,1,0),0) -> 0 | S103: =IF(ISBLANK(C103)," ",IF((H103+K103+N103) >0.001,IF((J103+M103+R103)>=1,"YES","NO"),"INCOMPLETE INFORMATION")) ->  | T103: =IF(ISBLANK(N103),0,IF(S103="YES",0,IF(A103 = "Equipment Cleaning",1,0))) -> 0 | X103: =IF(ISBLANK(W103),0,V103*W103/100) -> 0 | Z103: =IF(ISBLANK(Y103),0,V103*Y103/100) -> 0
E104: =IF(ISBLANK(B104)," ",CONCATENATE($A104,": ",$B104," ",$C104," ",$D104)) ->  | H104: =IF($G104 = "lb/gal",($F104*120),$F104) -> 0 | I104: =IF(H104>1,VLOOKUP($A104,'[1]Marine Coating Limits'!$I$3:$L$4,2,FALSE),0) -> 0 | J104: =IF(H104>0.001,IF($H104>$I104,0,1),0) -> 0 | L104: =IF(K104>0.01,VLOOKUP(A104,'[1]Marine Coating Limits'!$I$3:$L$4,4,FALSE),0) -> 0 | M104: =IF(K104>0.0001,IF(K104>L104,0,1),0) -> 0 | P104: =IF($O104 = "F",CONVERT($N104,"F","C"),$N104) -> 0 | Q104: =IF(P104>0.01,VLOOKUP(A104,'[1]Marine Coating Limits'!$I$3:$L$4,3,FALSE),0) -> 0 | R104: =IF(P104>0.001,IF(P104>Q104,1,0),0) -> 0 | S104: =IF(ISBLANK(C104)," ",IF((H104+K104+N104) >0.001,IF((J104+M104+R104)>=1,"YES","NO"),"INCOMPLETE INFORMATION")) ->  | T104: =IF(ISBLANK(N104),0,IF(S104="YES",0,IF(A104 = "Equipment Cleaning",1,0))) -> 0 | X104: =IF(ISBLANK(W104),0,V104*W104/100) -> 0 | Z104: =IF(ISBLANK(Y104),0,V104*Y104/100) -> 0
E105: =IF(ISBLANK(B105)," ",CONCATENATE($A105,": ",$B105," ",$C105," ",$D105)) ->  | H105: =IF($G105 = "lb/gal",($F105*120),$F105) -> 0 | I105: =IF(H105>1,VLOOKUP($A105,'[1]Marine Coating Limits'!$I$3:$L$4,2,FALSE),0) -> 0 | J105: =IF(H105>0.001,IF($H105>$I105,0,1),0) -> 0 | L105: =IF(K105>0.01,VLOOKUP(A105,'[1]Marine Coating Limits'!$I$3:$L$4,4,FALSE),0) -> 0 | M105: =IF(K105>0.0001,IF(K105>L105,0,1),0) -> 0 | P105: =IF($O105 = "F",CONVERT($N105,"F","C"),$N105) -> 0 | Q105: =IF(P105>0.01,VLOOKUP(A105,'[1]Marine Coating Limits'!$I$3:$L$4,3,FALSE),0) -> 0 | R105: =IF(P105>0.001,IF(P105>Q105,1,0),0) -> 0 | S105: =IF(ISBLANK(C105)," ",IF((H105+K105+N105) >0.001,IF((J105+M105+R105)>=1,"YES","NO"),"INCOMPLETE INFORMATION")) ->  | T105: =IF(ISBLANK(N105),0,IF(S105="YES",0,IF(A105 = "Equipment Cleaning",1,0))) -> 0 | X105: =IF(ISBLANK(W105),0,V105*W105/100) -> 0 | Z105: =IF(ISBLANK(Y105),0,V105*Y105/100) -> 0
E106: =IF(ISBLANK(B106)," ",CONCATENATE($A106,": ",$B106," ",$C106," ",$D106)) ->  | H106: =IF($G106 = "lb/gal",($F106*120),$F106) -> 0 | I106: =IF(H106>1,VLOOKUP($A106,'[1]Marine Coating Limits'!$I$3:$L$4,2,FALSE),0) -> 0 | J106: =IF(H106>0.001,IF($H106>$I106,0,1),0) -> 0 | L106: =IF(K106>0.01,VLOOKUP(A106,'[1]Marine Coating Limits'!$I$3:$L$4,4,FALSE),0) -> 0 | M106: =IF(K106>0.0001,IF(K106>L106,0,1),0) -> 0 | P106: =IF($O106 = "F",CONVERT($N106,"F","C"),$N106) -> 0 | Q106: =IF(P106>0.01,VLOOKUP(A106,'[1]Marine Coating Limits'!$I$3:$L$4,3,FALSE),0) -> 0 | R106: =IF(P106>0.001,IF(P106>Q106,1,0),0) -> 0 | S106: =IF(ISBLANK(C106)," ",IF((H106+K106+N106) >0.001,IF((J106+M106+R106)>=1,"YES","NO"),"INCOMPLETE INFORMATION")) ->  | T106: =IF(ISBLANK(N106),0,IF(S106="YES",0,IF(A106 = "Equipment Cleaning",1,0))) -> 0 | X106: =IF(ISBLANK(W106),0,V106*W106/100) -> 0 | Z106: =IF(ISBLANK(Y106),0,V106*Y106/100) -> 0
E107: =IF(ISBLANK(B107)," ",CONCATENATE($A107,": ",$B107," ",$C107," ",$D107)) ->  | H107: =IF($G107 = "lb/gal",($F107*120),$F107) -> 0 | I107: =IF(H107>1,VLOOKUP($A107,'[1]Marine Coating Limits'!$I$3:$L$4,2,FALSE),0) -> 0 | J107: =IF(H107>0.001,IF($H107>$I107,0,1),0) -> 0 | L107: =IF(K107>0.01,VLOOKUP(A107,'[1]Marine Coating Limits'!$I$3:$L$4,4,FALSE),0) -> 0 | M107: =IF(K107>0.0001,IF(K107>L107,0,1),0) -> 0 | P107: =IF($O107 = "F",CONVERT($N107,"F","C"),$N107) -> 0 | Q107: =IF(P107>0.01,VLOOKUP(A107,'[1]Marine Coating Limits'!$I$3:$L$4,3,FALSE),0) -> 0 | R107: =IF(P107>0.001,IF(P107>Q107,1,0),0) -> 0 | S107: =IF(ISBLANK(C107)," ",IF((H107+K107+N107) >0.001,IF((J107+M107+R107)>=1,"YES","NO"),"INCOMPLETE INFORMATION")) ->  | T107: =IF(ISBLANK(N107),0,IF(S107="YES",0,IF(A107 = "Equipment Cleaning",1,0))) -> 0 | X107: =IF(ISBLANK(W107),0,V107*W107/100) -> 0 | Z107: =IF(ISBLANK(Y107),0,V107*Y107/100) -> 0

Sheet 4. Adhesive Reporting Form
B2: rev 14JAN13
K3: Reporting Month
K4: Reporting Year
H6: MONTHLY ADHESIVE USAGE FORM | K6: Facility where work occurred:
H8: I certify that the above is an accurate and complete accounting of all adhesives applied by the undersigned company at the facility listed above during the reporting month. I further certify that all adhesive were applied in compliance with SDAPCD Rule 67.21 and in conformance with applicable permit requirements.
G11: Company Name: | H11: ='1. INSTRUCTIONS'!B6 -> 0 | K11: Report Prepared by: | L11: ='1. INSTRUCTIONS'!B9 -> 0
G12: Address: | H12: ='1. INSTRUCTIONS'!B7 -> 0 | K12: Phone: | L12: ='1. INSTRUCTIONS'!H8 -> 0 | M12: E-Mail: | N12: ='1. INSTRUCTIONS'!H9 -> 0
G13: City, Zip: | H13: ='1. INSTRUCTIONS'!B8 -> 0 | K13: Report Date:
A16: Hiring Agency | B16: Company Name | C16: Location (Naval Installation) | D16: Prime Contractor | E16: Vessel Name | F16: Date Applied | G16: Adhesive Product Name | H16: Manufacturer/Supplier | I16: Total Amount Used | J16: Unit | K16: VOC Content | L16: VOC Unit | M16: Product Category from SDAPCD Rule 67.21
B17: ='1. INSTRUCTIONS'!B6:J6 -> 0 | H17: =IF((COUNTBLANK($G17) = 1),"", (VLOOKUP($G17,'2. Master Adhesive List'!$A$12:$H$62,2,FALSE))) ->  | K17: =IF((COUNTBLANK($G17) = 1),"", (VLOOKUP($G17,'2. Master Adhesive List'!$A$12:$H$62,3,FALSE))) ->  | L17: =IF((COUNTBLANK($G17) = 1),"", (VLOOKUP($G17,'2. Master Adhesive List'!$A$12:$H$42,4,TRUE))) ->  | M17: =IF((COUNTBLANK($G17) = 1),"", (VLOOKUP($G17,'2. Master Adhesive List'!$A$12:$H$62,6,TRUE))) -> 
B18: ='1. INSTRUCTIONS'!B6:J6 -> 0 | H18: =IF((COUNTBLANK($G18) = 1),"", (VLOOKUP($G18,'2. Master Adhesive List'!$A$12:$H$62,2,FALSE))) ->  | K18: =IF((COUNTBLANK($G18) = 1),"", (VLOOKUP($G18,'2. Master Adhesive List'!$A$12:$H$62,3,FALSE))) ->  | L18: =IF((COUNTBLANK($G18) = 1),"", (VLOOKUP($G18,'2. Master Adhesive List'!$A$12:$H$42,4,TRUE))) ->  | M18: =IF((COUNTBLANK($G18) = 1),"", (VLOOKUP($G18,'2. Master Adhesive List'!$A$12:$H$62,6,TRUE))) -> 
B19: ='1. INSTRUCTIONS'!B6:J6 -> 0 | H19: =IF((COUNTBLANK($G19) = 1),"", (VLOOKUP($G19,'2. Master Adhesive List'!$A$12:$H$62,2,FALSE))) ->  | K19: =IF((COUNTBLANK($G19) = 1),"", (VLOOKUP($G19,'2. Master Adhesive List'!$A$12:$H$62,3,FALSE))) ->  | L19: =IF((COUNTBLANK($G19) = 1),"", (VLOOKUP($G19,'2. Master Adhesive List'!$A$12:$H$42,4,TRUE))) ->  | M19: =IF((COUNTBLANK($G19) = 1),"", (VLOOKUP($G19,'2. Master Adhesive List'!$A$12:$H$62,6,TRUE))) -> 
B20: ='1. INSTRUCTIONS'!B6:J6 -> 0 | H20: =IF((COUNTBLANK($G20) = 1),"", (VLOOKUP($G20,'2. Master Adhesive List'!$A$12:$H$62,2,FALSE))) ->  | K20: =IF((COUNTBLANK($G20) = 1),"", (VLOOKUP($G20,'2. Master Adhesive List'!$A$12:$H$62,3,FALSE))) ->  | L20: =IF((COUNTBLANK($G20) = 1),"", (VLOOKUP($G20,'2. Master Adhesive List'!$A$12:$H$42,4,TRUE))) ->  | M20: =IF((COUNTBLANK($G20) = 1),"", (VLOOKUP($G20,'2. Master Adhesive List'!$A$12:$H$62,6,TRUE))) -> 
B21: ='1. INSTRUCTIONS'!B6:J6 -> 0 | H21: =IF((COUNTBLANK($G21) = 1),"", (VLOOKUP($G21,'2. Master Adhesive List'!$A$12:$H$62,2,FALSE))) ->  | K21: =IF((COUNTBLANK($G21) = 1),"", (VLOOKUP($G21,'2. Master Adhesive List'!$A$12:$H$62,3,FALSE))) ->  | L21: =IF((COUNTBLANK($G21) = 1),"", (VLOOKUP($G21,'2. Master Adhesive List'!$A$12:$H$42,4,TRUE))) ->  | M21: =IF((COUNTBLANK($G21) = 1),"", (VLOOKUP($G21,'2. Master Adhesive List'!$A$12:$H$62,6,TRUE))) -> 
B22: ='1. INSTRUCTIONS'!B6:J6 -> 0 | H22: =IF((COUNTBLANK($G22) = 1),"", (VLOOKUP($G22,'2. Master Adhesive List'!$A$12:$H$62,2,FALSE))) ->  | K22: =IF((COUNTBLANK($G22) = 1),"", (VLOOKUP($G22,'2. Master Adhesive List'!$A$12:$H$62,3,FALSE))) ->  | L22: =IF((COUNTBLANK($G22) = 1),"", (VLOOKUP($G22,'2. Master Adhesive List'!$A$12:$H$42,4,TRUE))) ->  | M22: =IF((COUNTBLANK($G22) = 1),"", (VLOOKUP($G22,'2. Master Adhesive List'!$A$12:$H$62,6,TRUE))) -> 
B23: ='1. INSTRUCTIONS'!B6:J6 -> 0 | H23: =IF((COUNTBLANK($G23) = 1),"", (VLOOKUP($G23,'2. Master Adhesive List'!$A$12:$H$62,2,FALSE))) ->  | K23: =IF((COUNTBLANK($G23) = 1),"", (VLOOKUP($G23,'2. Master Adhesive List'!$A$12:$H$62,3,FALSE))) ->  | L23: =IF((COUNTBLANK($G23) = 1),"", (VLOOKUP($G23,'2. Master Adhesive List'!$A$12:$H$42,4,TRUE))) ->  | M23: =IF((COUNTBLANK($G23) = 1),"", (VLOOKUP($G23,'2. Master Adhesive List'!$A$12:$H$62,6,TRUE))) -> 
B24: ='1. INSTRUCTIONS'!B6:J6 -> 0 | H24: =IF((COUNTBLANK($G24) = 1),"", (VLOOKUP($G24,'2. Master Adhesive List'!$A$12:$H$62,2,FALSE))) ->  | K24: =IF((COUNTBLANK($G24) = 1),"", (VLOOKUP($G24,'2. Master Adhesive List'!$A$12:$H$62,3,FALSE))) ->  | L24: =IF((COUNTBLANK($G24) = 1),"", (VLOOKUP($G24,'2. Master Adhesive List'!$A$12:$H$42,4,TRUE))) ->  | M24: =IF((COUNTBLANK($G24) = 1),"", (VLOOKUP($G24,'2. Master Adhesive List'!$A$12:$H$62,6,TRUE))) -> 
B25: ='1. INSTRUCTIONS'!B6:J6 -> 0 | H25: =IF((COUNTBLANK($G25) = 1),"", (VLOOKUP($G25,'2. Master Adhesive List'!$A$12:$H$62,2,FALSE))) ->  | K25: =IF((COUNTBLANK($G25) = 1),"", (VLOOKUP($G25,'2. Master Adhesive List'!$A$12:$H$62,3,FALSE))) ->  | L25: =IF((COUNTBLANK($G25) = 1),"", (VLOOKUP($G25,'2. Master Adhesive List'!$A$12:$H$42,4,TRUE))) ->  | M25: =IF((COUNTBLANK($G25) = 1),"", (VLOOKUP($G25,'2. Master Adhesive List'!$A$12:$H$62,6,TRUE))) -> 
B26: ='1. INSTRUCTIONS'!B6:J6 -> 0 | H26: =IF((COUNTBLANK($G26) = 1),"", (VLOOKUP($G26,'2. Master Adhesive List'!$A$12:$H$62,2,FALSE))) ->  | K26: =IF((COUNTBLANK($G26) = 1),"", (VLOOKUP($G26,'2. Master Adhesive List'!$A$12:$H$62,3,FALSE))) ->  | L26: =IF((COUNTBLANK($G26) = 1),"", (VLOOKUP($G26,'2. Master Adhesive List'!$A$12:$H$42,4,TRUE))) ->  | M26: =IF((COUNTBLANK($G26) = 1),"", (VLOOKUP($G26,'2. Master Adhesive List'!$A$12:$H$62,6,TRUE))) -> 
B27: ='1. INSTRUCTIONS'!B6:J6 -> 0 | H27: =IF((COUNTBLANK($G27) = 1),"", (VLOOKUP($G27,'2. Master Adhesive List'!$A$12:$H$62,2,FALSE))) ->  | K27: =IF((COUNTBLANK($G27) = 1),"", (VLOOKUP($G27,'2. Master Adhesive List'!$A$12:$H$62,3,FALSE))) ->  | L27: =IF((COUNTBLANK($G27) = 1),"", (VLOOKUP($G27,'2. Master Adhesive List'!$A$12:$H$42,4,TRUE))) ->  | M27: =IF((COUNTBLANK($G27) = 1),"", (VLOOKUP($G27,'2. Master Adhesive List'!$A$12:$H$62,6,TRUE))) -> 
B28: ='1. INSTRUCTIONS'!B6:J6 -> 0 | H28: =IF((COUNTBLANK($G28) = 1),"", (VLOOKUP($G28,'2. Master Adhesive List'!$A$12:$H$62,2,FALSE))) ->  | K28: =IF((COUNTBLANK($G28) = 1),"", (VLOOKUP($G28,'2. Master Adhesive List'!$A$12:$H$62,3,FALSE))) ->  | L28: =IF((COUNTBLANK($G28) = 1),"", (VLOOKUP($G28,'2. Master Adhesive List'!$A$12:$H$42,4,TRUE))) ->  | M28: =IF((COUNTBLANK($G28) = 1),"", (VLOOKUP($G28,'2. Master Adhesive List'!$A$12:$H$62,6,TRUE))) -> 
B29: ='1. INSTRUCTIONS'!B6:J6 -> 0 | H29: =IF((COUNTBLANK($G29) = 1),"", (VLOOKUP($G29,'2. Master Adhesive List'!$A$12:$H$62,2,FALSE))) ->  | K29: =IF((COUNTBLANK($G29) = 1),"", (VLOOKUP($G29,'2. Master Adhesive List'!$A$12:$H$62,3,FALSE))) ->  | L29: =IF((COUNTBLANK($G29) = 1),"", (VLOOKUP($G29,'2. Master Adhesive List'!$A$12:$H$42,4,TRUE))) ->  | M29: =IF((COUNTBLANK($G29) = 1),"", (VLOOKUP($G29,'2. Master Adhesive List'!$A$12:$H$62,6,TRUE))) -> 
B30: ='1. INSTRUCTIONS'!B6:J6 -> 0 | H30: =IF((COUNTBLANK($G30) = 1),"", (VLOOKUP($G30,'2. Master Adhesive List'!$A$12:$H$62,2,FALSE))) ->  | K30: =IF((COUNTBLANK($G30) = 1),"", (VLOOKUP($G30,'2. Master Adhesive List'!$A$12:$H$62,3,FALSE))) ->  | L30: =IF((COUNTBLANK($G30) = 1),"", (VLOOKUP($G30,'2. Master Adhesive List'!$A$12:$H$42,4,TRUE))) ->  | M30: =IF((COUNTBLANK($G30) = 1),"", (VLOOKUP($G30,'2. Master Adhesive List'!$A$12:$H$62,6,TRUE))) -> 
B31: ='1. INSTRUCTIONS'!B6:J6 -> 0 | H31: =IF((COUNTBLANK($G31) = 1),"", (VLOOKUP($G31,'2. Master Adhesive List'!$A$12:$H$62,2,FALSE))) ->  | K31: =IF((COUNTBLANK($G31) = 1),"", (VLOOKUP($G31,'2. Master Adhesive List'!$A$12:$H$62,3,FALSE))) ->  | L31: =IF((COUNTBLANK($G31) = 1),"", (VLOOKUP($G31,'2. Master Adhesive List'!$A$12:$H$42,4,TRUE))) ->  | M31: =IF((COUNTBLANK($G31) = 1),"", (VLOOKUP($G31,'2. Master Adhesive List'!$A$12:$H$62,6,TRUE))) -> 
B32: ='1. INSTRUCTIONS'!B6:J6 -> 0 | H32: =IF((COUNTBLANK($G32) = 1),"", (VLOOKUP($G32,'2. Master Adhesive List'!$A$12:$H$62,2,FALSE))) ->  | K32: =IF((COUNTBLANK($G32) = 1),"", (VLOOKUP($G32,'2. Master Adhesive List'!$A$12:$H$62,3,FALSE))) ->  | L32: =IF((COUNTBLANK($G32) = 1),"", (VLOOKUP($G32,'2. Master Adhesive List'!$A$12:$H$42,4,TRUE))) ->  | M32: =IF((COUNTBLANK($G32) = 1),"", (VLOOKUP($G32,'2. Master Adhesive List'!$A$12:$H$62,6,TRUE))) -> 
B33: ='1. INSTRUCTIONS'!B6:J6 -> 0 | H33: =IF((COUNTBLANK($G33) = 1),"", (VLOOKUP($G33,'2. Master Adhesive List'!$A$12:$H$62,2,FALSE))) ->  | K33: =IF((COUNTBLANK($G33) = 1),"", (VLOOKUP($G33,'2. Master Adhesive List'!$A$12:$H$62,3,FALSE))) ->  | L33: =IF((COUNTBLANK($G33) = 1),"", (VLOOKUP($G33,'2. Master Adhesive List'!$A$12:$H$42,4,TRUE))) ->  | M33: =IF((COUNTBLANK($G33) = 1),"", (VLOOKUP($G33,'2. Master Adhesive List'!$A$12:$H$62,6,TRUE))) -> 
B34: ='1. INSTRUCTIONS'!B6:J6 -> 0 | H34: =IF((COUNTBLANK($G34) = 1),"", (VLOOKUP($G34,'2. Master Adhesive List'!$A$12:$H$62,2,FALSE))) ->  | K34: =IF((COUNTBLANK($G34) = 1),"", (VLOOKUP($G34,'2. Master Adhesive List'!$A$12:$H$62,3,FALSE))) ->  | L34: =IF((COUNTBLANK($G34) = 1),"", (VLOOKUP($G34,'2. Master Adhesive List'!$A$12:$H$42,4,TRUE))) ->  | M34: =IF((COUNTBLANK($G34) = 1),"", (VLOOKUP($G34,'2. Master Adhesive List'!$A$12:$H$62,6,TRUE))) -> 
B35: ='1. INSTRUCTIONS'!B6:J6 -> 0 | H35: =IF((COUNTBLANK($G35) = 1),"", (VLOOKUP($G35,'2. Master Adhesive List'!$A$12:$H$62,2,FALSE))) ->  | K35: =IF((COUNTBLANK($G35) = 1),"", (VLOOKUP($G35,'2. Master Adhesive List'!$A$12:$H$62,3,FALSE))) ->  | L35: =IF((COUNTBLANK($G35) = 1),"", (VLOOKUP($G35,'2. Master Adhesive List'!$A$12:$H$42,4,TRUE))) ->  | M35: =IF((COUNTBLANK($G35) = 1),"", (VLOOKUP($G35,'2. Master Adhesive List'!$A$12:$H$62,6,TRUE))) -> 
B36: ='1. INSTRUCTIONS'!B6:J6 -> 0 | H36: =IF((COUNTBLANK($G36) = 1),"", (VLOOKUP($G36,'2. Master Adhesive List'!$A$12:$H$62,2,FALSE))) ->  | K36: =IF((COUNTBLANK($G36) = 1),"", (VLOOKUP($G36,'2. Master Adhesive List'!$A$12:$H$62,3,FALSE))) ->  | L36: =IF((COUNTBLANK($G36) = 1),"", (VLOOKUP($G36,'2. Master Adhesive List'!$A$12:$H$42,4,TRUE))) ->  | M36: =IF((COUNTBLANK($G36) = 1),"", (VLOOKUP($G36,'2. Master Adhesive List'!$A$12:$H$62,6,TRUE))) -> 
B37: ='1. INSTRUCTIONS'!B6:J6 -> 0 | H37: =IF((COUNTBLANK($G37) = 1),"", (VLOOKUP($G37,'2. Master Adhesive List'!$A$12:$H$62,2,FALSE))) ->  | K37: =IF((COUNTBLANK($G37) = 1),"", (VLOOKUP($G37,'2. Master Adhesive List'!$A$12:$H$62,3,FALSE))) ->  | L37: =IF((COUNTBLANK($G37) = 1),"", (VLOOKUP($G37,'2. Master Adhesive List'!$A$12:$H$42,4,TRUE))) ->  | M37: =IF((COUNTBLANK($G37) = 1),"", (VLOOKUP($G37,'2. Master Adhesive List'!$A$12:$H$62,6,TRUE))) -> 
B38: ='1. INSTRUCTIONS'!B6:J6 -> 0 | H38: =IF((COUNTBLANK($G38) = 1),"", (VLOOKUP($G38,'2. Master Adhesive List'!$A$12:$H$62,2,FALSE))) ->  | K38: =IF((COUNTBLANK($G38) = 1),"", (VLOOKUP($G38,'2. Master Adhesive List'!$A$12:$H$62,3,FALSE))) ->  | L38: =IF((COUNTBLANK($G38) = 1),"", (VLOOKUP($G38,'2. Master Adhesive List'!$A$12:$H$42,4,TRUE))) ->  | M38: =IF((COUNTBLANK($G38) = 1),"", (VLOOKUP($G38,'2. Master Adhesive List'!$A$12:$H$62,6,TRUE))) -> 
B39: ='1. INSTRUCTIONS'!B6:J6 -> 0 | H39: =IF((COUNTBLANK($G39) = 1),"", (VLOOKUP($G39,'2. Master Adhesive List'!$A$12:$H$62,2,FALSE))) ->  | K39: =IF((COUNTBLANK($G39) = 1),"", (VLOOKUP($G39,'2. Master Adhesive List'!$A$12:$H$62,3,FALSE))) ->  | L39: =IF((COUNTBLANK($G39) = 1),"", (VLOOKUP($G39,'2. Master Adhesive List'!$A$12:$H$42,4,TRUE))) ->  | M39: =IF((COUNTBLANK($G39) = 1),"", (VLOOKUP($G39,'2. Master Adhesive List'!$A$12:$H$62,6,TRUE))) -> 
B40: ='1. INSTRUCTIONS'!B6:J6 -> 0 | H40: =IF((COUNTBLANK($G40) = 1),"", (VLOOKUP($G40,'2. Master Adhesive List'!$A$12:$H$62,2,FALSE))) ->  | K40: =IF((COUNTBLANK($G40) = 1),"", (VLOOKUP($G40,'2. Master Adhesive List'!$A$12:$H$62,3,FALSE))) ->  | L40: =IF((COUNTBLANK($G40) = 1),"", (VLOOKUP($G40,'2. Master Adhesive List'!$A$12:$H$42,4,TRUE))) ->  | M40: =IF((COUNTBLANK($G40) = 1),"", (VLOOKUP($G40,'2. Master Adhesive List'!$A$12:$H$62,6,TRUE))) -> 
B41: ='1. INSTRUCTIONS'!B6:J6 -> 0 | H41: =IF((COUNTBLANK($G41) = 1),"", (VLOOKUP($G41,'2. Master Adhesive List'!$A$12:$H$62,2,FALSE))) ->  | K41: =IF((COUNTBLANK($G41) = 1),"", (VLOOKUP($G41,'2. Master Adhesive List'!$A$12:$H$62,3,FALSE))) ->  | L41: =IF((COUNTBLANK($G41) = 1),"", (VLOOKUP($G41,'2. Master Adhesive List'!$A$12:$H$42,4,TRUE))) ->  | M41: =IF((COUNTBLANK($G41) = 1),"", (VLOOKUP($G41,'2. Master Adhesive List'!$A$12:$H$62,6,TRUE))) -> 
B42: ='1. INSTRUCTIONS'!B6:J6 -> 0 | H42: =IF((COUNTBLANK($G42) = 1),"", (VLOOKUP($G42,'2. Master Adhesive List'!$A$12:$H$62,2,FALSE))) ->  | K42: =IF((COUNTBLANK($G42) = 1),"", (VLOOKUP($G42,'2. Master Adhesive List'!$A$12:$H$62,3,FALSE))) ->  | L42: =IF((COUNTBLANK($G42) = 1),"", (VLOOKUP($G42,'2. Master Adhesive List'!$A$12:$H$42,4,TRUE))) ->  | M42: =IF((COUNTBLANK($G42) = 1),"", (VLOOKUP($G42,'2. Master Adhesive List'!$A$12:$H$62,6,TRUE))) -> 
B43: ='1. INSTRUCTIONS'!B6:J6 -> 0 | H43: =IF((COUNTBLANK($G43) = 1),"", (VLOOKUP($G43,'2. Master Adhesive List'!$A$12:$H$62,2,FALSE))) ->  | K43: =IF((COUNTBLANK($G43) = 1),"", (VLOOKUP($G43,'2. Master Adhesive List'!$A$12:$H$62,3,FALSE))) ->  | L43: =IF((COUNTBLANK($G43) = 1),"", (VLOOKUP($G43,'2. Master Adhesive List'!$A$12:$H$42,4,TRUE))) ->  | M43: =IF((COUNTBLANK($G43) = 1),"", (VLOOKUP($G43,'2. Master Adhesive List'!$A$12:$H$62,6,TRUE))) -> 
B44: ='1. INSTRUCTIONS'!B6:J6 -> 0 | H44: =IF((COUNTBLANK($G44) = 1),"", (VLOOKUP($G44,'2. Master Adhesive List'!$A$12:$H$62,2,FALSE))) ->  | K44: =IF((COUNTBLANK($G44) = 1),"", (VLOOKUP($G44,'2. Master Adhesive List'!$A$12:$H$62,3,FALSE))) ->  | L44: =IF((COUNTBLANK($G44) = 1),"", (VLOOKUP($G44,'2. Master Adhesive List'!$A$12:$H$42,4,TRUE))) ->  | M44: =IF((COUNTBLANK($G44) = 1),"", (VLOOKUP($G44,'2. Master Adhesive List'!$A$12:$H$62,6,TRUE))) -> 
B45: ='1. INSTRUCTIONS'!B6:J6 -> 0 | H45: =IF((COUNTBLANK($G45) = 1),"", (VLOOKUP($G45,'2. Master Adhesive List'!$A$12:$H$62,2,FALSE))) ->  | K45: =IF((COUNTBLANK($G45) = 1),"", (VLOOKUP($G45,'2. Master Adhesive List'!$A$12:$H$62,3,FALSE))) ->  | L45: =IF((COUNTBLANK($G45) = 1),"", (VLOOKUP($G45,'2. Master Adhesive List'!$A$12:$H$42,4,TRUE))) ->  | M45: =IF((COUNTBLANK($G45) = 1),"", (VLOOKUP($G45,'2. Master Adhesive List'!$A$12:$H$62,6,TRUE))) -> 
B46: ='1. INSTRUCTIONS'!B6:J6 -> 0 | H46: =IF((COUNTBLANK($G46) = 1),"", (VLOOKUP($G46,'2. Master Adhesive List'!$A$12:$H$62,2,FALSE))) ->  | K46: =IF((COUNTBLANK($G46) = 1),"", (VLOOKUP($G46,'2. Master Adhesive List'!$A$12:$H$62,3,FALSE))) ->  | L46: =IF((COUNTBLANK($G46) = 1),"", (VLOOKUP($G46,'2. Master Adhesive List'!$A$12:$H$42,4,TRUE))) ->  | M46: =IF((COUNTBLANK($G46) = 1),"", (VLOOKUP($G46,'2. Master Adhesive List'!$A$12:$H$62,6,TRUE))) -> 
B47: ='1. INSTRUCTIONS'!B6:J6 -> 0 | H47: =IF((COUNTBLANK($G47) = 1),"", (VLOOKUP($G47,'2. Master Adhesive List'!$A$12:$H$62,2,FALSE))) ->  | K47: =IF((COUNTBLANK($G47) = 1),"", (VLOOKUP($G47,'2. Master Adhesive List'!$A$12:$H$62,3,FALSE))) ->  | L47: =IF((COUNTBLANK($G47) = 1),"", (VLOOKUP($G47,'2. Master Adhesive List'!$A$12:$H$42,4,TRUE))) ->  | M47: =IF((COUNTBLANK($G47) = 1),"", (VLOOKUP($G47,'2. Master Adhesive List'!$A$12:$H$62,6,TRUE))) -> 
B48: ='1. INSTRUCTIONS'!B6:J6 -> 0 | H48: =IF((COUNTBLANK($G48) = 1),"", (VLOOKUP($G48,'2. Master Adhesive List'!$A$12:$H$62,2,FALSE))) ->  | K48: =IF((COUNTBLANK($G48) = 1),"", (VLOOKUP($G48,'2. Master Adhesive List'!$A$12:$H$62,3,FALSE))) ->  | L48: =IF((COUNTBLANK($G48) = 1),"", (VLOOKUP($G48,'2. Master Adhesive List'!$A$12:$H$42,4,TRUE))) ->  | M48: =IF((COUNTBLANK($G48) = 1),"", (VLOOKUP($G48,'2. Master Adhesive List'!$A$12:$H$62,6,TRUE))) -> 
B49: ='1. INSTRUCTIONS'!B6:J6 -> 0 | H49: =IF((COUNTBLANK($G49) = 1),"", (VLOOKUP($G49,'2. Master Adhesive List'!$A$12:$H$62,2,FALSE))) ->  | K49: =IF((COUNTBLANK($G49) = 1),"", (VLOOKUP($G49,'2. Master Adhesive List'!$A$12:$H$62,3,FALSE))) ->  | L49: =IF((COUNTBLANK($G49) = 1),"", (VLOOKUP($G49,'2. Master Adhesive List'!$A$12:$H$42,4,TRUE))) ->  | M49: =IF((COUNTBLANK($G49) = 1),"", (VLOOKUP($G49,'2. Master Adhesive List'!$A$12:$H$62,6,TRUE))) -> 
B50: ='1. INSTRUCTIONS'!B6:J6 -> 0 | H50: =IF((COUNTBLANK($G50) = 1),"", (VLOOKUP($G50,'2. Master Adhesive List'!$A$12:$H$62,2,FALSE))) ->  | K50: =IF((COUNTBLANK($G50) = 1),"", (VLOOKUP($G50,'2. Master Adhesive List'!$A$12:$H$62,3,FALSE))) ->  | L50: =IF((COUNTBLANK($G50) = 1),"", (VLOOKUP($G50,'2. Master Adhesive List'!$A$12:$H$42,4,TRUE))) ->  | M50: =IF((COUNTBLANK($G50) = 1),"", (VLOOKUP($G50,'2. Master Adhesive List'!$A$12:$H$62,6,TRUE))) -> 
B51: ='1. INSTRUCTIONS'!B6:J6 -> 0 | H51: =IF((COUNTBLANK($G51) = 1),"", (VLOOKUP($G51,'2. Master Adhesive List'!$A$12:$H$62,2,FALSE))) ->  | K51: =IF((COUNTBLANK($G51) = 1),"", (VLOOKUP($G51,'2. Master Adhesive List'!$A$12:$H$62,3,FALSE))) ->  | L51: =IF((COUNTBLANK($G51) = 1),"", (VLOOKUP($G51,'2. Master Adhesive List'!$A$12:$H$42,4,TRUE))) ->  | M51: =IF((COUNTBLANK($G51) = 1),"", (VLOOKUP($G51,'2. Master Adhesive List'!$A$12:$H$62,6,TRUE))) -> 
B52: ='1. INSTRUCTIONS'!B6:J6 -> 0 | H52: =IF((COUNTBLANK($G52) = 1),"", (VLOOKUP($G52,'2. Master Adhesive List'!$A$12:$H$62,2,FALSE))) ->  | K52: =IF((COUNTBLANK($G52) = 1),"", (VLOOKUP($G52,'2. Master Adhesive List'!$A$12:$H$62,3,FALSE))) ->  | L52: =IF((COUNTBLANK($G52) = 1),"", (VLOOKUP($G52,'2. Master Adhesive List'!$A$12:$H$42,4,TRUE))) ->  | M52: =IF((COUNTBLANK($G52) = 1),"", (VLOOKUP($G52,'2. Master Adhesive List'!$A$12:$H$62,6,TRUE))) -> 
B53: ='1. INSTRUCTIONS'!B6:J6 -> 0 | H53: =IF((COUNTBLANK($G53) = 1),"", (VLOOKUP($G53,'2. Master Adhesive List'!$A$12:$H$62,2,FALSE))) ->  | K53: =IF((COUNTBLANK($G53) = 1),"", (VLOOKUP($G53,'2. Master Adhesive List'!$A$12:$H$62,3,FALSE))) ->  | L53: =IF((COUNTBLANK($G53) = 1),"", (VLOOKUP($G53,'2. Master Adhesive List'!$A$12:$H$42,4,TRUE))) ->  | M53: =IF((COUNTBLANK($G53) = 1),"", (VLOOKUP($G53,'2. Master Adhesive List'!$A$12:$H$62,6,TRUE))) -> 
B54: ='1. INSTRUCTIONS'!B6:J6 -> 0 | H54: =IF((COUNTBLANK($G54) = 1),"", (VLOOKUP($G54,'2. Master Adhesive List'!$A$12:$H$62,2,FALSE))) ->  | K54: =IF((COUNTBLANK($G54) = 1),"", (VLOOKUP($G54,'2. Master Adhesive List'!$A$12:$H$62,3,FALSE))) ->  | L54: =IF((COUNTBLANK($G54) = 1),"", (VLOOKUP($G54,'2. Master Adhesive List'!$A$12:$H$42,4,TRUE))) ->  | M54: =IF((COUNTBLANK($G54) = 1),"", (VLOOKUP($G54,'2. Master Adhesive List'!$A$12:$H$62,6,TRUE))) -> 
B55: ='1. INSTRUCTIONS'!B6:J6 -> 0 | H55: =IF((COUNTBLANK($G55) = 1),"", (VLOOKUP($G55,'2. Master Adhesive List'!$A$12:$H$62,2,FALSE))) ->  | K55: =IF((COUNTBLANK($G55) = 1),"", (VLOOKUP($G55,'2. Master Adhesive List'!$A$12:$H$62,3,FALSE))) ->  | L55: =IF((COUNTBLANK($G55) = 1),"", (VLOOKUP($G55,'2. Master Adhesive List'!$A$12:$H$42,4,TRUE))) ->  | M55: =IF((COUNTBLANK($G55) = 1),"", (VLOOKUP($G55,'2. Master Adhesive List'!$A$12:$H$62,6,TRUE))) -> 
B56: ='1. INSTRUCTIONS'!B6:J6 -> 0 | H56: =IF((COUNTBLANK($G56) = 1),"", (VLOOKUP($G56,'2. Master Adhesive List'!$A$12:$H$62,2,FALSE))) ->  | K56: =IF((COUNTBLANK($G56) = 1),"", (VLOOKUP($G56,'2. Master Adhesive List'!$A$12:$H$62,3,FALSE))) ->  | L56: =IF((COUNTBLANK($G56) = 1),"", (VLOOKUP($G56,'2. Master Adhesive List'!$A$12:$H$42,4,TRUE))) ->  | M56: =IF((COUNTBLANK($G56) = 1),"", (VLOOKUP($G56,'2. Master Adhesive List'!$A$12:$H$62,6,TRUE))) -> 
B57: ='1. INSTRUCTIONS'!B6:J6 -> 0 | H57: =IF((COUNTBLANK($G57) = 1),"", (VLOOKUP($G57,'2. Master Adhesive List'!$A$12:$H$62,2,FALSE))) ->  | K57: =IF((COUNTBLANK($G57) = 1),"", (VLOOKUP($G57,'2. Master Adhesive List'!$A$12:$H$62,3,FALSE))) ->  | L57: =IF((COUNTBLANK($G57) = 1),"", (VLOOKUP($G57,'2. Master Adhesive List'!$A$12:$H$42,4,TRUE))) ->  | M57: =IF((COUNTBLANK($G57) = 1),"", (VLOOKUP($G57,'2. Master Adhesive List'!$A$12:$H$62,6,TRUE))) -> 
B58: ='1. INSTRUCTIONS'!B6:J6 -> 0 | H58: =IF((COUNTBLANK($G58) = 1),"", (VLOOKUP($G58,'2. Master Adhesive List'!$A$12:$H$62,2,FALSE))) ->  | K58: =IF((COUNTBLANK($G58) = 1),"", (VLOOKUP($G58,'2. Master Adhesive List'!$A$12:$H$62,3,FALSE))) ->  | L58: =IF((COUNTBLANK($G58) = 1),"", (VLOOKUP($G58,'2. Master Adhesive List'!$A$12:$H$42,4,TRUE))) ->  | M58: =IF((COUNTBLANK($G58) = 1),"", (VLOOKUP($G58,'2. Master Adhesive List'!$A$12:$H$62,6,TRUE))) -> 
B59: ='1. INSTRUCTIONS'!B6:J6 -> 0 | H59: =IF((COUNTBLANK($G59) = 1),"", (VLOOKUP($G59,'2. Master Adhesive List'!$A$12:$H$62,2,FALSE))) ->  | K59: =IF((COUNTBLANK($G59) = 1),"", (VLOOKUP($G59,'2. Master Adhesive List'!$A$12:$H$62,3,FALSE))) ->  | L59: =IF((COUNTBLANK($G59) = 1),"", (VLOOKUP($G59,'2. Master Adhesive List'!$A$12:$H$42,4,TRUE))) ->  | M59: =IF((COUNTBLANK($G59) = 1),"", (VLOOKUP($G59,'2. Master Adhesive List'!$A$12:$H$62,6,TRUE))) -> 
B60: ='1. INSTRUCTIONS'!B6:J6 -> 0 | H60: =IF((COUNTBLANK($G60) = 1),"", (VLOOKUP($G60,'2. Master Adhesive List'!$A$12:$H$62,2,FALSE))) ->  | K60: =IF((COUNTBLANK($G60) = 1),"", (VLOOKUP($G60,'2. Master Adhesive List'!$A$12:$H$62,3,FALSE))) ->  | L60: =IF((COUNTBLANK($G60) = 1),"", (VLOOKUP($G60,'2. Master Adhesive List'!$A$12:$H$42,4,TRUE))) ->  | M60: =IF((COUNTBLANK($G60) = 1),"", (VLOOKUP($G60,'2. Master Adhesive List'!$A$12:$H$62,6,TRUE))) -> 
B61: ='1. INSTRUCTIONS'!B6:J6 -> 0 | H61: =IF((COUNTBLANK($G61) = 1),"", (VLOOKUP($G61,'2. Master Adhesive List'!$A$12:$H$62,2,FALSE))) ->  | K61: =IF((COUNTBLANK($G61) = 1),"", (VLOOKUP($G61,'2. Master Adhesive List'!$A$12:$H$62,3,FALSE))) ->  | L61: =IF((COUNTBLANK($G61) = 1),"", (VLOOKUP($G61,'2. Master Adhesive List'!$A$12:$H$42,4,TRUE))) ->  | M61: =IF((COUNTBLANK($G61) = 1),"", (VLOOKUP($G61,'2. Master Adhesive List'!$A$12:$H$62,6,TRUE))) -> 
B62: ='1. INSTRUCTIONS'!B6:J6 -> 0 | H62: =IF((COUNTBLANK($G62) = 1),"", (VLOOKUP($G62,'2. Master Adhesive List'!$A$12:$H$62,2,FALSE))) ->  | K62: =IF((COUNTBLANK($G62) = 1),"", (VLOOKUP($G62,'2. Master Adhesive List'!$A$12:$H$62,3,FALSE))) ->  | L62: =IF((COUNTBLANK($G62) = 1),"", (VLOOKUP($G62,'2. Master Adhesive List'!$A$12:$H$42,4,TRUE))) ->  | M62: =IF((COUNTBLANK($G62) = 1),"", (VLOOKUP($G62,'2. Master Adhesive List'!$A$12:$H$62,6,TRUE))) -> 
B63: ='1. INSTRUCTIONS'!B6:J6 -> 0 | H63: =IF((COUNTBLANK($G63) = 1),"", (VLOOKUP($G63,'2. Master Adhesive List'!$A$12:$H$62,2,FALSE))) ->  | K63: =IF((COUNTBLANK($G63) = 1),"", (VLOOKUP($G63,'2. Master Adhesive List'!$A$12:$H$62,3,FALSE))) ->  | L63: =IF((COUNTBLANK($G63) = 1),"", (VLOOKUP($G63,'2. Master Adhesive List'!$A$12:$H$42,4,TRUE))) ->  | M63: =IF((COUNTBLANK($G63) = 1),"", (VLOOKUP($G63,'2. Master Adhesive List'!$A$12:$H$62,6,TRUE))) -> 
B64: ='1. INSTRUCTIONS'!B6:J6 -> 0 | H64: =IF((COUNTBLANK($G64) = 1),"", (VLOOKUP($G64,'2. Master Adhesive List'!$A$12:$H$62,2,FALSE))) ->  | K64: =IF((COUNTBLANK($G64) = 1),"", (VLOOKUP($G64,'2. Master Adhesive List'!$A$12:$H$62,3,FALSE))) ->  | L64: =IF((COUNTBLANK($G64) = 1),"", (VLOOKUP($G64,'2. Master Adhesive List'!$A$12:$H$42,4,TRUE))) ->  | M64: =IF((COUNTBLANK($G64) = 1),"", (VLOOKUP($G64,'2. Master Adhesive List'!$A$12:$H$62,6,TRUE))) -> 
B65: ='1. INSTRUCTIONS'!B6:J6 -> 0 | H65: =IF((COUNTBLANK($G65) = 1),"", (VLOOKUP($G65,'2. Master Adhesive List'!$A$12:$H$62,2,FALSE))) ->  | K65: =IF((COUNTBLANK($G65) = 1),"", (VLOOKUP($G65,'2. Master Adhesive List'!$A$12:$H$62,3,FALSE))) ->  | L65: =IF((COUNTBLANK($G65) = 1),"", (VLOOKUP($G65,'2. Master Adhesive List'!$A$12:$H$42,4,TRUE))) ->  | M65: =IF((COUNTBLANK($G65) = 1),"", (VLOOKUP($G65,'2. Master Adhesive List'!$A$12:$H$62,6,TRUE))) -> 
B66: ='1. INSTRUCTIONS'!B6:J6 -> 0 | H66: =IF((COUNTBLANK($G66) = 1),"", (VLOOKUP($G66,'2. Master Adhesive List'!$A$12:$H$62,2,FALSE))) ->  | K66: =IF((COUNTBLANK($G66) = 1),"", (VLOOKUP($G66,'2. Master Adhesive List'!$A$12:$H$62,3,FALSE))) ->  | L66: =IF((COUNTBLANK($G66) = 1),"", (VLOOKUP($G66,'2. Master Adhesive List'!$A$12:$H$42,4,TRUE))) ->  | M66: =IF((COUNTBLANK($G66) = 1),"", (VLOOKUP($G66,'2. Master Adhesive List'!$A$12:$H$62,6,TRUE))) -> 
B67: ='1. INSTRUCTIONS'!B6:J6 -> 0 | H67: =IF((COUNTBLANK($G67) = 1),"", (VLOOKUP($G67,'2. Master Adhesive List'!$A$12:$H$62,2,FALSE))) ->  | K67: =IF((COUNTBLANK($G67) = 1),"", (VLOOKUP($G67,'2. Master Adhesive List'!$A$12:$H$62,3,FALSE))) ->  | L67: =IF((COUNTBLANK($G67) = 1),"", (VLOOKUP($G67,'2. Master Adhesive List'!$A$12:$H$42,4,TRUE))) ->  | M67: =IF((COUNTBLANK($G67) = 1),"", (VLOOKUP($G67,'2. Master Adhesive List'!$A$12:$H$62,6,TRUE))) -> 
B68: ='1. INSTRUCTIONS'!B6:J6 -> 0 | H68: =IF((COUNTBLANK($G68) = 1),"", (VLOOKUP($G68,'2. Master Adhesive List'!$A$12:$H$62,2,FALSE))) ->  | K68: =IF((COUNTBLANK($G68) = 1),"", (VLOOKUP($G68,'2. Master Adhesive List'!$A$12:$H$62,3,FALSE))) ->  | L68: =IF((COUNTBLANK($G68) = 1),"", (VLOOKUP($G68,'2. Master Adhesive List'!$A$12:$H$42,4,TRUE))) ->  | M68: =IF((COUNTBLANK($G68) = 1),"", (VLOOKUP($G68,'2. Master Adhesive List'!$A$12:$H$62,6,TRUE))) -> 
B69: ='1. INSTRUCTIONS'!B6:J6 -> 0 | H69: =IF((COUNTBLANK($G69) = 1),"", (VLOOKUP($G69,'2. Master Adhesive List'!$A$12:$H$62,2,FALSE))) ->  | K69: =IF((COUNTBLANK($G69) = 1),"", (VLOOKUP($G69,'2. Master Adhesive List'!$A$12:$H$62,3,FALSE))) ->  | L69: =IF((COUNTBLANK($G69) = 1),"", (VLOOKUP($G69,'2. Master Adhesive List'!$A$12:$H$42,4,TRUE))) ->  | M69: =IF((COUNTBLANK($G69) = 1),"", (VLOOKUP($G69,'2. Master Adhesive List'!$A$12:$H$62,6,TRUE))) -> 
B70: ='1. INSTRUCTIONS'!B6:J6 -> 0 | H70: =IF((COUNTBLANK($G70) = 1),"", (VLOOKUP($G70,'2. Master Adhesive List'!$A$12:$H$62,2,FALSE))) ->  | K70: =IF((COUNTBLANK($G70) = 1),"", (VLOOKUP($G70,'2. Master Adhesive List'!$A$12:$H$62,3,FALSE))) ->  | L70: =IF((COUNTBLANK($G70) = 1),"", (VLOOKUP($G70,'2. Master Adhesive List'!$A$12:$H$42,4,TRUE))) ->  | M70: =IF((COUNTBLANK($G70) = 1),"", (VLOOKUP($G70,'2. Master Adhesive List'!$A$12:$H$62,6,TRUE))) -> 
B71: ='1. INSTRUCTIONS'!B6:J6 -> 0 | H71: =IF((COUNTBLANK($G71) = 1),"", (VLOOKUP($G71,'2. Master Adhesive List'!$A$12:$H$62,2,FALSE))) ->  | K71: =IF((COUNTBLANK($G71) = 1),"", (VLOOKUP($G71,'2. Master Adhesive List'!$A$12:$H$62,3,FALSE))) ->  | L71: =IF((COUNTBLANK($G71) = 1),"", (VLOOKUP($G71,'2. Master Adhesive List'!$A$12:$H$42,4,TRUE))) ->  | M71: =IF((COUNTBLANK($G71) = 1),"", (VLOOKUP($G71,'2. Master Adhesive List'!$A$12:$H$62,6,TRUE))) -> 
B72: ='1. INSTRUCTIONS'!B6:J6 -> 0 | H72: =IF((COUNTBLANK($G72) = 1),"", (VLOOKUP($G72,'2. Master Adhesive List'!$A$12:$H$62,2,FALSE))) ->  | K72: =IF((COUNTBLANK($G72) = 1),"", (VLOOKUP($G72,'2. Master Adhesive List'!$A$12:$H$62,3,FALSE))) ->  | L72: =IF((COUNTBLANK($G72) = 1),"", (VLOOKUP($G72,'2. Master Adhesive List'!$A$12:$H$42,4,TRUE))) ->  | M72: =IF((COUNTBLANK($G72) = 1),"", (VLOOKUP($G72,'2. Master Adhesive List'!$A$12:$H$62,6,TRUE))) -> 
B73: ='1. INSTRUCTIONS'!B6:J6 -> 0 | H73: =IF((COUNTBLANK($G73) = 1),"", (VLOOKUP($G73,'2. Master Adhesive List'!$A$12:$H$62,2,FALSE))) ->  | K73: =IF((COUNTBLANK($G73) = 1),"", (VLOOKUP($G73,'2. Master Adhesive List'!$A$12:$H$62,3,FALSE))) ->  | L73: =IF((COUNTBLANK($G73) = 1),"", (VLOOKUP($G73,'2. Master Adhesive List'!$A$12:$H$42,4,TRUE))) ->  | M73: =IF((COUNTBLANK($G73) = 1),"", (VLOOKUP($G73,'2. Master Adhesive List'!$A$12:$H$62,6,TRUE))) -> 
B74: ='1. INSTRUCTIONS'!B6:J6 -> 0 | H74: =IF((COUNTBLANK($G74) = 1),"", (VLOOKUP($G74,'2. Master Adhesive List'!$A$12:$H$62,2,FALSE))) ->  | K74: =IF((COUNTBLANK($G74) = 1),"", (VLOOKUP($G74,'2. Master Adhesive List'!$A$12:$H$62,3,FALSE))) ->  | L74: =IF((COUNTBLANK($G74) = 1),"", (VLOOKUP($G74,'2. Master Adhesive List'!$A$12:$H$42,4,TRUE))) ->  | M74: =IF((COUNTBLANK($G74) = 1),"", (VLOOKUP($G74,'2. Master Adhesive List'!$A$12:$H$62,6,TRUE))) -> 
B75: ='1. INSTRUCTIONS'!B6:J6 -> 0 | H75: =IF((COUNTBLANK($G75) = 1),"", (VLOOKUP($G75,'2. Master Adhesive List'!$A$12:$H$62,2,FALSE))) ->  | K75: =IF((COUNTBLANK($G75) = 1),"", (VLOOKUP($G75,'2. Master Adhesive List'!$A$12:$H$62,3,FALSE))) ->  | L75: =IF((COUNTBLANK($G75) = 1),"", (VLOOKUP($G75,'2. Master Adhesive List'!$A$12:$H$42,4,TRUE))) ->  | M75: =IF((COUNTBLANK($G75) = 1),"", (VLOOKUP($G75,'2. Master Adhesive List'!$A$12:$H$62,6,TRUE))) -> 
B76: ='1. INSTRUCTIONS'!B6:J6 -> 0 | H76: =IF((COUNTBLANK($G76) = 1),"", (VLOOKUP($G76,'2. Master Adhesive List'!$A$12:$H$62,2,FALSE))) ->  | K76: =IF((COUNTBLANK($G76) = 1),"", (VLOOKUP($G76,'2. Master Adhesive List'!$A$12:$H$62,3,FALSE))) ->  | L76: =IF((COUNTBLANK($G76) = 1),"", (VLOOKUP($G76,'2. Master Adhesive List'!$A$12:$H$42,4,TRUE))) ->  | M76: =IF((COUNTBLANK($G76) = 1),"", (VLOOKUP($G76,'2. Master Adhesive List'!$A$12:$H$62,6,TRUE))) -> 
B77: ='1. INSTRUCTIONS'!B6:J6 -> 0 | H77: =IF((COUNTBLANK($G77) = 1),"", (VLOOKUP($G77,'2. Master Adhesive List'!$A$12:$H$62,2,FALSE))) ->  | K77: =IF((COUNTBLANK($G77) = 1),"", (VLOOKUP($G77,'2. Master Adhesive List'!$A$12:$H$62,3,FALSE))) ->  | L77: =IF((COUNTBLANK($G77) = 1),"", (VLOOKUP($G77,'2. Master Adhesive List'!$A$12:$H$42,4,TRUE))) ->  | M77: =IF((COUNTBLANK($G77) = 1),"", (VLOOKUP($G77,'2. Master Adhesive List'!$A$12:$H$62,6,TRUE))) -> 
B78: ='1. INSTRUCTIONS'!B6:J6 -> 0 | H78: =IF((COUNTBLANK($G78) = 1),"", (VLOOKUP($G78,'2. Master Adhesive List'!$A$12:$H$62,2,FALSE))) ->  | K78: =IF((COUNTBLANK($G78) = 1),"", (VLOOKUP($G78,'2. Master Adhesive List'!$A$12:$H$62,3,FALSE))) ->  | L78: =IF((COUNTBLANK($G78) = 1),"", (VLOOKUP($G78,'2. Master Adhesive List'!$A$12:$H$42,4,TRUE))) ->  | M78: =IF((COUNTBLANK($G78) = 1),"", (VLOOKUP($G78,'2. Master Adhesive List'!$A$12:$H$62,6,TRUE))) -> 
B79: ='1. INSTRUCTIONS'!B6:J6 -> 0 | H79: =IF((COUNTBLANK($G79) = 1),"", (VLOOKUP($G79,'2. Master Adhesive List'!$A$12:$H$62,2,FALSE))) ->  | K79: =IF((COUNTBLANK($G79) = 1),"", (VLOOKUP($G79,'2. Master Adhesive List'!$A$12:$H$62,3,FALSE))) ->  | L79: =IF((COUNTBLANK($G79) = 1),"", (VLOOKUP($G79,'2. Master Adhesive List'!$A$12:$H$42,4,TRUE))) ->  | M79: =IF((COUNTBLANK($G79) = 1),"", (VLOOKUP($G79,'2. Master Adhesive List'!$A$12:$H$62,6,TRUE))) -> 
B80: ='1. INSTRUCTIONS'!B6:J6 -> 0 | H80: =IF((COUNTBLANK($G80) = 1),"", (VLOOKUP($G80,'2. Master Adhesive List'!$A$12:$H$62,2,FALSE))) ->  | K80: =IF((COUNTBLANK($G80) = 1),"", (VLOOKUP($G80,'2. Master Adhesive List'!$A$12:$H$62,3,FALSE))) ->  | L80: =IF((COUNTBLANK($G80) = 1),"", (VLOOKUP($G80,'2. Master Adhesive List'!$A$12:$H$42,4,TRUE))) ->  | M80: =IF((COUNTBLANK($G80) = 1),"", (VLOOKUP($G80,'2. Master Adhesive List'!$A$12:$H$62,6,TRUE))) -> 
B81: ='1. INSTRUCTIONS'!B6:J6 -> 0 | H81: =IF((COUNTBLANK($G81) = 1),"", (VLOOKUP($G81,'2. Master Adhesive List'!$A$12:$H$62,2,FALSE))) ->  | K81: =IF((COUNTBLANK($G81) = 1),"", (VLOOKUP($G81,'2. Master Adhesive List'!$A$12:$H$62,3,FALSE))) ->  | L81: =IF((COUNTBLANK($G81) = 1),"", (VLOOKUP($G81,'2. Master Adhesive List'!$A$12:$H$42,4,TRUE))) ->  | M81: =IF((COUNTBLANK($G81) = 1),"", (VLOOKUP($G81,'2. Master Adhesive List'!$A$12:$H$62,6,TRUE))) -> 
B82: ='1. INSTRUCTIONS'!B6:J6 -> 0 | H82: =IF((COUNTBLANK($G82) = 1),"", (VLOOKUP($G82,'2. Master Adhesive List'!$A$12:$H$62,2,FALSE))) ->  | K82: =IF((COUNTBLANK($G82) = 1),"", (VLOOKUP($G82,'2. Master Adhesive List'!$A$12:$H$62,3,FALSE))) ->  | L82: =IF((COUNTBLANK($G82) = 1),"", (VLOOKUP($G82,'2. Master Adhesive List'!$A$12:$H$42,4,TRUE))) ->  | M82: =IF((COUNTBLANK($G82) = 1),"", (VLOOKUP($G82,'2. Master Adhesive List'!$A$12:$H$62,6,TRUE))) -> 

Sheet 5. Solvent Reprting Form
E1: Name of Company Perfoming Marine Coating: | G1: Company Name
G2: ='1. INSTRUCTIONS'!B6 -> 0 | I2: Reporting Month: | L2: Reporting Year:
E7: Report Certification:
E8: I certify that this report contains an accurate and complete accounting of all marine coating activities performed by the above-listed company at the listed government installation during the reporting month. I further certify that the company listed above employs a system to verify the as-supplied VOC content of each batch of coating used to ensure that the VOC content does not exceed the VOC limits established in San Diego Air Pollution Control District Rule 67.18 (and 40 CFR Part 63, where applicable). I certify that no paint products were thinned and that the values shown above are an accurate representation of the as-applied VOC content of the products used.
E12: Name: | I12: Date:
B15: Hiring Agency | C15: Company Name | D15: Prime Contractor | E15: Vessel Name | F15: Date Used | G15: Solvent Products Used | H15: VOC g/l | I15: Vapor Pressure mm/hg | J15: Initial boiling Point °C | K15: Gallons of Solvent Issued | L15: Gallons of Solvent to Waste Disposal | M15: Total Gallons Used | N15: Pounds of VOCs Emitted | O15: Pounds of n-butanol Emitted | P15: Pounds of Xylenes Emitted
C16: =$G$2 -> 0 | H16: =IF(ISBLANK(G16)," ",VLOOKUP($G16,'[1]5. Master Solvent Product List'!$E$5:$S$100,4,FALSE)) ->  | I16: =IF(ISBLANK(G16)," ",VLOOKUP($G16,'[1]5. Master Solvent Product List'!$E$5:$S$100,7,FALSE)) ->  | J16: =IF(ISBLANK(G16)," ",VLOOKUP($G16,'[1]5. Master Solvent Product List'!$E$5:$S$100,12,FALSE)) ->  | M16: =IF(ISBLANK(K16),0,K16-L16) -> 0 | N16: =IF(ISBLANK(K16),0,(H16/120)*M16) -> 0 | O16: =IF(ISBLANK(K16),0,(H16/120)*(VLOOKUP($G16,'[1]5. Master Solvent Product List'!$E$5:$Z$25,20,FALSE))) -> 0 | P16: =IF(ISBLANK(K16),0,(H16/120)*(VLOOKUP($G16,'[1]5. Master Solvent Product List'!$E$5:$Z$25,22,FALSE))) -> 0
C17: 0 | H17: =IF(ISBLANK(G17)," ",VLOOKUP($G17,'[1]5. Master Solvent Product List'!$E$5:$S$100,4,FALSE)) ->  | I17: =IF(ISBLANK(G17)," ",VLOOKUP($G17,'[1]5. Master Solvent Product List'!$E$5:$S$100,7,FALSE)) ->  | J17: =IF(ISBLANK(G17)," ",VLOOKUP($G17,'[1]5. Master Solvent Product List'!$E$5:$S$100,12,FALSE)) ->  | M17: =IF(ISBLANK(K17),0,K17-L17) -> 0 | N17: =IF(ISBLANK(K17),0,(H17/120)*M17) -> 0 | O17: =IF(ISBLANK(K17),0,(H17/120)*(VLOOKUP($G17,'[1]5. Master Solvent Product List'!$E$5:$Z$25,20,FALSE))) -> 0 | P17: =IF(ISBLANK(K17),0,(H17/120)*(VLOOKUP($G17,'[1]5. Master Solvent Product List'!$E$5:$Z$25,22,FALSE))) -> 0
C18: 0 | H18: =IF(ISBLANK(G18)," ",VLOOKUP($G18,'[1]5. Master Solvent Product List'!$E$5:$S$100,4,FALSE)) ->  | I18: =IF(ISBLANK(G18)," ",VLOOKUP($G18,'[1]5. Master Solvent Product List'!$E$5:$S$100,7,FALSE)) ->  | J18: =IF(ISBLANK(G18)," ",VLOOKUP($G18,'[1]5. Master Solvent Product List'!$E$5:$S$100,12,FALSE)) ->  | M18: 0 | N18: 0 | O18: =IF(ISBLANK(K18),0,(H18/120)*(VLOOKUP($G18,'[1]5. Master Solvent Product List'!$E$5:$Z$25,20,FALSE))) -> 0 | P18: =IF(ISBLANK(K18),0,(H18/120)*(VLOOKUP($G18,'[1]5. Master Solvent Product List'!$E$5:$Z$25,22,FALSE))) -> 0
C19: 0 | H19: =IF(ISBLANK(G19)," ",VLOOKUP($G19,'[1]5. Master Solvent Product List'!$E$5:$S$100,4,FALSE)) ->  | I19: =IF(ISBLANK(G19)," ",VLOOKUP($G19,'[1]5. Master Solvent Product List'!$E$5:$S$100,7,FALSE)) ->  | J19: =IF(ISBLANK(G19)," ",VLOOKUP($G19,'[1]5. Master Solvent Product List'!$E$5:$S$100,12,FALSE)) ->  | M19: 0 | N19: 0 | O19: =IF(ISBLANK(K19),0,(H19/120)*(VLOOKUP($G19,'[1]5. Master Solvent Product List'!$E$5:$Z$25,20,FALSE))) -> 0 | P19: =IF(ISBLANK(K19),0,(H19/120)*(VLOOKUP($G19,'[1]5. Master Solvent Product List'!$E$5:$Z$25,22,FALSE))) -> 0 | Q19: `
C20: 0 | H20: =IF(ISBLANK(G20)," ",VLOOKUP($G20,'[1]5. Master Solvent Product List'!$E$5:$S$100,4,FALSE)) ->  | I20: =IF(ISBLANK(G20)," ",VLOOKUP($G20,'[1]5. Master Solvent Product List'!$E$5:$S$100,7,FALSE)) ->  | J20: =IF(ISBLANK(G20)," ",VLOOKUP($G20,'[1]5. Master Solvent Product List'!$E$5:$S$100,12,FALSE)) ->  | M20: 0 | N20: 0 | O20: =IF(ISBLANK(K20),0,(H20/120)*(VLOOKUP($G20,'[1]5. Master Solvent Product List'!$E$5:$Z$25,20,FALSE))) -> 0 | P20: =IF(ISBLANK(K20),0,(H20/120)*(VLOOKUP($G20,'[1]5. Master Solvent Product List'!$E$5:$Z$25,22,FALSE))) -> 0
C21: 0 | H21: =IF(ISBLANK(G21)," ",VLOOKUP($G21,'[1]5. Master Solvent Product List'!$E$5:$S$100,4,FALSE)) ->  | I21: =IF(ISBLANK(G21)," ",VLOOKUP($G21,'[1]5. Master Solvent Product List'!$E$5:$S$100,7,FALSE)) ->  | J21: =IF(ISBLANK(G21)," ",VLOOKUP($G21,'[1]5. Master Solvent Product List'!$E$5:$S$100,12,FALSE)) ->  | M21: 0 | N21: 0 | O21: =IF(ISBLANK(K21),0,(H21/120)*(VLOOKUP($G21,'[1]5. Master Solvent Product List'!$E$5:$Z$25,20,FALSE))) -> 0 | P21: =IF(ISBLANK(K21),0,(H21/120)*(VLOOKUP($G21,'[1]5. Master Solvent Product List'!$E$5:$Z$25,22,FALSE))) -> 0
C22: 0 | H22: =IF(ISBLANK(G22)," ",VLOOKUP($G22,'[1]5. Master Solvent Product List'!$E$5:$S$100,4,FALSE)) ->  | I22: =IF(ISBLANK(G22)," ",VLOOKUP($G22,'[1]5. Master Solvent Product List'!$E$5:$S$100,7,FALSE)) ->  | J22: =IF(ISBLANK(G22)," ",VLOOKUP($G22,'[1]5. Master Solvent Product List'!$E$5:$S$100,12,FALSE)) ->  | M22: 0 | N22: 0 | O22: =IF(ISBLANK(K22),0,(H22/120)*(VLOOKUP($G22,'[1]5. Master Solvent Product List'!$E$5:$Z$25,20,FALSE))) -> 0 | P22: =IF(ISBLANK(K22),0,(H22/120)*(VLOOKUP($G22,'[1]5. Master Solvent Product List'!$E$5:$Z$25,22,FALSE))) -> 0
C23: 0 | H23: =IF(ISBLANK(G23)," ",VLOOKUP($G23,'[1]5. Master Solvent Product List'!$E$5:$S$100,4,FALSE)) ->  | I23: =IF(ISBLANK(G23)," ",VLOOKUP($G23,'[1]5. Master Solvent Product List'!$E$5:$S$100,7,FALSE)) ->  | J23: =IF(ISBLANK(G23)," ",VLOOKUP($G23,'[1]5. Master Solvent Product List'!$E$5:$S$100,12,FALSE)) ->  | M23: 0 | N23: 0 | O23: =IF(ISBLANK(K23),0,(H23/120)*(VLOOKUP($G23,'[1]5. Master Solvent Product List'!$E$5:$Z$25,20,FALSE))) -> 0 | P23: =IF(ISBLANK(K23),0,(H23/120)*(VLOOKUP($G23,'[1]5. Master Solvent Product List'!$E$5:$Z$25,22,FALSE))) -> 0
C24: 0 | H24: =IF(ISBLANK(G24)," ",VLOOKUP($G24,'[1]5. Master Solvent Product List'!$E$5:$S$100,4,FALSE)) ->  | I24: =IF(ISBLANK(G24)," ",VLOOKUP($G24,'[1]5. Master Solvent Product List'!$E$5:$S$100,7,FALSE)) ->  | J24: =IF(ISBLANK(G24)," ",VLOOKUP($G24,'[1]5. Master Solvent Product List'!$E$5:$S$100,12,FALSE)) ->  | M24: 0 | N24: 0 | O24: =IF(ISBLANK(K24),0,(H24/120)*(VLOOKUP($G24,'[1]5. Master Solvent Product List'!$E$5:$Z$25,20,FALSE))) -> 0 | P24: =IF(ISBLANK(K24),0,(H24/120)*(VLOOKUP($G24,'[1]5. Master Solvent Product List'!$E$5:$Z$25,22,FALSE))) -> 0
C25: 0 | H25: =IF(ISBLANK(G25)," ",VLOOKUP($G25,'[1]5. Master Solvent Product List'!$E$5:$S$100,4,FALSE)) ->  | I25: =IF(ISBLANK(G25)," ",VLOOKUP($G25,'[1]5. Master Solvent Product List'!$E$5:$S$100,7,FALSE)) ->  | J25: =IF(ISBLANK(G25)," ",VLOOKUP($G25,'[1]5. Master Solvent Product List'!$E$5:$S$100,12,FALSE)) ->  | M25: 0 | N25: 0 | O25: =IF(ISBLANK(K25),0,(H25/120)*(VLOOKUP($G25,'[1]5. Master Solvent Product List'!$E$5:$Z$25,20,FALSE))) -> 0 | P25: =IF(ISBLANK(K25),0,(H25/120)*(VLOOKUP($G25,'[1]5. Master Solvent Product List'!$E$5:$Z$25,22,FALSE))) -> 0
C26: 0 | H26: =IF(ISBLANK(G26)," ",VLOOKUP($G26,'[1]5. Master Solvent Product List'!$E$5:$S$100,4,FALSE)) ->  | I26: =IF(ISBLANK(G26)," ",VLOOKUP($G26,'[1]5. Master Solvent Product List'!$E$5:$S$100,7,FALSE)) ->  | J26: =IF(ISBLANK(G26)," ",VLOOKUP($G26,'[1]5. Master Solvent Product List'!$E$5:$S$100,12,FALSE)) ->  | M26: 0 | N26: 0 | O26: =IF(ISBLANK(K26),0,(H26/120)*(VLOOKUP($G26,'[1]5. Master Solvent Product List'!$E$5:$Z$25,20,FALSE))) -> 0 | P26: =IF(ISBLANK(K26),0,(H26/120)*(VLOOKUP($G26,'[1]5. Master Solvent Product List'!$E$5:$Z$25,22,FALSE))) -> 0
C27: 0 | H27: =IF(ISBLANK(G27)," ",VLOOKUP($G27,'[1]5. Master Solvent Product List'!$E$5:$S$100,4,FALSE)) ->  | I27: =IF(ISBLANK(G27)," ",VLOOKUP($G27,'[1]5. Master Solvent Product List'!$E$5:$S$100,7,FALSE)) ->  | J27: =IF(ISBLANK(G27)," ",VLOOKUP($G27,'[1]5. Master Solvent Product List'!$E$5:$S$100,12,FALSE)) ->  | M27: 0 | N27: 0 | O27: =IF(ISBLANK(K27),0,(H27/120)*(VLOOKUP($G27,'[1]5. Master Solvent Product List'!$E$5:$Z$25,20,FALSE))) -> 0 | P27: =IF(ISBLANK(K27),0,(H27/120)*(VLOOKUP($G27,'[1]5. Master Solvent Product List'!$E$5:$Z$25,22,FALSE))) -> 0
C28: 0 | H28: =IF(ISBLANK(G28)," ",VLOOKUP($G28,'[1]5. Master Solvent Product List'!$E$5:$S$100,4,FALSE)) ->  | I28: =IF(ISBLANK(G28)," ",VLOOKUP($G28,'[1]5. Master Solvent Product List'!$E$5:$S$100,7,FALSE)) ->  | J28: =IF(ISBLANK(G28)," ",VLOOKUP($G28,'[1]5. Master Solvent Product List'!$E$5:$S$100,12,FALSE)) ->  | M28: 0 | N28: 0 | O28: =IF(ISBLANK(K28),0,(H28/120)*(VLOOKUP($G28,'[1]5. Master Solvent Product List'!$E$5:$Z$25,20,FALSE))) -> 0 | P28: =IF(ISBLANK(K28),0,(H28/120)*(VLOOKUP($G28,'[1]5. Master Solvent Product List'!$E$5:$Z$25,22,FALSE))) -> 0
C29: 0 | H29: =IF(ISBLANK(G29)," ",VLOOKUP($G29,'[1]5. Master Solvent Product List'!$E$5:$S$100,4,FALSE)) ->  | I29: =IF(ISBLANK(G29)," ",VLOOKUP($G29,'[1]5. Master Solvent Product List'!$E$5:$S$100,7,FALSE)) ->  | J29: =IF(ISBLANK(G29)," ",VLOOKUP($G29,'[1]5. Master Solvent Product List'!$E$5:$S$100,12,FALSE)) ->  | M29: 0 | N29: 0 | O29: =IF(ISBLANK(K29),0,(H29/120)*(VLOOKUP($G29,'[1]5. Master Solvent Product List'!$E$5:$Z$25,20,FALSE))) -> 0 | P29: =IF(ISBLANK(K29),0,(H29/120)*(VLOOKUP($G29,'[1]5. Master Solvent Product List'!$E$5:$Z$25,22,FALSE))) -> 0
C30: 0 | H30: =IF(ISBLANK(G30)," ",VLOOKUP($G30,'[1]5. Master Solvent Product List'!$E$5:$S$100,4,FALSE)) ->  | I30: =IF(ISBLANK(G30)," ",VLOOKUP($G30,'[1]5. Master Solvent Product List'!$E$5:$S$100,7,FALSE)) ->  | J30: =IF(ISBLANK(G30)," ",VLOOKUP($G30,'[1]5. Master Solvent Product List'!$E$5:$S$100,12,FALSE)) ->  | M30: 0 | N30: 0 | O30: =IF(ISBLANK(K30),0,(H30/120)*(VLOOKUP($G30,'[1]5. Master Solvent Product List'!$E$5:$Z$25,20,FALSE))) -> 0 | P30: =IF(ISBLANK(K30),0,(H30/120)*(VLOOKUP($G30,'[1]5. Master Solvent Product List'!$E$5:$Z$25,22,FALSE))) -> 0
C31: 0 | H31: =IF(ISBLANK(G31)," ",VLOOKUP($G31,'[1]5. Master Solvent Product List'!$E$5:$S$100,4,FALSE)) ->  | I31: =IF(ISBLANK(G31)," ",VLOOKUP($G31,'[1]5. Master Solvent Product List'!$E$5:$S$100,7,FALSE)) ->  | J31: =IF(ISBLANK(G31)," ",VLOOKUP($G31,'[1]5. Master Solvent Product List'!$E$5:$S$100,12,FALSE)) ->  | M31: 0 | N31: 0 | O31: =IF(ISBLANK(K31),0,(H31/120)*(VLOOKUP($G31,'[1]5. Master Solvent Product List'!$E$5:$Z$25,20,FALSE))) -> 0 | P31: =IF(ISBLANK(K31),0,(H31/120)*(VLOOKUP($G31,'[1]5. Master Solvent Product List'!$E$5:$Z$25,22,FALSE))) -> 0
C32: 0 | H32: =IF(ISBLANK(G32)," ",VLOOKUP($G32,'[1]5. Master Solvent Product List'!$E$5:$S$100,4,FALSE)) ->  | I32: =IF(ISBLANK(G32)," ",VLOOKUP($G32,'[1]5. Master Solvent Product List'!$E$5:$S$100,7,FALSE)) ->  | J32: =IF(ISBLANK(G32)," ",VLOOKUP($G32,'[1]5. Master Solvent Product List'!$E$5:$S$100,12,FALSE)) ->  | M32: 0 | N32: 0 | O32: =IF(ISBLANK(K32),0,(H32/120)*(VLOOKUP($G32,'[1]5. Master Solvent Product List'!$E$5:$Z$25,20,FALSE))) -> 0 | P32: =IF(ISBLANK(K32),0,(H32/120)*(VLOOKUP($G32,'[1]5. Master Solvent Product List'!$E$5:$Z$25,22,FALSE))) -> 0
C33: 0 | H33: =IF(ISBLANK(G33)," ",VLOOKUP($G33,'[1]5. Master Solvent Product List'!$E$5:$S$100,4,FALSE)) ->  | I33: =IF(ISBLANK(G33)," ",VLOOKUP($G33,'[1]5. Master Solvent Product List'!$E$5:$S$100,7,FALSE)) ->  | J33: =IF(ISBLANK(G33)," ",VLOOKUP($G33,'[1]5. Master Solvent Product List'!$E$5:$S$100,12,FALSE)) ->  | M33: 0 | N33: 0 | O33: =IF(ISBLANK(K33),0,(H33/120)*(VLOOKUP($G33,'[1]5. Master Solvent Product List'!$E$5:$Z$25,20,FALSE))) -> 0 | P33: =IF(ISBLANK(K33),0,(H33/120)*(VLOOKUP($G33,'[1]5. Master Solvent Product List'!$E$5:$Z$25,22,FALSE))) -> 0
C34: 0 | H34: =IF(ISBLANK(G34)," ",VLOOKUP($G34,'[1]5. Master Solvent Product List'!$E$5:$S$100,4,FALSE)) ->  | I34: =IF(ISBLANK(G34)," ",VLOOKUP($G34,'[1]5. Master Solvent Product List'!$E$5:$S$100,7,FALSE)) ->  | J34: =IF(ISBLANK(G34)," ",VLOOKUP($G34,'[1]5. Master Solvent Product List'!$E$5:$S$100,12,FALSE)) ->  | M34: 0 | N34: 0 | O34: =IF(ISBLANK(K34),0,(H34/120)*(VLOOKUP($G34,'[1]5. Master Solvent Product List'!$E$5:$Z$25,20,FALSE))) -> 0 | P34: =IF(ISBLANK(K34),0,(H34/120)*(VLOOKUP($G34,'[1]5. Master Solvent Product List'!$E$5:$Z$25,22,FALSE))) -> 0
C35: 0 | H35: =IF(ISBLANK(G35)," ",VLOOKUP($G35,'[1]5. Master Solvent Product List'!$E$5:$S$100,4,FALSE)) ->  | I35: =IF(ISBLANK(G35)," ",VLOOKUP($G35,'[1]5. Master Solvent Product List'!$E$5:$S$100,7,FALSE)) ->  | J35: =IF(ISBLANK(G35)," ",VLOOKUP($G35,'[1]5. Master Solvent Product List'!$E$5:$S$100,12,FALSE)) ->  | M35: 0 | N35: 0 | O35: =IF(ISBLANK(K35),0,(H35/120)*(VLOOKUP($G35,'[1]5. Master Solvent Product List'!$E$5:$Z$25,20,FALSE))) -> 0 | P35: =IF(ISBLANK(K35),0,(H35/120)*(VLOOKUP($G35,'[1]5. Master Solvent Product List'!$E$5:$Z$25,22,FALSE))) -> 0
C36: 0 | H36: =IF(ISBLANK(G36)," ",VLOOKUP($G36,'[1]5. Master Solvent Product List'!$E$5:$S$100,4,FALSE)) ->  | I36: =IF(ISBLANK(G36)," ",VLOOKUP($G36,'[1]5. Master Solvent Product List'!$E$5:$S$100,7,FALSE)) ->  | J36: =IF(ISBLANK(G36)," ",VLOOKUP($G36,'[1]5. Master Solvent Product List'!$E$5:$S$100,12,FALSE)) ->  | M36: 0 | N36: 0 | O36: =IF(ISBLANK(K36),0,(H36/120)*(VLOOKUP($G36,'[1]5. Master Solvent Product List'!$E$5:$Z$25,20,FALSE))) -> 0 | P36: =IF(ISBLANK(K36),0,(H36/120)*(VLOOKUP($G36,'[1]5. Master Solvent Product List'!$E$5:$Z$25,22,FALSE))) -> 0
C37: 0 | H37: =IF(ISBLANK(G37)," ",VLOOKUP($G37,'[1]5. Master Solvent Product List'!$E$5:$S$100,4,FALSE)) ->  | I37: =IF(ISBLANK(G37)," ",VLOOKUP($G37,'[1]5. Master Solvent Product List'!$E$5:$S$100,7,FALSE)) ->  | J37: =IF(ISBLANK(G37)," ",VLOOKUP($G37,'[1]5. Master Solvent Product List'!$E$5:$S$100,12,FALSE)) ->  | M37: 0 | N37: 0 | O37: =IF(ISBLANK(K37),0,(H37/120)*(VLOOKUP($G37,'[1]5. Master Solvent Product List'!$E$5:$Z$25,20,FALSE))) -> 0 | P37: =IF(ISBLANK(K37),0,(H37/120)*(VLOOKUP($G37,'[1]5. Master Solvent Product List'!$E$5:$Z$25,22,FALSE))) -> 0
C38: 0 | H38: =IF(ISBLANK(G38)," ",VLOOKUP($G38,'[1]5. Master Solvent Product List'!$E$5:$S$100,4,FALSE)) ->  | I38: =IF(ISBLANK(G38)," ",VLOOKUP($G38,'[1]5. Master Solvent Product List'!$E$5:$S$100,7,FALSE)) ->  | J38: =IF(ISBLANK(G38)," ",VLOOKUP($G38,'[1]5. Master Solvent Product List'!$E$5:$S$100,12,FALSE)) ->  | M38: 0 | N38: 0 | O38: =IF(ISBLANK(K38),0,(H38/120)*(VLOOKUP($G38,'[1]5. Master Solvent Product List'!$E$5:$Z$25,20,FALSE))) -> 0 | P38: =IF(ISBLANK(K38),0,(H38/120)*(VLOOKUP($G38,'[1]5. Master Solvent Product List'!$E$5:$Z$25,22,FALSE))) -> 0
C39: 0 | H39: =IF(ISBLANK(G39)," ",VLOOKUP($G39,'[1]5. Master Solvent Product List'!$E$5:$S$100,4,FALSE)) ->  | I39: =IF(ISBLANK(G39)," ",VLOOKUP($G39,'[1]5. Master Solvent Product List'!$E$5:$S$100,7,FALSE)) ->  | J39: =IF(ISBLANK(G39)," ",VLOOKUP($G39,'[1]5. Master Solvent Product List'!$E$5:$S$100,12,FALSE)) ->  | M39: 0 | N39: 0 | O39: =IF(ISBLANK(K39),0,(H39/120)*(VLOOKUP($G39,'[1]5. Master Solvent Product List'!$E$5:$Z$25,20,FALSE))) -> 0 | P39: =IF(ISBLANK(K39),0,(H39/120)*(VLOOKUP($G39,'[1]5. Master Solvent Product List'!$E$5:$Z$25,22,FALSE))) -> 0
C40: 0 | H40: =IF(ISBLANK(G40)," ",VLOOKUP($G40,'[1]5. Master Solvent Product List'!$E$5:$S$100,4,FALSE)) ->  | I40: =IF(ISBLANK(G40)," ",VLOOKUP($G40,'[1]5. Master Solvent Product List'!$E$5:$S$100,7,FALSE)) ->  | J40: =IF(ISBLANK(G40)," ",VLOOKUP($G40,'[1]5. Master Solvent Product List'!$E$5:$S$100,12,FALSE)) ->  | M40: 0 | N40: 0 | O40: =IF(ISBLANK(K40),0,(H40/120)*(VLOOKUP($G40,'[1]5. Master Solvent Product List'!$E$5:$Z$25,20,FALSE))) -> 0 | P40: =IF(ISBLANK(K40),0,(H40/120)*(VLOOKUP($G40,'[1]5. Master Solvent Product List'!$E$5:$Z$25,22,FALSE))) -> 0
C41: 0 | H41: =IF(ISBLANK(G41)," ",VLOOKUP($G41,'[1]5. Master Solvent Product List'!$E$5:$S$100,4,FALSE)) ->  | I41: =IF(ISBLANK(G41)," ",VLOOKUP($G41,'[1]5. Master Solvent Product List'!$E$5:$S$100,7,FALSE)) ->  | J41: =IF(ISBLANK(G41)," ",VLOOKUP($G41,'[1]5. Master Solvent Product List'!$E$5:$S$100,12,FALSE)) ->  | M41: 0 | N41: 0 | O41: =IF(ISBLANK(K41),0,(H41/120)*(VLOOKUP($G41,'[1]5. Master Solvent Product List'!$E$5:$Z$25,20,FALSE))) -> 0 | P41: =IF(ISBLANK(K41),0,(H41/120)*(VLOOKUP($G41,'[1]5. Master Solvent Product List'!$E$5:$Z$25,22,FALSE))) -> 0
C42: 0 | H42: =IF(ISBLANK(G42)," ",VLOOKUP($G42,'[1]5. Master Solvent Product List'!$E$5:$S$100,4,FALSE)) ->  | I42: =IF(ISBLANK(G42)," ",VLOOKUP($G42,'[1]5. Master Solvent Product List'!$E$5:$S$100,7,FALSE)) ->  | J42: =IF(ISBLANK(G42)," ",VLOOKUP($G42,'[1]5. Master Solvent Product List'!$E$5:$S$100,12,FALSE)) ->  | M42: 0 | N42: 0 | O42: =IF(ISBLANK(K42),0,(H42/120)*(VLOOKUP($G42,'[1]5. Master Solvent Product List'!$E$5:$Z$25,20,FALSE))) -> 0 | P42: =IF(ISBLANK(K42),0,(H42/120)*(VLOOKUP($G42,'[1]5. Master Solvent Product List'!$E$5:$Z$25,22,FALSE))) -> 0
C43: 0 | H43: =IF(ISBLANK(G43)," ",VLOOKUP($G43,'[1]5. Master Solvent Product List'!$E$5:$S$100,4,FALSE)) ->  | I43: =IF(ISBLANK(G43)," ",VLOOKUP($G43,'[1]5. Master Solvent Product List'!$E$5:$S$100,7,FALSE)) ->  | J43: =IF(ISBLANK(G43)," ",VLOOKUP($G43,'[1]5. Master Solvent Product List'!$E$5:$S$100,12,FALSE)) ->  | M43: 0 | N43: 0 | O43: =IF(ISBLANK(K43),0,(H43/120)*(VLOOKUP($G43,'[1]5. Master Solvent Product List'!$E$5:$Z$25,20,FALSE))) -> 0 | P43: =IF(ISBLANK(K43),0,(H43/120)*(VLOOKUP($G43,'[1]5. Master Solvent Product List'!$E$5:$Z$25,22,FALSE))) -> 0
C44: 0 | H44: =IF(ISBLANK(G44)," ",VLOOKUP($G44,'[1]5. Master Solvent Product List'!$E$5:$S$100,4,FALSE)) ->  | I44: =IF(ISBLANK(G44)," ",VLOOKUP($G44,'[1]5. Master Solvent Product List'!$E$5:$S$100,7,FALSE)) ->  | J44: =IF(ISBLANK(G44)," ",VLOOKUP($G44,'[1]5. Master Solvent Product List'!$E$5:$S$100,12,FALSE)) ->  | M44: 0 | N44: 0 | O44: =IF(ISBLANK(K44),0,(H44/120)*(VLOOKUP($G44,'[1]5. Master Solvent Product List'!$E$5:$Z$25,20,FALSE))) -> 0 | P44: =IF(ISBLANK(K44),0,(H44/120)*(VLOOKUP($G44,'[1]5. Master Solvent Product List'!$E$5:$Z$25,22,FALSE))) -> 0
C45: 0 | H45: =IF(ISBLANK(G45)," ",VLOOKUP($G45,'[1]5. Master Solvent Product List'!$E$5:$S$100,4,FALSE)) ->  | I45: =IF(ISBLANK(G45)," ",VLOOKUP($G45,'[1]5. Master Solvent Product List'!$E$5:$S$100,7,FALSE)) ->  | J45: =IF(ISBLANK(G45)," ",VLOOKUP($G45,'[1]5. Master Solvent Product List'!$E$5:$S$100,12,FALSE)) ->  | M45: 0 | N45: 0 | O45: =IF(ISBLANK(K45),0,(H45/120)*(VLOOKUP($G45,'[1]5. Master Solvent Product List'!$E$5:$Z$25,20,FALSE))) -> 0 | P45: =IF(ISBLANK(K45),0,(H45/120)*(VLOOKUP($G45,'[1]5. Master Solvent Product List'!$E$5:$Z$25,22,FALSE))) -> 0
C46: 0 | H46: =IF(ISBLANK(G46)," ",VLOOKUP($G46,'[1]5. Master Solvent Product List'!$E$5:$S$100,4,FALSE)) ->  | I46: =IF(ISBLANK(G46)," ",VLOOKUP($G46,'[1]5. Master Solvent Product List'!$E$5:$S$100,7,FALSE)) ->  | J46: =IF(ISBLANK(G46)," ",VLOOKUP($G46,'[1]5. Master Solvent Product List'!$E$5:$S$100,12,FALSE)) ->  | M46: 0 | N46: 0 | O46: =IF(ISBLANK(K46),0,(H46/120)*(VLOOKUP($G46,'[1]5. Master Solvent Product List'!$E$5:$Z$25,20,FALSE))) -> 0 | P46: =IF(ISBLANK(K46),0,(H46/120)*(VLOOKUP($G46,'[1]5. Master Solvent Product List'!$E$5:$Z$25,22,FALSE))) -> 0
C47: 0 | H47: =IF(ISBLANK(G47)," ",VLOOKUP($G47,'[1]5. Master Solvent Product List'!$E$5:$S$100,4,FALSE)) ->  | I47: =IF(ISBLANK(G47)," ",VLOOKUP($G47,'[1]5. Master Solvent Product List'!$E$5:$S$100,7,FALSE)) ->  | J47: =IF(ISBLANK(G47)," ",VLOOKUP($G47,'[1]5. Master Solvent Product List'!$E$5:$S$100,12,FALSE)) ->  | M47: 0 | N47: 0 | O47: =IF(ISBLANK(K47),0,(H47/120)*(VLOOKUP($G47,'[1]5. Master Solvent Product List'!$E$5:$Z$25,20,FALSE))) -> 0 | P47: =IF(ISBLANK(K47),0,(H47/120)*(VLOOKUP($G47,'[1]5. Master Solvent Product List'!$E$5:$Z$25,22,FALSE))) -> 0
C48: =$G$2 -> 0 | H48: =IF(ISBLANK(G48)," ",VLOOKUP($G48,'[1]5. Master Solvent Product List'!$E$5:$S$100,4,FALSE)) ->  | I48: =IF(ISBLANK(G48)," ",VLOOKUP($G48,'[1]5. Master Solvent Product List'!$E$5:$S$100,7,FALSE)) ->  | J48: =IF(ISBLANK(G48)," ",VLOOKUP($G48,'[1]5. Master Solvent Product List'!$E$5:$S$100,12,FALSE)) ->  | M48: 0 | N48: 0 | O48: =IF(ISBLANK(K48),0,(H48/120)*(VLOOKUP($G48,'[1]5. Master Solvent Product List'!$E$5:$Z$25,20,FALSE))) -> 0 | P48: =IF(ISBLANK(K48),0,(H48/120)*(VLOOKUP($G48,'[1]5. Master Solvent Product List'!$E$5:$Z$25,22,FALSE))) -> 0
C49: 0 | H49: =IF(ISBLANK(G49)," ",VLOOKUP($G49,'[1]5. Master Solvent Product List'!$E$5:$S$100,4,FALSE)) ->  | I49: =IF(ISBLANK(G49)," ",VLOOKUP($G49,'[1]5. Master Solvent Product List'!$E$5:$S$100,7,FALSE)) ->  | J49: =IF(ISBLANK(G49)," ",VLOOKUP($G49,'[1]5. Master Solvent Product List'!$E$5:$S$100,12,FALSE)) ->  | M49: 0 | N49: 0 | O49: =IF(ISBLANK(K49),0,(H49/120)*(VLOOKUP($G49,'[1]5. Master Solvent Product List'!$E$5:$Z$25,20,FALSE))) -> 0 | P49: =IF(ISBLANK(K49),0,(H49/120)*(VLOOKUP($G49,'[1]5. Master Solvent Product List'!$E$5:$Z$25,22,FALSE))) -> 0
C50: 0 | H50: =IF(ISBLANK(G50)," ",VLOOKUP($G50,'[1]5. Master Solvent Product List'!$E$5:$S$100,4,FALSE)) ->  | I50: =IF(ISBLANK(G50)," ",VLOOKUP($G50,'[1]5. Master Solvent Product List'!$E$5:$S$100,7,FALSE)) ->  | J50: =IF(ISBLANK(G50)," ",VLOOKUP($G50,'[1]5. Master Solvent Product List'!$E$5:$S$100,12,FALSE)) ->  | M50: 0 | N50: 0 | O50: =IF(ISBLANK(K50),0,(H50/120)*(VLOOKUP($G50,'[1]5. Master Solvent Product List'!$E$5:$Z$25,20,FALSE))) -> 0 | P50: =IF(ISBLANK(K50),0,(H50/120)*(VLOOKUP($G50,'[1]5. Master Solvent Product List'!$E$5:$Z$25,22,FALSE))) -> 0
C51: 0 | H51: =IF(ISBLANK(G51)," ",VLOOKUP($G51,'[1]5. Master Solvent Product List'!$E$5:$S$100,4,FALSE)) ->  | I51: =IF(ISBLANK(G51)," ",VLOOKUP($G51,'[1]5. Master Solvent Product List'!$E$5:$S$100,7,FALSE)) ->  | J51: =IF(ISBLANK(G51)," ",VLOOKUP($G51,'[1]5. Master Solvent Product List'!$E$5:$S$100,12,FALSE)) ->  | M51: 0 | N51: 0 | O51: =IF(ISBLANK(K51),0,(H51/120)*(VLOOKUP($G51,'[1]5. Master Solvent Product List'!$E$5:$Z$25,20,FALSE))) -> 0 | P51: =IF(ISBLANK(K51),0,(H51/120)*(VLOOKUP($G51,'[1]5. Master Solvent Product List'!$E$5:$Z$25,22,FALSE))) -> 0
C52: 0 | H52: =IF(ISBLANK(G52)," ",VLOOKUP($G52,'[1]5. Master Solvent Product List'!$E$5:$S$100,4,FALSE)) ->  | I52: =IF(ISBLANK(G52)," ",VLOOKUP($G52,'[1]5. Master Solvent Product List'!$E$5:$S$100,7,FALSE)) ->  | J52: =IF(ISBLANK(G52)," ",VLOOKUP($G52,'[1]5. Master Solvent Product List'!$E$5:$S$100,12,FALSE)) ->  | M52: 0 | N52: 0 | O52: =IF(ISBLANK(K52),0,(H52/120)*(VLOOKUP($G52,'[1]5. Master Solvent Product List'!$E$5:$Z$25,20,FALSE))) -> 0 | P52: =IF(ISBLANK(K52),0,(H52/120)*(VLOOKUP($G52,'[1]5. Master Solvent Product List'!$E$5:$Z$25,22,FALSE))) -> 0
C53: 0 | H53: =IF(ISBLANK(G53)," ",VLOOKUP($G53,'[1]5. Master Solvent Product List'!$E$5:$S$100,4,FALSE)) ->  | I53: =IF(ISBLANK(G53)," ",VLOOKUP($G53,'[1]5. Master Solvent Product List'!$E$5:$S$100,7,FALSE)) ->  | J53: =IF(ISBLANK(G53)," ",VLOOKUP($G53,'[1]5. Master Solvent Product List'!$E$5:$S$100,12,FALSE)) ->  | M53: 0 | N53: 0 | O53: =IF(ISBLANK(K53),0,(H53/120)*(VLOOKUP($G53,'[1]5. Master Solvent Product List'!$E$5:$Z$25,20,FALSE))) -> 0 | P53: =IF(ISBLANK(K53),0,(H53/120)*(VLOOKUP($G53,'[1]5. Master Solvent Product List'!$E$5:$Z$25,22,FALSE))) -> 0
C54: 0 | H54: =IF(ISBLANK(G54)," ",VLOOKUP($G54,'[1]5. Master Solvent Product List'!$E$5:$S$100,4,FALSE)) ->  | I54: =IF(ISBLANK(G54)," ",VLOOKUP($G54,'[1]5. Master Solvent Product List'!$E$5:$S$100,7,FALSE)) ->  | J54: =IF(ISBLANK(G54)," ",VLOOKUP($G54,'[1]5. Master Solvent Product List'!$E$5:$S$100,12,FALSE)) ->  | M54: 0 | N54: 0 | O54: =IF(ISBLANK(K54),0,(H54/120)*(VLOOKUP($G54,'[1]5. Master Solvent Product List'!$E$5:$Z$25,20,FALSE))) -> 0 | P54: =IF(ISBLANK(K54),0,(H54/120)*(VLOOKUP($G54,'[1]5. Master Solvent Product List'!$E$5:$Z$25,22,FALSE))) -> 0
C55: 0 | H55: =IF(ISBLANK(G55)," ",VLOOKUP($G55,'[1]5. Master Solvent Product List'!$E$5:$S$100,4,FALSE)) ->  | I55: =IF(ISBLANK(G55)," ",VLOOKUP($G55,'[1]5. Master Solvent Product List'!$E$5:$S$100,7,FALSE)) ->  | J55: =IF(ISBLANK(G55)," ",VLOOKUP($G55,'[1]5. Master Solvent Product List'!$E$5:$S$100,12,FALSE)) ->  | M55: 0 | N55: 0 | O55: =IF(ISBLANK(K55),0,(H55/120)*(VLOOKUP($G55,'[1]5. Master Solvent Product List'!$E$5:$Z$25,20,FALSE))) -> 0 | P55: =IF(ISBLANK(K55),0,(H55/120)*(VLOOKUP($G55,'[1]5. Master Solvent Product List'!$E$5:$Z$25,22,FALSE))) -> 0
C56: 0 | H56: =IF(ISBLANK(G56)," ",VLOOKUP($G56,'[1]5. Master Solvent Product List'!$E$5:$S$100,4,FALSE)) ->  | I56: =IF(ISBLANK(G56)," ",VLOOKUP($G56,'[1]5. Master Solvent Product List'!$E$5:$S$100,7,FALSE)) ->  | J56: =IF(ISBLANK(G56)," ",VLOOKUP($G56,'[1]5. Master Solvent Product List'!$E$5:$S$100,12,FALSE)) ->  | M56: 0 | N56: 0 | O56: =IF(ISBLANK(K56),0,(H56/120)*(VLOOKUP($G56,'[1]5. Master Solvent Product List'!$E$5:$Z$25,20,FALSE))) -> 0 | P56: =IF(ISBLANK(K56),0,(H56/120)*(VLOOKUP($G56,'[1]5. Master Solvent Product List'!$E$5:$Z$25,22,FALSE))) -> 0
C57: 0 | H57: =IF(ISBLANK(G57)," ",VLOOKUP($G57,'[1]5. Master Solvent Product List'!$E$5:$S$100,4,FALSE)) ->  | I57: =IF(ISBLANK(G57)," ",VLOOKUP($G57,'[1]5. Master Solvent Product List'!$E$5:$S$100,7,FALSE)) ->  | J57: =IF(ISBLANK(G57)," ",VLOOKUP($G57,'[1]5. Master Solvent Product List'!$E$5:$S$100,12,FALSE)) ->  | M57: 0 | N57: 0 | O57: =IF(ISBLANK(K57),0,(H57/120)*(VLOOKUP($G57,'[1]5. Master Solvent Product List'!$E$5:$Z$25,20,FALSE))) -> 0 | P57: =IF(ISBLANK(K57),0,(H57/120)*(VLOOKUP($G57,'[1]5. Master Solvent Product List'!$E$5:$Z$25,22,FALSE))) -> 0
C58: 0 | H58: =IF(ISBLANK(G58)," ",VLOOKUP($G58,'[1]5. Master Solvent Product List'!$E$5:$S$100,4,FALSE)) ->  | I58: =IF(ISBLANK(G58)," ",VLOOKUP($G58,'[1]5. Master Solvent Product List'!$E$5:$S$100,7,FALSE)) ->  | J58: =IF(ISBLANK(G58)," ",VLOOKUP($G58,'[1]5. Master Solvent Product List'!$E$5:$S$100,12,FALSE)) ->  | M58: 0 | N58: 0 | O58: =IF(ISBLANK(K58),0,(H58/120)*(VLOOKUP($G58,'[1]5. Master Solvent Product List'!$E$5:$Z$25,20,FALSE))) -> 0 | P58: =IF(ISBLANK(K58),0,(H58/120)*(VLOOKUP($G58,'[1]5. Master Solvent Product List'!$E$5:$Z$25,22,FALSE))) -> 0
C59: 0 | H59: =IF(ISBLANK(G59)," ",VLOOKUP($G59,'[1]5. Master Solvent Product List'!$E$5:$S$100,4,FALSE)) ->  | I59: =IF(ISBLANK(G59)," ",VLOOKUP($G59,'[1]5. Master Solvent Product List'!$E$5:$S$100,7,FALSE)) ->  | J59: =IF(ISBLANK(G59)," ",VLOOKUP($G59,'[1]5. Master Solvent Product List'!$E$5:$S$100,12,FALSE)) ->  | M59: 0 | N59: 0 | O59: =IF(ISBLANK(K59),0,(H59/120)*(VLOOKUP($G59,'[1]5. Master Solvent Product List'!$E$5:$Z$25,20,FALSE))) -> 0 | P59: =IF(ISBLANK(K59),0,(H59/120)*(VLOOKUP($G59,'[1]5. Master Solvent Product List'!$E$5:$Z$25,22,FALSE))) -> 0
C60: 0 | H60: =IF(ISBLANK(G60)," ",VLOOKUP($G60,'[1]5. Master Solvent Product List'!$E$5:$S$100,4,FALSE)) ->  | I60: =IF(ISBLANK(G60)," ",VLOOKUP($G60,'[1]5. Master Solvent Product List'!$E$5:$S$100,7,FALSE)) ->  | J60: =IF(ISBLANK(G60)," ",VLOOKUP($G60,'[1]5. Master Solvent Product List'!$E$5:$S$100,12,FALSE)) ->  | M60: 0 | N60: 0 | O60: =IF(ISBLANK(K60),0,(H60/120)*(VLOOKUP($G60,'[1]5. Master Solvent Product List'!$E$5:$Z$25,20,FALSE))) -> 0 | P60: =IF(ISBLANK(K60),0,(H60/120)*(VLOOKUP($G60,'[1]5. Master Solvent Product List'!$E$5:$Z$25,22,FALSE))) -> 0
C61: 0 | H61: =IF(ISBLANK(G61)," ",VLOOKUP($G61,'[1]5. Master Solvent Product List'!$E$5:$S$100,4,FALSE)) ->  | I61: =IF(ISBLANK(G61)," ",VLOOKUP($G61,'[1]5. Master Solvent Product List'!$E$5:$S$100,7,FALSE)) ->  | J61: =IF(ISBLANK(G61)," ",VLOOKUP($G61,'[1]5. Master Solvent Product List'!$E$5:$S$100,12,FALSE)) ->  | M61: 0 | N61: 0 | O61: =IF(ISBLANK(K61),0,(H61/120)*(VLOOKUP($G61,'[1]5. Master Solvent Product List'!$E$5:$Z$25,20,FALSE))) -> 0 | P61: =IF(ISBLANK(K61),0,(H61/120)*(VLOOKUP($G61,'[1]5. Master Solvent Product List'!$E$5:$Z$25,22,FALSE))) -> 0
C62: 0 | H62: =IF(ISBLANK(G62)," ",VLOOKUP($G62,'[1]5. Master Solvent Product List'!$E$5:$S$100,4,FALSE)) ->  | I62: =IF(ISBLANK(G62)," ",VLOOKUP($G62,'[1]5. Master Solvent Product List'!$E$5:$S$100,7,FALSE)) ->  | J62: =IF(ISBLANK(G62)," ",VLOOKUP($G62,'[1]5. Master Solvent Product List'!$E$5:$S$100,12,FALSE)) ->  | M62: 0 | N62: 0 | O62: =IF(ISBLANK(K62),0,(H62/120)*(VLOOKUP($G62,'[1]5. Master Solvent Product List'!$E$5:$Z$25,20,FALSE))) -> 0 | P62: =IF(ISBLANK(K62),0,(H62/120)*(VLOOKUP($G62,'[1]5. Master Solvent Product List'!$E$5:$Z$25,22,FALSE))) -> 0
C63: 0 | H63: =IF(ISBLANK(G63)," ",VLOOKUP($G63,'[1]5. Master Solvent Product List'!$E$5:$S$100,4,FALSE)) ->  | I63: =IF(ISBLANK(G63)," ",VLOOKUP($G63,'[1]5. Master Solvent Product List'!$E$5:$S$100,7,FALSE)) ->  | J63: =IF(ISBLANK(G63)," ",VLOOKUP($G63,'[1]5. Master Solvent Product List'!$E$5:$S$100,12,FALSE)) ->  | M63: 0 | N63: 0 | O63: =IF(ISBLANK(K63),0,(H63/120)*(VLOOKUP($G63,'[1]5. Master Solvent Product List'!$E$5:$Z$25,20,FALSE))) -> 0 | P63: =IF(ISBLANK(K63),0,(H63/120)*(VLOOKUP($G63,'[1]5. Master Solvent Product List'!$E$5:$Z$25,22,FALSE))) -> 0
C64: 0 | H64: =IF(ISBLANK(G64)," ",VLOOKUP($G64,'[1]5. Master Solvent Product List'!$E$5:$S$100,4,FALSE)) ->  | I64: =IF(ISBLANK(G64)," ",VLOOKUP($G64,'[1]5. Master Solvent Product List'!$E$5:$S$100,7,FALSE)) ->  | J64: =IF(ISBLANK(G64)," ",VLOOKUP($G64,'[1]5. Master Solvent Product List'!$E$5:$S$100,12,FALSE)) ->  | M64: 0 | N64: 0 | O64: =IF(ISBLANK(K64),0,(H64/120)*(VLOOKUP($G64,'[1]5. Master Solvent Product List'!$E$5:$Z$25,20,FALSE))) -> 0 | P64: =IF(ISBLANK(K64),0,(H64/120)*(VLOOKUP($G64,'[1]5. Master Solvent Product List'!$E$5:$Z$25,22,FALSE))) -> 0
C65: 0 | H65: =IF(ISBLANK(G65)," ",VLOOKUP($G65,'[1]5. Master Solvent Product List'!$E$5:$S$100,4,FALSE)) ->  | I65: =IF(ISBLANK(G65)," ",VLOOKUP($G65,'[1]5. Master Solvent Product List'!$E$5:$S$100,7,FALSE)) ->  | J65: =IF(ISBLANK(G65)," ",VLOOKUP($G65,'[1]5. Master Solvent Product List'!$E$5:$S$100,12,FALSE)) ->  | M65: 0 | N65: 0 | O65: =IF(ISBLANK(K65),0,(H65/120)*(VLOOKUP($G65,'[1]5. Master Solvent Product List'!$E$5:$Z$25,20,FALSE))) -> 0 | P65: =IF(ISBLANK(K65),0,(H65/120)*(VLOOKUP($G65,'[1]5. Master Solvent Product List'!$E$5:$Z$25,22,FALSE))) -> 0
C66: 0 | H66: =IF(ISBLANK(G66)," ",VLOOKUP($G66,'[1]5. Master Solvent Product List'!$E$5:$S$100,4,FALSE)) ->  | I66: =IF(ISBLANK(G66)," ",VLOOKUP($G66,'[1]5. Master Solvent Product List'!$E$5:$S$100,7,FALSE)) ->  | J66: =IF(ISBLANK(G66)," ",VLOOKUP($G66,'[1]5. Master Solvent Product List'!$E$5:$S$100,12,FALSE)) ->  | M66: 0 | N66: 0 | O66: =IF(ISBLANK(K66),0,(H66/120)*(VLOOKUP($G66,'[1]5. Master Solvent Product List'!$E$5:$Z$25,20,FALSE))) -> 0 | P66: =IF(ISBLANK(K66),0,(H66/120)*(VLOOKUP($G66,'[1]5. Master Solvent Product List'!$E$5:$Z$25,22,FALSE))) -> 0
C67: 0 | H67: =IF(ISBLANK(G67)," ",VLOOKUP($G67,'[1]5. Master Solvent Product List'!$E$5:$S$100,4,FALSE)) ->  | I67: =IF(ISBLANK(G67)," ",VLOOKUP($G67,'[1]5. Master Solvent Product List'!$E$5:$S$100,7,FALSE)) ->  | J67: =IF(ISBLANK(G67)," ",VLOOKUP($G67,'[1]5. Master Solvent Product List'!$E$5:$S$100,12,FALSE)) ->  | M67: 0 | N67: 0 | O67: =IF(ISBLANK(K67),0,(H67/120)*(VLOOKUP($G67,'[1]5. Master Solvent Product List'!$E$5:$Z$25,20,FALSE))) -> 0 | P67: =IF(ISBLANK(K67),0,(H67/120)*(VLOOKUP($G67,'[1]5. Master Solvent Product List'!$E$5:$Z$25,22,FALSE))) -> 0
C68: 0 | H68: =IF(ISBLANK(G68)," ",VLOOKUP($G68,'[1]5. Master Solvent Product List'!$E$5:$S$100,4,FALSE)) ->  | I68: =IF(ISBLANK(G68)," ",VLOOKUP($G68,'[1]5. Master Solvent Product List'!$E$5:$S$100,7,FALSE)) ->  | J68: =IF(ISBLANK(G68)," ",VLOOKUP($G68,'[1]5. Master Solvent Product List'!$E$5:$S$100,12,FALSE)) ->  | M68: 0 | N68: 0 | O68: =IF(ISBLANK(K68),0,(H68/120)*(VLOOKUP($G68,'[1]5. Master Solvent Product List'!$E$5:$Z$25,20,FALSE))) -> 0 | P68: =IF(ISBLANK(K68),0,(H68/120)*(VLOOKUP($G68,'[1]5. Master Solvent Product List'!$E$5:$Z$25,22,FALSE))) -> 0
C69: 0 | H69: =IF(ISBLANK(G69)," ",VLOOKUP($G69,'[1]5. Master Solvent Product List'!$E$5:$S$100,4,FALSE)) ->  | I69: =IF(ISBLANK(G69)," ",VLOOKUP($G69,'[1]5. Master Solvent Product List'!$E$5:$S$100,7,FALSE)) ->  | J69: =IF(ISBLANK(G69)," ",VLOOKUP($G69,'[1]5. Master Solvent Product List'!$E$5:$S$100,12,FALSE)) ->  | M69: 0 | N69: 0 | O69: =IF(ISBLANK(K69),0,(H69/120)*(VLOOKUP($G69,'[1]5. Master Solvent Product List'!$E$5:$Z$25,20,FALSE))) -> 0 | P69: =IF(ISBLANK(K69),0,(H69/120)*(VLOOKUP($G69,'[1]5. Master Solvent Product List'!$E$5:$Z$25,22,FALSE))) -> 0
C70: 0 | H70: =IF(ISBLANK(G70)," ",VLOOKUP($G70,'[1]5. Master Solvent Product List'!$E$5:$S$100,4,FALSE)) ->  | I70: =IF(ISBLANK(G70)," ",VLOOKUP($G70,'[1]5. Master Solvent Product List'!$E$5:$S$100,7,FALSE)) ->  | J70: =IF(ISBLANK(G70)," ",VLOOKUP($G70,'[1]5. Master Solvent Product List'!$E$5:$S$100,12,FALSE)) ->  | M70: 0 | N70: 0 | O70: =IF(ISBLANK(K70),0,(H70/120)*(VLOOKUP($G70,'[1]5. Master Solvent Product List'!$E$5:$Z$25,20,FALSE))) -> 0 | P70: =IF(ISBLANK(K70),0,(H70/120)*(VLOOKUP($G70,'[1]5. Master Solvent Product List'!$E$5:$Z$25,22,FALSE))) -> 0
C71: 0 | H71: =IF(ISBLANK(G71)," ",VLOOKUP($G71,'[1]5. Master Solvent Product List'!$E$5:$S$100,4,FALSE)) ->  | I71: =IF(ISBLANK(G71)," ",VLOOKUP($G71,'[1]5. Master Solvent Product List'!$E$5:$S$100,7,FALSE)) ->  | J71: =IF(ISBLANK(G71)," ",VLOOKUP($G71,'[1]5. Master Solvent Product List'!$E$5:$S$100,12,FALSE)) ->  | M71: 0 | N71: 0 | O71: =IF(ISBLANK(K71),0,(H71/120)*(VLOOKUP($G71,'[1]5. Master Solvent Product List'!$E$5:$Z$25,20,FALSE))) -> 0 | P71: =IF(ISBLANK(K71),0,(H71/120)*(VLOOKUP($G71,'[1]5. Master Solvent Product List'!$E$5:$Z$25,22,FALSE))) -> 0
C72: 0 | H72: =IF(ISBLANK(G72)," ",VLOOKUP($G72,'[1]5. Master Solvent Product List'!$E$5:$S$100,4,FALSE)) ->  | I72: =IF(ISBLANK(G72)," ",VLOOKUP($G72,'[1]5. Master Solvent Product List'!$E$5:$S$100,7,FALSE)) ->  | J72: =IF(ISBLANK(G72)," ",VLOOKUP($G72,'[1]5. Master Solvent Product List'!$E$5:$S$100,12,FALSE)) ->  | M72: 0 | N72: 0 | O72: =IF(ISBLANK(K72),0,(H72/120)*(VLOOKUP($G72,'[1]5. Master Solvent Product List'!$E$5:$Z$25,20,FALSE))) -> 0 | P72: =IF(ISBLANK(K72),0,(H72/120)*(VLOOKUP($G72,'[1]5. Master Solvent Product List'!$E$5:$Z$25,22,FALSE))) -> 0
C73: 0 | H73: =IF(ISBLANK(G73)," ",VLOOKUP($G73,'[1]5. Master Solvent Product List'!$E$5:$S$100,4,FALSE)) ->  | I73: =IF(ISBLANK(G73)," ",VLOOKUP($G73,'[1]5. Master Solvent Product List'!$E$5:$S$100,7,FALSE)) ->  | J73: =IF(ISBLANK(G73)," ",VLOOKUP($G73,'[1]5. Master Solvent Product List'!$E$5:$S$100,12,FALSE)) ->  | M73: 0 | N73: 0 | O73: =IF(ISBLANK(K73),0,(H73/120)*(VLOOKUP($G73,'[1]5. Master Solvent Product List'!$E$5:$Z$25,20,FALSE))) -> 0 | P73: =IF(ISBLANK(K73),0,(H73/120)*(VLOOKUP($G73,'[1]5. Master Solvent Product List'!$E$5:$Z$25,22,FALSE))) -> 0
C74: 0 | H74: =IF(ISBLANK(G74)," ",VLOOKUP($G74,'[1]5. Master Solvent Product List'!$E$5:$S$100,4,FALSE)) ->  | I74: =IF(ISBLANK(G74)," ",VLOOKUP($G74,'[1]5. Master Solvent Product List'!$E$5:$S$100,7,FALSE)) ->  | J74: =IF(ISBLANK(G74)," ",VLOOKUP($G74,'[1]5. Master Solvent Product List'!$E$5:$S$100,12,FALSE)) ->  | M74: 0 | N74: 0 | O74: =IF(ISBLANK(K74),0,(H74/120)*(VLOOKUP($G74,'[1]5. Master Solvent Product List'!$E$5:$Z$25,20,FALSE))) -> 0 | P74: =IF(ISBLANK(K74),0,(H74/120)*(VLOOKUP($G74,'[1]5. Master Solvent Product List'!$E$5:$Z$25,22,FALSE))) -> 0
C75: 0 | H75: =IF(ISBLANK(G75)," ",VLOOKUP($G75,'[1]5. Master Solvent Product List'!$E$5:$S$100,4,FALSE)) ->  | I75: =IF(ISBLANK(G75)," ",VLOOKUP($G75,'[1]5. Master Solvent Product List'!$E$5:$S$100,7,FALSE)) ->  | J75: =IF(ISBLANK(G75)," ",VLOOKUP($G75,'[1]5. Master Solvent Product List'!$E$5:$S$100,12,FALSE)) ->  | M75: 0 | N75: 0 | O75: =IF(ISBLANK(K75),0,(H75/120)*(VLOOKUP($G75,'[1]5. Master Solvent Product List'!$E$5:$Z$25,20,FALSE))) -> 0 | P75: =IF(ISBLANK(K75),0,(H75/120)*(VLOOKUP($G75,'[1]5. Master Solvent Product List'!$E$5:$Z$25,22,FALSE))) -> 0
C76: 0 | H76: =IF(ISBLANK(G76)," ",VLOOKUP($G76,'[1]5. Master Solvent Product List'!$E$5:$S$100,4,FALSE)) ->  | I76: =IF(ISBLANK(G76)," ",VLOOKUP($G76,'[1]5. Master Solvent Product List'!$E$5:$S$100,7,FALSE)) ->  | J76: =IF(ISBLANK(G76)," ",VLOOKUP($G76,'[1]5. Master Solvent Product List'!$E$5:$S$100,12,FALSE)) ->  | M76: 0 | N76: 0 | O76: =IF(ISBLANK(K76),0,(H76/120)*(VLOOKUP($G76,'[1]5. Master Solvent Product List'!$E$5:$Z$25,20,FALSE))) -> 0 | P76: =IF(ISBLANK(K76),0,(H76/120)*(VLOOKUP($G76,'[1]5. Master Solvent Product List'!$E$5:$Z$25,22,FALSE))) -> 0
C77: 0 | H77: =IF(ISBLANK(G77)," ",VLOOKUP($G77,'[1]5. Master Solvent Product List'!$E$5:$S$100,4,FALSE)) ->  | I77: =IF(ISBLANK(G77)," ",VLOOKUP($G77,'[1]5. Master Solvent Product List'!$E$5:$S$100,7,FALSE)) ->  | J77: =IF(ISBLANK(G77)," ",VLOOKUP($G77,'[1]5. Master Solvent Product List'!$E$5:$S$100,12,FALSE)) ->  | M77: 0 | N77: 0 | O77: =IF(ISBLANK(K77),0,(H77/120)*(VLOOKUP($G77,'[1]5. Master Solvent Product List'!$E$5:$Z$25,20,FALSE))) -> 0 | P77: =IF(ISBLANK(K77),0,(H77/120)*(VLOOKUP($G77,'[1]5. Master Solvent Product List'!$E$5:$Z$25,22,FALSE))) -> 0
C78: 0 | H78: =IF(ISBLANK(G78)," ",VLOOKUP($G78,'[1]5. Master Solvent Product List'!$E$5:$S$100,4,FALSE)) ->  | I78: =IF(ISBLANK(G78)," ",VLOOKUP($G78,'[1]5. Master Solvent Product List'!$E$5:$S$100,7,FALSE)) ->  | J78: =IF(ISBLANK(G78)," ",VLOOKUP($G78,'[1]5. Master Solvent Product List'!$E$5:$S$100,12,FALSE)) ->  | M78: 0 | N78: 0 | O78: =IF(ISBLANK(K78),0,(H78/120)*(VLOOKUP($G78,'[1]5. Master Solvent Product List'!$E$5:$Z$25,20,FALSE))) -> 0 | P78: =IF(ISBLANK(K78),0,(H78/120)*(VLOOKUP($G78,'[1]5. Master Solvent Product List'!$E$5:$Z$25,22,FALSE))) -> 0
C79: 0 | H79: =IF(ISBLANK(G79)," ",VLOOKUP($G79,'[1]5. Master Solvent Product List'!$E$5:$S$100,4,FALSE)) ->  | I79: =IF(ISBLANK(G79)," ",VLOOKUP($G79,'[1]5. Master Solvent Product List'!$E$5:$S$100,7,FALSE)) ->  | J79: =IF(ISBLANK(G79)," ",VLOOKUP($G79,'[1]5. Master Solvent Product List'!$E$5:$S$100,12,FALSE)) ->  | M79: 0 | N79: 0 | O79: =IF(ISBLANK(K79),0,(H79/120)*(VLOOKUP($G79,'[1]5. Master Solvent Product List'!$E$5:$Z$25,20,FALSE))) -> 0 | P79: =IF(ISBLANK(K79),0,(H79/120)*(VLOOKUP($G79,'[1]5. Master Solvent Product List'!$E$5:$Z$25,22,FALSE))) -> 0
C80: 0 | H80: =IF(ISBLANK(G80)," ",VLOOKUP($G80,'[1]5. Master Solvent Product List'!$E$5:$S$100,4,FALSE)) ->  | I80: =IF(ISBLANK(G80)," ",VLOOKUP($G80,'[1]5. Master Solvent Product List'!$E$5:$S$100,7,FALSE)) ->  | J80: =IF(ISBLANK(G80)," ",VLOOKUP($G80,'[1]5. Master Solvent Product List'!$E$5:$S$100,12,FALSE)) ->  | M80: 0 | N80: 0 | O80: =IF(ISBLANK(K80),0,(H80/120)*(VLOOKUP($G80,'[1]5. Master Solvent Product List'!$E$5:$Z$25,20,FALSE))) -> 0 | P80: =IF(ISBLANK(K80),0,(H80/120)*(VLOOKUP($G80,'[1]5. Master Solvent Product List'!$E$5:$Z$25,22,FALSE))) -> 0
C81: 0 | H81: =IF(ISBLANK(G81)," ",VLOOKUP($G81,'[1]5. Master Solvent Product List'!$E$5:$S$100,4,FALSE)) ->  | I81: =IF(ISBLANK(G81)," ",VLOOKUP($G81,'[1]5. Master Solvent Product List'!$E$5:$S$100,7,FALSE)) ->  | J81: =IF(ISBLANK(G81)," ",VLOOKUP($G81,'[1]5. Master Solvent Product List'!$E$5:$S$100,12,FALSE)) ->  | M81: =IF(ISBLANK(K81),0,K81-L81) -> 0 | N81: =IF(ISBLANK(K81),0,(H81/120)*M81) -> 0 | O81: =IF(ISBLANK(K81),0,(H81/120)*(VLOOKUP($G81,'[1]5. Master Solvent Product List'!$E$5:$Z$25,20,FALSE))) -> 0 | P81: =IF(ISBLANK(K81),0,(H81/120)*(VLOOKUP($G81,'[1]5. Master Solvent Product List'!$E$5:$Z$25,22,FALSE))) -> 0
J84: Total Monthly Emissions
J85: GALLONS USED | K85: All VOCs | L85: n-butanol | M85: Xylenes
I86: Pounds | J86: 0 | K86: 0 | L86: 0 | M86: 0
I87: Tons | J87: 0 | K87: 0 | L87: 0 | M87: 0

Sheet 6. APCD Limits
A9: Source: San Diego Air Pollution Control District Rule 67.21 Effective 11/14/2008
B10: SDAPCD Rule 67.21 | C10: Compound Category Name | D10: Product Category | E10: VOC Limit (g/l) | F10: Comment
B11: (d)(1)(i) General Adhesive Materials, (A) Architectural Products | C11: =CONCATENATE(B11,", ",D11) -> (d)(1)(i) General Adhesive Materials, (A) Architectural Products, Architectural sealant | D11: Architectural sealant | E11: 250
B12: =$B$11 -> (d)(1)(i) General Adhesive Materials, (A) Architectural Products | C12: (d)(1)(i) General Adhesive Materials, (A) Architectural Products, Architectural sealant primer for non-porous materials | D12: Architectural sealant primer for non-porous materials | E12: 250
B13: =$B$11 -> (d)(1)(i) General Adhesive Materials, (A) Architectural Products | C13: (d)(1)(i) General Adhesive Materials, (A) Architectural Products, Architectural sealant primer for porous materials | D13: Architectural sealant primer for porous materials | E13: 775
B14: (d)(1)(i) General Adhesive Materials, (A) Architectural Products | C14: (d)(1)(i) General Adhesive Materials, (A) Architectural Products, Ceramic tile installation adhesive | D14: Ceramic tile installation adhesive | E14: 65
B15: (d)(1)(i) General Adhesive Materials, (A) Architectural Products | C15: (d)(1)(i) General Adhesive Materials, (A) Architectural Products, Cove base installation adhesive | D15: Cove base installation adhesive | E15: 50
B16: (d)(1)(i) General Adhesive Materials, (A) Architectural Products | C16: (d)(1)(i) General Adhesive Materials, (A) Architectural Products, Flooring adhesives:Indoor carpet or carpet pad adhesive | D16: Flooring adhesives:Indoor carpet or carpet pad adhesive | E16: 50
B17: (d)(1)(i) General Adhesive Materials, (A) Architectural Products | C17: (d)(1)(i) General Adhesive Materials, (A) Architectural Products, Flooring adhesives:Rubber flooring adhesive | D17: Flooring adhesives:Rubber flooring adhesive | E17: 60
B18: (d)(1)(i) General Adhesive Materials, (A) Architectural Products | C18: (d)(1)(i) General Adhesive Materials, (A) Architectural Products, Flooring adhesives:Subfloor adhesive | D18: Flooring adhesives:Subfloor adhesive | E18: 50
B19: (d)(1)(i) General Adhesive Materials, (A) Architectural Products | C19: (d)(1)(i) General Adhesive Materials, (A) Architectural Products, Flooring adhesives:VCT and asphalt tile adhesive | D19: Flooring adhesives:VCT and asphalt tile adhesive | E19: 50
B20: (d)(1)(i) General Adhesive Materials, (A) Architectural Products | C20: (d)(1)(i) General Adhesive Materials, (A) Architectural Products, Flooring adhesives:Wood flooring adhesive | D20: Flooring adhesives:Wood flooring adhesive | E20: 100
B21: (d)(1)(i) General Adhesive Materials, (A) Architectural Products | C21: (d)(1)(i) General Adhesive Materials, (A) Architectural Products, Flooring adhesives:Other floor covering adhesive | D21: Flooring adhesives:Other floor covering adhesive | E21: 150
B22: (d)(1)(i) General Adhesive Materials, (A) Architectural Products | C22: (d)(1)(i) General Adhesive Materials, (A) Architectural Products, Multipurpose construction installation/repair adhesive | D22: Multipurpose construction installation/repair adhesive | E22: 70
B23: (d)(1)(i) General Adhesive Materials, (A) Architectural Products | C23: (d)(1)(i) General Adhesive Materials, (A) Architectural Products, Non-membrane roof installation/repair adhesive/sealant | D23: Non-membrane roof installation/repair adhesive/sealant | E23: 300
B24: (d)(1)(i) General Adhesive Materials, (A) Architectural Products | C24: (d)(1)(i) General Adhesive Materials, (A) Architectural Products, Perimeter bonding adhesive | D24: Perimeter bonding adhesive | E24: 660
B25: (d)(1)(i) General Adhesive Materials, (A) Architectural Products | C25: (d)(1)(i) General Adhesive Materials, (A) Architectural Products, Roadway sealant | D25: Roadway sealant | E25: 250
B26: (d)(1)(i) General Adhesive Materials, (A) Architectural Products | C26: (d)(1)(i) General Adhesive Materials, (A) Architectural Products, Single-ply roof membrane installation/repair adhesive/primer | D26: Single-ply roof membrane installation/repair adhesive/primer | E26: 250
B27: (d)(1)(i) General Adhesive Materials, (A) Architectural Products | C27: (d)(1)(i) General Adhesive Materials, (A) Architectural Products, Single-ply roof membrane sealant | D27: Single-ply roof membrane sealant | E27: 450
B28: (d)(1)(i) General Adhesive Materials, (A) Architectural Products | C28: (d)(1)(i) General Adhesive Materials, (A) Architectural Products, Structural glazing adhesive | D28: Structural glazing adhesive | E28: 100
B29: (d)(1)(i) General Adhesive Materials, (A) Architectural Products | C29: (d)(1)(i) General Adhesive Materials, (A) Architectural Products, Structural wood member adhesive | D29: Structural wood member adhesive | E29: 140
B30: (d)(1)(i) General Adhesive Materials, (A) Architectural Products | C30: (d)(1)(i) General Adhesive Materials, (A) Architectural Products, Traffic marking tape adhesive primer | D30: Traffic marking tape adhesive primer | E30: 150
B31: (d)(1)(i) General Adhesive Materials, (B) Plastic Welding Products | C31: (d)(1)(i) General Adhesive Materials, (B) Plastic Welding Products, ABS welding adhesive | D31: ABS welding adhesive | E31: 400 | F31: Applies to plastic welding products, inlcuding aerosols
B32: =$B$31 -> (d)(1)(i) General Adhesive Materials, (B) Plastic Welding Products | C32: (d)(1)(i) General Adhesive Materials, (B) Plastic Welding Products, CPVC welding adhesive | D32: CPVC welding adhesive | E32: 490
B33: =$B$31 -> (d)(1)(i) General Adhesive Materials, (B) Plastic Welding Products | C33: (d)(1)(i) General Adhesive Materials, (B) Plastic Welding Products, PVC welding adhesive | D33: PVC welding adhesive | E33: 510
B34: =$B$31 -> (d)(1)(i) General Adhesive Materials, (B) Plastic Welding Products | C34: (d)(1)(i) General Adhesive Materials, (B) Plastic Welding Products, Plastic cement welding adhesive primer | D34: Plastic cement welding adhesive primer | E34: 650
B35: =$B$31 -> (d)(1)(i) General Adhesive Materials, (B) Plastic Welding Products | C35: (d)(1)(i) General Adhesive Materials, (B) Plastic Welding Products, Other plastic cement welding adhesives | D35: Other plastic cement welding adhesives | E35: 510
B36: (d)(1)(ii) Specialty Adhesive Materials | C36: (d)(1)(ii) Specialty Adhesive Materials, Automotive glass adhesive primer | D36: Automotive glass adhesive primer | E36: 700 | F36: If more than one VOC limit provided in Subsections (d)(1)(i) or (d)(1)(ii) is applicable, the most stringent VOC limit shall apply.
B37: =$B$36 -> (d)(1)(ii) Specialty Adhesive Materials | C37: (d)(1)(ii) Specialty Adhesive Materials, Computer diskette jacket manufacturing adhesive | D37: Computer diskette jacket manufacturing adhesive | E37: 850
B38: =$B$36 -> (d)(1)(ii) Specialty Adhesive Materials | C38: (d)(1)(ii) Specialty Adhesive Materials, Contact Adhesive - General | D38: Contact Adhesive - General | E38: 80
B39: (d)(1)(ii) Specialty Adhesive Materials | C39: (d)(1)(ii) Specialty Adhesive Materials, Contact Adhesive - Special | D39: Contact Adhesive - Special | E39: 250
B40: (d)(1)(ii) Specialty Adhesive Materials | C40: (d)(1)(ii) Specialty Adhesive Materials, Elastomeric adhesive | D40: Elastomeric adhesive | E40: 750
B41: (d)(1)(ii) Specialty Adhesive Materials | C41: (d)(1)(ii) Specialty Adhesive Materials, Marine deck sealant/primer | D41: Marine deck sealant/primer | E41: 760
B42: (d)(1)(ii) Specialty Adhesive Materials | C42: (d)(1)(ii) Specialty Adhesive Materials, Metal to elastomer molding or casting adhesive | D42: Metal to elastomer molding or casting adhesive | E42: 850
B43: (d)(1)(ii) Specialty Adhesive Materials | C43: (d)(1)(ii) Specialty Adhesive Materials, Natural gas pipeline tape adhesive primer | D43: Natural gas pipeline tape adhesive primer | E43: 600
B44: (d)(1)(ii) Specialty Adhesive Materials | C44: (d)(1)(ii) Specialty Adhesive Materials, Sheet rubber lining installation adhesive | D44: Sheet rubber lining installation adhesive | E44: 850
B45: (d)(1)(ii) Specialty Adhesive Materials | C45: (d)(1)(ii) Specialty Adhesive Materials, Thin metal laminating adhesive | D45: Thin metal laminating adhesive | E45: 780
B46: (d)(1)(ii) Specialty Adhesive Materials | C46: (d)(1)(ii) Specialty Adhesive Materials, Tire retread adhesive | D46: Tire retread adhesive | E46: 100
B47: (d)(1)(ii) Specialty Adhesive Materials | C47: (d)(1)(ii) Specialty Adhesive Materials, Top and Trim adhesive | D47: Top and Trim adhesive | E47: 540
B48: (d)(1)(ii) Specialty Adhesive Materials | C48: (d)(1)(ii) Specialty Adhesive Materials, Waterproof resorcinol glue | D48: Waterproof resorcinol glue | E48: 170
B49: (d)(1)(iii) Substrate Specific Adhesive | C49: (d)(1)(iii) Substrate Specific Adhesive, Fiberglass | D49: Fiberglass | E49: 80 | F49: If an adhesive is not listed in Subsection (d)(1)(i) or (d)(1)(ii), the VOC limits in (d)(1)(iii) are applicable on a substrate-specific basis.
B50: =$B$49 -> (d)(1)(iii) Substrate Specific Adhesive | C50: (d)(1)(iii) Substrate Specific Adhesive, Metal | D50: Metal | E50: 30
B51: =$B$49 -> (d)(1)(iii) Substrate Specific Adhesive | C51: (d)(1)(iii) Substrate Specific Adhesive, Porous material (except wood) | D51: Porous material (except wood) | E51: 50
B52: =$B$49 -> (d)(1)(iii) Substrate Specific Adhesive | C52: (d)(1)(iii) Substrate Specific Adhesive, Wood | D52: Wood | E52: 30
B53: =$B$49 -> (d)(1)(iii) Substrate Specific Adhesive | C53: (d)(1)(iii) Substrate Specific Adhesive, Other substrates | D53: Other substrates | E53: 250
B54: EXEMPT FROM RULE 67.21 | C54: EXEMPT FROM RULE 67.21, < 20 g/l VOC, FOR USGAE RECORDS ONLY | D54: < 20 g/l VOC, FOR USGAE RECORDS ONLY | E54: 20
B55: =$B$54 -> EXEMPT FROM RULE 67.21 | C55: EXEMPT FROM RULE 67.21, Container < 16 oz/1 lb, FOR USAGE RECORDS ONLY | D55: Container < 16 oz/1 lb, FOR USAGE RECORDS ONLY | E55: X
B56: =$B$54 -> EXEMPT FROM RULE 67.21 | C56: EXEMPT FROM RULE 67.21, Aerosol | D56: Aerosol | E56: X
B57: (d)(1)(iii) Substrate Specific Adhesive | D57: Adhesive Primer | E57: 250
D58: Sealant | E58: 420
D59: Sealant primer | E59: 750
A74: The VOC limits and catergories shown above are provided for reference only. The user is repsonsible for verifying the accuracy of the information in the current version of SDAPCD Rule 67.21
B132: Column1
B133: =B11 -> (d)(1)(i) General Adhesive Materials, (A) Architectural Products
B134: =B31 -> (d)(1)(i) General Adhesive Materials, (B) Plastic Welding Products
B135: =B36 -> (d)(1)(ii) Specialty Adhesive Materials
B136: =B49 -> (d)(1)(iii) Substrate Specific Adhesive
B137: =B54 -> EXEMPT FROM RULE 67.21

Sheet Drop Down List 2 (hidden)
A4: Manufacturer's Name | C4: VOC Units | E4: Application Method | G4: Month | K4: VOC Control for Equipment Cleaning Solvents
A5: American Safety Technologies | C5: lb/gal | E5: Brush/Roll | G5: Jan | K5: Enclosed Parts Cleaning: a system is used that totally encloses the component parts being cleaned during the washing, rinsing, and draining process, as described in 67.21(d)(3)(vi)
A6: Ameron Protective Coatings | C6: g/l | E6: Airless | G6: Feb | K6: Contained Flushing: cleaning solvent is flushed or rinsed through equipment in a contained manner as described in 67.21(d)(3)(iv)
A7: Belzona Inc | E7: HVLP | G7: Mar | K7: Closed Container: equipment or parts are cleaned in a container which is only opened when being accessesed for adding, cleaning, or removing application equipment and parts are allowed to drain or drip prior to removal, as described in 67.21(d)(3)(v)
A8: Brenntag Pacific | E8: Conventional | G8: Apr
A9: Carboline | C9: Temperature Units | G9: May
A10: Devoe Coatings | C10: F | G10: Jun
A11: Euronavy | C11: C | G11: Jul
A12: Glidden | G12: Aug
A13: Hempel | G13: Sep | K13: Government Installations
A14: International Paint (USA) Inc. | G14: Oct | K14: AMPHIB
A15: Pervo Paint | G15: Nov | K15: MCBCP
A16: PPG Industries INC. | G16: Dec | K16: NBC
A17: Sherwin Williams (Proline Paints) | E17: Control Method | K17: NBPL
A18: Speciality Coatings & Chemicals Inc. | E18: Shrouding | K18: NBSD
A19: Weatherman Products Inc. | C19: Prime Contractor | E19: Inside Tank
A20: Fiber Materials Inc. | C20: AMEE BAY | E20: Inside Ship
A21: Ellis Paint Co. | C21: AMSEC LLC | E21: None | G21: Year
C22: BAE SYSTEMS | G22: 2013 | K22: Hiring Agency
C23: BAY CITY MARINE | G23: 2014 | K23: AIRPAC
C24: BIW | G24: 2015 | K24: CHOUEST TUGS
C25: C & N UNIVERSE INC | K25: FISC
C26: CIS | K26: MSC
C27: CMSD | K27: NAVAIR
C28: CROWLEY | K28: NAVAL SURFACE WARFARE CENTER
C29: DELPHINUS | K29: NAVAL SURFACE WARFARE CENTER CORONA
A30: VESSELS | C30: EPSILON SYSTEMS | K30: NAVSEA PHILA
A31: 80CM0310 | C31: FEDERAL MARINE & DEFENSE SERVICES | E31: Density Units | K31: NAVSSES
A32: 80DM302 | C32: FRASER'S BOILER SERVICE | E32: Specific Gravity | K32: NAVSUP
A33: 80IM302 | C33: GENERAL DYNAMICS NASSCO | K33: NORFOLK NAVAL SHIPYARD
A34: 88BM0302 | C34: GRIFFIN TECHNOLOGY | E34: Lbs/Gallon | K34: PEARL HARBOR NAVAL SHIPYARD
A35: 88BM067 | C35: GULF COPPER SHIP REPAIR | K35: PORTSMOUTH NAVAL SHIPYARD
A36: 88CFPM0301 | C36: INTEGRATED MARINE SERVICES | K36: PUGET SOUND NAVAL SHIPYARD
A37: 88CFPM0302 | C37: L3/ PACORD | K37: SPAWAR
A38: 88CFPM0617 | C38: LMCO | K38: SWRMC
A39: 88CFPM116 | C39: LOCKHEED MARTIN | K39: USCG
A40: 88CM0311 | C40: MARINE AND RESTAURANT FABRICATORS, INC
A41: 88IM0306 | C41: MILLER MARINE
A42: 88WT0302 | C42: MRF
A43: 88WT0303 | C43: NAVAIR
A44: 88WT0304 | C44: NEVWEST
A45: ALAN SHEPARD T-AKE-3 | C45: NEWPORT NEWS
A46: ALBUQUERQUE SSN-706 | C46: NGNN
A47: AMELIA EARHART T-AKE-6 | C47: NORTHRUP-GRUMMAN
A48: ANCHORAGE LPD-23 | C48: OCEANEERING
A49: ANTIETAM CG-54 | C49: PACSHIP
A50: APACHE T-ATF-172 | C50: PAIGE FLOOR COVERING
A51: APL-15 | C51: PCE
A52: APL-18 | C52: PHOENIX GROUP OF VA
A53: APL-2 | C53: PMI
A54: APL-5 | C54: PRISM MARITIME
A55: APL-65 | C55: PSRF
A56: ARCO ARDM-5 | C56: Q.E.D. SYSTEMS, INC
A57: ARCTIC T-AOE-8 | C57: SBSB
A58: ASHEVILLE SSN-758 | C58: SERCO
A59: BENFOLD DDG-65 | C59: SOUTH BAY BOILER REPAIR
A60: BERTHOLF USCGC WMSL-750 | C60: SOUTH COAST WELDING (BAE)
A61: BIG HORN T-AO-198 | C61: SUB
A62: BOB HOPE TAKR-300 | C62: SWRMC
A63: BONHOMME RICHARD LHD-6 | C63: TINOSA
A64: BOUTWELL USCGC WHEC-719 | C64: UNIVERSAL STEEL FAB.,INC
A65: BOXER LHD-4 | C65: VSE
A66: BRIDGE T-AOE-10 | C66: VT MILCOM
A67: BUNKER HILL CG-52 | C67: YYK
A68: BYRD T-AKE-4
A69: CAPE ST GEORGE CG-71
A70: CARL BRASHEAR T-AKE-7
A71: CARL VINSON CVN-70
A72: CATAWBA T-ATF 168
A73: CHAFEE DDG-90
A74: CHAMPION MCM-4
A75: CHANCELLORSVILLE CG-62
A76: CHARLES DREW T-AKE-10
A77: CHASE USCGC WHEC-718
A78: CHIEF MCM-14
A79: CHOSIN CG-65
A80: CHUNG-HOON DDG-93
A81: CLEVELAND LPD-7
A82: COMFORT T-AH-20
A83: COMSTOCK LSD-45
A84: CROMMELIN FFG-37
A85: CURTISS T-AVB-4
A86: CURTS FFG-38
A87: DECATUR DDG-73
A88: DENVER LPD-9
A89: DEVASTATOR MCM-6
A90: DEVIL RAY
A91: DEWEY DDG-105
A92: DIEHL T-AO-193
A93: DIVE MODULE DSM-8
A94: Divers Weld Barge
A95: DUBUQUE LPD-8
A96: ERICSSON T-AO-194
A97: ESSEX LHD-2
A98: FLINT T-AE-32
A99: FORD FFG-54
A100: FORT WORTH LCS-3
A101: FRANK CABLE AS-40
A102: FREEDOM LCS-1
A103: GARY FFG-51
A104: GERMANTOWN LSD-42
A105: GRAPPLE T-ARS-53
A106: GRASP T-ARS-51
A107: GREEN BAY LPD-20
A108: GRIDLEY DDG-101
A109: GRUMMAN T-AO-195
A110: GUADALUPE T-AO-200
A111: HALSEY DDG-97
A112: HAMILTON USCGC WHEC-715
A113: HAMPTON SSN-767
A114: HARPERS FERRY LSD-49
A115: HENRY J. KAISER T-AO-187
A116: HIGGINS DDG-76
A117: HOPPER DDG-70
A118: HOWARD DDG-83
A119: INDEPENDENCE LCS-2
A120: INGRAHAM FFG-61
A121: INLS 80CM-0307
A122: INLS 80CM-0309
A123: INLS 80IM-0305
A124: INLS 88BM-0616
A125: INLS 88CFPM-0616
A126: Jacqueline 2
A127: JARRETT FFG-33
A128: JEFFERSON CITY SSN-759
A129: JOHN PAUL JONES DDG-53
A130: JOSHUA HUMPHREYS T-AO-188
A131: KAIMIMOANA R-333
A132: KANAWHA T-AO-196
A133: KIDD DDG-100
A134: KISKA T-AE-35
A135: LAKE CHAMPLAIN CG-57
A136: LAKE ERIE CG-70
A137: LAND AS 39
A138: LARAMIE T-AO-203
A139: LCAC 10
A140: LCAC 14
A141: LCAC 16
A142: LCAC 17
A143: LCAC 21
A144: LCAC 23
A145: LCAC 24
A146: LCAC 29
A147: LCAC 30
A148: LCAC 31
A149: LCAC 32
A150: LCAC 33
A151: LCAC 40
A152: LCAC 42
A153: LCAC 43
A154: LCAC 44
A155: LCAC 45
A156: LCAC 47
A157: LCAC 48
A158: LCAC 52
A159: LCAC 56
A160: LCAC 57
A161: LCAC 58
A162: LCAC 59
A163: LCAC 62
A164: LCAC 63
A165: LCAC 64
A166: LCAC 65
A167: LCAC 72
A168: LCAC 73
A169: LCAC 74
A170: LCAC 75
A171: LCAC 76
A172: LCAC 79
A173: LCAC 8
A174: LCAC 80
A175: LCAC 81
A176: LCAC 82
A177: LCAC 9
A178: LCAC 90
A179: LCU 1627
A180: LCU 1629
A181: LCU 1631
A182: LCU 1635
A183: LCU 1648
A184: LCU 1665
A185: LCU 1929
A186: LCU 1930
A187: LCU 1933
A188: LCU 1980
A189: LENTHALL T-AO-189
A190: LEWIS AND CLARK T-AKE-1
A191: MAKIN ISLAND LHD-8
A192: MATTHEW PERRY T-AKE-9
A193: MCCAMPBELL DDG-85
A194: MCCLUSKY FFG-41
A195: MERCY T-AH 19
A196: MILIUS DDG-69
A197: MOBILE BAY CG-53
A198: MOMSEN DDG-92
A199: MONSOON PC-4
A200: MOUNT WHITNEY LCC/JCC 20
A201: MUSTIN DDG-89
A202: NAVAJO T-ATF-169
A203: NEW ORLEANS LPD-18
... 69 more rows

Sheet Drop Down list 1 (hidden)
B3: Government Installations
B4: AMPHIB
B5: MCBCP
B6: NBC
B7: NBPL
B8: NBSD
